﻿Department Family,Entity,Date,Expense Type,Expense Area,Supplier,Transaction Number,Amount,Item Description
BEIS,UKRI - AHRC,01/05/2020,T&S UK - Other Charges,Health and Environmental Humanities,Unspecified,98735338,110.00,T&S UK - Other Charges
BEIS,UKRI - AHRC,01/05/2020,T&S UK - Other Charges,Health and Environmental Humanities,Unspecified,98736443,13.59,T&S UK - Other Charges
BEIS,UKRI - AHRC,01/05/2020,Advertising & Promotion,Public and Stakeholder Engagement,Unspecified,98743658,280.00,Advertising & Promotion
BEIS,UKRI - AHRC,01/05/2020,Non-staff travel and subsistance,Operations,Unspecified,98743671,340.00,Non-staff travel and subsistance
BEIS,UKRI - AHRC,01/05/2020,Non-staff travel and subsistance,Newton Programme Delivery,Unspecified,98743672,340.00,Non-staff travel and subsistance
BEIS,UKRI - AHRC,01/05/2020,Unspecified,PSU Project Office,Alexander Mann Solutions Ltd,98743685,2795.58,Contract Staff
BEIS,UKRI - AHRC,01/05/2020,Printing & Stationery,PSU Project Office,RS Components,98743712,28.32,Printing & Stationery
BEIS,UKRI - AHRC,04/05/2020,T&S UK - Other Charges,Strategy and Evidence,Unspecified,98730805,207.96,T&S UK - Other Charges
BEIS,UKRI - AHRC,05/05/2020,Non-staff travel and subsistance,Operations,Unspecified,98745045,93.00,Non-staff travel and subsistance
BEIS,UKRI - AHRC,05/05/2020,Non-staff travel and subsistance,Operations,Unspecified,98745046,71.20,Non-staff travel and subsistance
BEIS,UKRI - AHRC,05/05/2020,T&S UK - Other Charges,Strategy and Evidence,Unspecified,98745199,87.60,T&S UK - Other Charges
BEIS,UKRI - AHRC,05/05/2020,Recharges From Councils - General,International Development and Area Studies,UKRI - Engineering & Physical Sciences Research Council,98745810,6620.80,Recharges From Councils - General
BEIS,UKRI - AHRC,06/05/2020,Hospitality,Infrastruture Roadmap,University of Oxford,98743746,332.30,Hospitality
BEIS,UKRI - AHRC,06/05/2020,Non-staff travel and subsistance,Digital Arts and Humanities and Creative Industries,Unspecified,98745709,435.50,Non-staff travel and subsistance
BEIS,UKRI - AHRC,06/05/2020,T&S Overseas - Accommodation,HERA JRP Project,Corporate Travel Management (North) Ltd,98745996,131.10,T&S Overseas - Accommodation
BEIS,UKRI - AHRC,06/05/2020,T&S Overseas - Accommodation,HERA JRP Project,Corporate Travel Management (North) Ltd,98745996,0.80,T&S Overseas - Accommodation
BEIS,UKRI - AHRC,06/05/2020,T&S Overseas - Accommodation,HERA JRP Project,Corporate Travel Management (North) Ltd,98745996,0.16,T&S Overseas - Accommodation
BEIS,UKRI - AHRC,06/05/2020,T&S Overseas - Accommodation,International,Corporate Travel Management (North) Ltd,98745996,289.36,T&S Overseas - Accommodation
BEIS,UKRI - AHRC,06/05/2020,T&S Overseas - Accommodation,International,Corporate Travel Management (North) Ltd,98745996,0.80,T&S Overseas - Accommodation
BEIS,UKRI - AHRC,06/05/2020,T&S Overseas - Accommodation,International,Corporate Travel Management (North) Ltd,98745996,0.16,T&S Overseas - Accommodation
BEIS,UKRI - AHRC,06/05/2020,T&S Overseas - Accommodation,JPI Cultural Heritage Project,Corporate Travel Management (North) Ltd,98745996,243.81,T&S Overseas - Accommodation
BEIS,UKRI - AHRC,06/05/2020,T&S Overseas - Accommodation,JPI Cultural Heritage Project,Corporate Travel Management (North) Ltd,98745996,0.80,T&S Overseas - Accommodation
BEIS,UKRI - AHRC,06/05/2020,T&S Overseas - Accommodation,JPI Cultural Heritage Project,Corporate Travel Management (North) Ltd,98745996,0.80,T&S Overseas - Accommodation
BEIS,UKRI - AHRC,06/05/2020,T&S Overseas - Accommodation,JPI Cultural Heritage Project,Corporate Travel Management (North) Ltd,98745996,146.58,T&S Overseas - Accommodation
BEIS,UKRI - AHRC,06/05/2020,T&S Overseas - Accommodation,JPI Cultural Heritage Project,Corporate Travel Management (North) Ltd,98745996,0.32,T&S Overseas - Accommodation
BEIS,UKRI - AHRC,06/05/2020,T&S Overseas - Accommodation,SMT,Corporate Travel Management (North) Ltd,98745996,102.50,T&S Overseas - Accommodation
BEIS,UKRI - AHRC,06/05/2020,T&S Overseas - Accommodation,SMT,Corporate Travel Management (North) Ltd,98745996,0.80,T&S Overseas - Accommodation
BEIS,UKRI - AHRC,06/05/2020,T&S Overseas - Accommodation,SMT,Corporate Travel Management (North) Ltd,98745996,0.16,T&S Overseas - Accommodation
BEIS,UKRI - AHRC,06/05/2020,T&S UK - Accommodation,Digital Arts and Humanities and Creative Industries,Corporate Travel Management (North) Ltd,98745996,0.80,T&S UK - Accommodation
BEIS,UKRI - AHRC,06/05/2020,T&S UK - Accommodation,Digital Arts and Humanities and Creative Industries,Corporate Travel Management (North) Ltd,98745996,393.00,T&S UK - Accommodation
BEIS,UKRI - AHRC,06/05/2020,T&S UK - Accommodation,Digital Arts and Humanities and Creative Industries,Corporate Travel Management (North) Ltd,98745996,0.16,T&S UK - Accommodation
BEIS,UKRI - AHRC,06/05/2020,T&S UK - Accommodation,GCRF - Programme Delivery,Corporate Travel Management (North) Ltd,98745996,0.80,T&S UK - Accommodation
BEIS,UKRI - AHRC,06/05/2020,T&S UK - Accommodation,GCRF - Programme Delivery,Corporate Travel Management (North) Ltd,98745996,0.80,T&S UK - Accommodation
BEIS,UKRI - AHRC,06/05/2020,T&S UK - Accommodation,GCRF - Programme Delivery,Corporate Travel Management (North) Ltd,98745996,0.80,T&S UK - Accommodation
BEIS,UKRI - AHRC,06/05/2020,T&S UK - Accommodation,GCRF - Programme Delivery,Corporate Travel Management (North) Ltd,98745996,0.48,T&S UK - Accommodation
BEIS,UKRI - AHRC,06/05/2020,T&S UK - Accommodation,Industrial Strategy Challenge Fund (ISCF) - Creative Clusters,Corporate Travel Management (North) Ltd,98745996,0.80,T&S UK - Accommodation
BEIS,UKRI - AHRC,06/05/2020,T&S UK - Accommodation,Industrial Strategy Challenge Fund (ISCF) - Creative Clusters,Corporate Travel Management (North) Ltd,98745996,0.16,T&S UK - Accommodation
BEIS,UKRI - AHRC,06/05/2020,T&S UK - Accommodation,Operations,Corporate Travel Management (North) Ltd,98745996,0.80,T&S UK - Accommodation
BEIS,UKRI - AHRC,06/05/2020,T&S UK - Accommodation,Operations,Corporate Travel Management (North) Ltd,98745996,0.80,T&S UK - Accommodation
BEIS,UKRI - AHRC,06/05/2020,T&S UK - Accommodation,Operations,Corporate Travel Management (North) Ltd,98745996,0.80,T&S UK - Accommodation
BEIS,UKRI - AHRC,06/05/2020,T&S UK - Accommodation,Operations,Corporate Travel Management (North) Ltd,98745996,0.48,T&S UK - Accommodation
BEIS,UKRI - AHRC,06/05/2020,T&S UK - Other Charges,Operations,Corporate Travel Management (North) Ltd,98745996,34.50,T&S UK - Other Charges
BEIS,UKRI - AHRC,06/05/2020,T&S UK - Other Charges,Operations,Corporate Travel Management (North) Ltd,98745996,34.50,T&S UK - Other Charges
BEIS,UKRI - AHRC,06/05/2020,T&S UK - Other Charges,Operations,Corporate Travel Management (North) Ltd,98745996,5.00,T&S UK - Other Charges
BEIS,UKRI - AHRC,06/05/2020,T&S UK - Other Charges,Operations,Corporate Travel Management (North) Ltd,98745996,1.00,T&S UK - Other Charges
BEIS,UKRI - AHRC,06/05/2020,T&S UK - Public Transport,SMT,Corporate Travel Management (North) Ltd,98745996,176.77,T&S UK - Public Transport
BEIS,UKRI - AHRC,06/05/2020,T&S UK - Public Transport,SMT,Corporate Travel Management (North) Ltd,98745996,131.06,T&S UK - Public Transport
BEIS,UKRI - AHRC,06/05/2020,T&S UK - Public Transport,SMT,Corporate Travel Management (North) Ltd,98745996,28.35,T&S UK - Public Transport
BEIS,UKRI - AHRC,06/05/2020,T&S UK - Public Transport,SMT,Corporate Travel Management (North) Ltd,98745996,7.50,T&S UK - Public Transport
BEIS,UKRI - AHRC,06/05/2020,T&S UK - Public Transport,SMT,Corporate Travel Management (North) Ltd,98745996,1.50,T&S UK - Public Transport
BEIS,UKRI - AHRC,07/05/2020,Conferences & Seminars,"History, Heritage, Languages and Literature",Calder Conference Ltd,98746790,1100.40,Conferences & Seminars
BEIS,UKRI - AHRC,07/05/2020,Hospitality,"History, Heritage, Languages and Literature",Calder Conference Ltd,98746790,81.00,Hospitality
BEIS,UKRI - AHRC,07/05/2020,Non-staff travel and subsistance,"History, Heritage, Languages and Literature",Unspecified,98746881,67.40,Non-staff travel and subsistance
BEIS,UKRI - AHRC,11/05/2020,Hospitality,Industrial Strategy Challenge Fund (ISCF) - Creative Clusters,The Institute of Practitioners in Advertising (IPA),98747947,18000.00,Hospitality
BEIS,UKRI - AHRC,11/05/2020,Unspecified,PSU Project Office,Alexander Mann Solutions Ltd,98748036,2236.46,Contract Staff
BEIS,UKRI - AHRC,11/05/2020,T&S UK - Other Charges,"History, Heritage, Languages and Literature",Unspecified,98748061,125.27,T&S UK - Other Charges
BEIS,UKRI - AHRC,11/05/2020,UK - Professional Memberships & Subscriptions,Digital Arts and Humanities and Creative Industries,Unspecified,98748062,258.00,UK - Professional Memberships & Subscriptions
BEIS,UKRI - AHRC,11/05/2020,T&S UK - Subsistence,International Development and Area Studies,Unspecified,98748063,15.00,T&S UK - Subsistence
BEIS,UKRI - AHRC,11/05/2020,T&S UK - Other Charges,International Development and Area Studies,Unspecified,98748064,446.93,T&S UK - Other Charges
BEIS,UKRI - AHRC,12/05/2020,Conferences & Seminars,SMT,Jurys Inns (UK) Ltd,98535985,325.00,Conferences & Seminars
BEIS,UKRI - AHRC,12/05/2020,Nursery Deductions,Balance Sheet,EDENRED (UK GROUP) LTD,98747268,995.00,Nursery Deductions
BEIS,UKRI - AHRC,12/05/2020,T&S UK - Other Charges,Strategy and Evidence,Unspecified,98747341,119.21,T&S UK - Other Charges
BEIS,UKRI - AHRC,12/05/2020,Unspecified,SMT,University of Exeter,98748111,12672.00,Secondments
BEIS,UKRI - AHRC,13/05/2020,Unspecified,Balance Sheet,HM Revenue & Customs,98747303,52507.12,NI Payable Salaries
BEIS,UKRI - AHRC,13/05/2020,Unspecified,Balance Sheet,HM Revenue & Customs,98747304,41213.96,PAYE Payable Salaries
BEIS,UKRI - AHRC,13/05/2020,Unspecified,Balance Sheet,HM Revenue & Customs,98747305,4688.00,Student Loans
BEIS,UKRI - AHRC,13/05/2020,Unspecified,Corporate Services,HM Revenue & Customs,98747306,1424.00,Apprenticeship Levy
BEIS,UKRI - AHRC,13/05/2020,Non-staff travel and subsistance,Newton Programme,Unspecified,98747367,517.96,Non-staff travel and subsistance
BEIS,UKRI - AHRC,13/05/2020,Unspecified,SMT,University of Oxford,98748091,13014.38,Secondments
BEIS,UKRI - AHRC,13/05/2020,Unspecified,SMT,University of Oxford,98748092,19956.98,Secondments
BEIS,UKRI - AHRC,13/05/2020,Unspecified,SMT,University of Oxford,98748095,20097.42,Secondments
BEIS,UKRI - AHRC,13/05/2020,Fees (Including College Members),Executive Office,Unspecified,98748316,170.00,Fees (Including College Members)
BEIS,UKRI - AHRC,14/05/2020,Voluntary Deductions,Balance Sheet,Chargive,98747311,570.83,Voluntary Deductions
BEIS,UKRI - AHRC,14/05/2020,Union Deductions,Balance Sheet,PCS Union,98747313,84.86,Union Deductions
BEIS,UKRI - AHRC,14/05/2020,Unspecified,Balance Sheet,Unspecified,98747314,10261.50,Ees Pension Deductions - JSS
BEIS,UKRI - AHRC,14/05/2020,Unspecified,Balance Sheet,Unspecified,98747315,46718.30,Ers Pension Deductions - JSS
BEIS,UKRI - AHRC,14/05/2020,Unspecified,Balance Sheet,Scottish Widows,98747316,129.41,Partnership Pension Deductions
BEIS,UKRI - AHRC,14/05/2020,Unspecified,Balance Sheet,Cabinet Office RM Shared Services,98747317,12.83,Ers Pension Deductions - JSS
BEIS,UKRI - AHRC,14/05/2020,Unspecified,Balance Sheet,Cabinet Office RM Shared Services,98747318,5975.03,Ees Pension Deductions - MyCSP
BEIS,UKRI - AHRC,14/05/2020,Unspecified,Balance Sheet,Cabinet Office RM Shared Services,98747319,30154.93,Ers Pension Deductions - MyCSP
BEIS,UKRI - AHRC,14/05/2020,Ees Pension Deductions - MRC,Balance Sheet,UKRI - Medical Research Council,98747320,134.32,Ees Pension Deductions - MRC
BEIS,UKRI - AHRC,14/05/2020,Ers Pension Deductions - MRC,Balance Sheet,UKRI - Medical Research Council,98747321,309.96,Ers Pension Deductions - MRC
BEIS,UKRI - AHRC,14/05/2020,Unspecified,SMT,University of Oxford,98747423,13398.29,Secondments
BEIS,UKRI - AHRC,14/05/2020,T&S UK - Other Charges,Digital Arts and Humanities and Creative Industries,Unspecified,98749319,123.59,T&S UK - Other Charges
BEIS,UKRI - AHRC,14/05/2020,T&S UK - Other Charges,"History, Heritage, Languages and Literature",Unspecified,98749320,23.99,T&S UK - Other Charges
BEIS,UKRI - AHRC,15/05/2020,Staff Training,Corporate Services,Connect Public Affairs Ltd t/a Connect Communications,98747470,120.00,Staff Training
BEIS,UKRI - AHRC,15/05/2020,Non-staff travel and subsistance,International Development and Area Studies,Unspecified,98749803,93.60,Non-staff travel and subsistance
BEIS,UKRI - AHRC,15/05/2020,Unspecified,PSU Project Office,Alexander Mann Solutions Ltd,98749806,1677.35,Contract Staff
BEIS,UKRI - AHRC,19/05/2020,Health & Safety (inc. Medicals & Opticians),HR,Open University,98750153,1490.00,Health & Safety (inc. Medicals & Opticians)
BEIS,UKRI - AHRC,19/05/2020,Health & Safety (inc. Medicals & Opticians),HR,Open University,98750154,1490.00,Health & Safety (inc. Medicals & Opticians)
BEIS,UKRI - AHRC,19/05/2020,Fees (Including College Members),International Development and Area Studies,Unspecified,98750841,170.00,Fees (Including College Members)
BEIS,UKRI - AHRC,20/05/2020,Non-staff travel and subsistance,Newton Programme Delivery,Unspecified,98750285,105.66,Non-staff travel and subsistance
BEIS,UKRI - AHRC,20/05/2020,Fees (Including College Members),Newton Programme Delivery,Unspecified,98750286,343.45,Fees (Including College Members)
BEIS,UKRI - AHRC,20/05/2020,T&S UK - Other Charges,Health and Environmental Humanities,Unspecified,98750457,24.99,T&S UK - Other Charges
BEIS,UKRI - AHRC,20/05/2020,T&S UK - Other Charges,Skills Strategy,Unspecified,98750458,150.00,T&S UK - Other Charges
BEIS,UKRI - AHRC,21/05/2020,Conferences & Seminars,International Development and Area Studies,Wiltshire Council,98750514,120.00,Conferences & Seminars
BEIS,UKRI - AHRC,21/05/2020,T&S UK - Other Charges,SMT,Unspecified,98750740,82.80,T&S UK - Other Charges
BEIS,UKRI - AHRC,21/05/2020,Fees (Including College Members),Health and Environmental Humanities,Unspecified,98751073,170.00,Fees (Including College Members)
BEIS,UKRI - AHRC,21/05/2020,Fees (Including College Members),Health and Environmental Humanities,Unspecified,98751074,170.00,Fees (Including College Members)
BEIS,UKRI - AHRC,21/05/2020,Fees (Including College Members),Health and Environmental Humanities,Unspecified,98751075,170.00,Fees (Including College Members)
BEIS,UKRI - AHRC,21/05/2020,Fees (Including College Members),New Programme Development,Unspecified,98751076,170.00,Fees (Including College Members)
BEIS,UKRI - AHRC,21/05/2020,Non-staff travel and subsistance,Digital Arts and Humanities and Creative Industries,Unspecified,98751077,96.00,Non-staff travel and subsistance
BEIS,UKRI - AHRC,21/05/2020,Non-staff travel and subsistance,Digital Arts and Humanities and Creative Industries,Unspecified,98751078,325.50,Non-staff travel and subsistance
BEIS,UKRI - AHRC,21/05/2020,Non-staff travel and subsistance,Digital Arts and Humanities and Creative Industries,Unspecified,98751079,117.05,Non-staff travel and subsistance
BEIS,UKRI - AHRC,21/05/2020,Fees (Including College Members),New Programme Development,Unspecified,98751080,170.00,Fees (Including College Members)
BEIS,UKRI - AHRC,21/05/2020,Non-staff travel and subsistance,Digital Arts and Humanities and Creative Industries,Unspecified,98751081,166.64,Non-staff travel and subsistance
BEIS,UKRI - AHRC,21/05/2020,Conferences & Seminars,Executive Office,Benugo Ltd,98751092,15.36,Conferences & Seminars
BEIS,UKRI - AHRC,22/05/2020,T&S UK - Other Charges,Health and Environmental Humanities,Unspecified,98751388,61.78,T&S UK - Other Charges
BEIS,UKRI - AHRC,26/05/2020,Conferences & Seminars,International,Wiltshire Council,98733049,120.00,Conferences & Seminars
BEIS,UKRI - AHRC,26/05/2020,Voluntary Deductions,Balance Sheet,Swindon Office Sports and Social Club,98747312,32.00,Voluntary Deductions
BEIS,UKRI - AHRC,26/05/2020,T&S UK - Other Charges,Digital Arts and Humanities and Creative Industries,Unspecified,98752130,180.43,T&S UK - Other Charges
BEIS,UKRI - AHRC,29/05/2020,Recruitment Costs,Corporate Services,Agenda Resource Management Ltd,98752353,153.91,Recruitment Costs
BEIS,UKRI - AHRC,29/05/2020,Hospitality,Skills Strategy,Calder Conference Ltd,98754851,496.80,Hospitality
BEIS,UKRI - AHRC,29/05/2020,T&S UK - Other Charges,Operations,Unspecified,98755095,249.00,T&S UK - Other Charges
BEIS,UKRI - BBSRC,01/05/2020,T&S UK - Other Charges,Innovation and Skills Group CDSU,Unspecified,98743738,151.92,T&S UK - Other Charges
BEIS,UKRI - BBSRC,01/05/2020,T&S UK - Other Charges,Innovation and Skills Group,Unspecified,98743739,127.98,T&S UK - Other Charges
BEIS,UKRI - BBSRC,01/05/2020,Non-staff travel and subsistance,FIC2 EEID2,Unspecified,98744400,505.15,Non-staff travel and subsistance
BEIS,UKRI - BBSRC,01/05/2020,Non-staff travel and subsistance,FIC2 EEID2,Unspecified,98744401,15.09,Non-staff travel and subsistance
BEIS,UKRI - BBSRC,04/05/2020,Staff Training,PDG - Director,EMPLOYERS NETWORK FOR EQUALITY & INCLUSION,98744387,-972.00,Staff Training
BEIS,UKRI - BBSRC,04/05/2020,Staff Training,PDG - Director,EMPLOYERS NETWORK FOR EQUALITY & INCLUSION,98744388,972.00,Staff Training
BEIS,UKRI - BBSRC,04/05/2020,Health & Safety (inc. Medicals & Opticians),PDG - Director,Swindon Occupational Medical Services Ltd,98744632,1050.00,Health & Safety (inc. Medicals & Opticians)
BEIS,UKRI - BBSRC,04/05/2020,T&S UK - Other Charges,Innovation and Skills Group,Unspecified,98744747,42.00,T&S UK - Other Charges
BEIS,UKRI - BBSRC,04/05/2020,T&S UK - Other Charges,Science Group,Unspecified,98744748,102.59,T&S UK - Other Charges
BEIS,UKRI - BBSRC,04/05/2020,Non-staff travel and subsistance,Innovation and Skills Group CDSU,Unspecified,98744816,341.85,Non-staff travel and subsistance
BEIS,UKRI - BBSRC,04/05/2020,Non-staff travel and subsistance,Innovation and Skills Group CDSU,Unspecified,98744817,45.89,Non-staff travel and subsistance
BEIS,UKRI - BBSRC,05/05/2020,Research Grant Expenditure,Research: Strategic,UKRI - Medical Research Council,98724208,22030.54,Research Grant Expenditure
BEIS,UKRI - BBSRC,05/05/2020,Compensation Payments,FG - Accounts & Business Planning,JSS Pensions Administration,98740547,31168.46,Compensation Payments
BEIS,UKRI - BBSRC,05/05/2020,Research Grant Expenditure,FG - Accounts & Business Planning,UKRI - Medical Research Council,98743218,4201.29,Research Grant Expenditure
BEIS,UKRI - BBSRC,05/05/2020,Research Grant Expenditure,Science Group,UKRI - Medical Research Council,98743754,-6716.00,Research Grant Expenditure
BEIS,UKRI - BBSRC,05/05/2020,Training Awards - Postgraduates,Innovation and Skills Group,UKRI - Economic & Social Research Council,98743764,63785.00,Training Awards - Postgraduates
BEIS,UKRI - BBSRC,05/05/2020,Conferences & Seminars,Science Group,Unspecified,98744654,102.00,Conferences & Seminars
BEIS,UKRI - BBSRC,05/05/2020,Conferences & Seminars,Science Group,Unspecified,98744814,102.00,Conferences & Seminars
BEIS,UKRI - BBSRC,05/05/2020,Conferences & Seminars,Science Group - Delivery Function,Barnes Coaches Ltd,98745162,375.00,Conferences & Seminars
BEIS,UKRI - BBSRC,05/05/2020,T&S UK - Other Charges,Innovation and Skills Group CDSU,Unspecified,98745200,151.99,T&S UK - Other Charges
BEIS,UKRI - BBSRC,05/05/2020,T&S UK - Other Charges,CE - CPS,Unspecified,98745201,26.07,T&S UK - Other Charges
BEIS,UKRI - BBSRC,05/05/2020,Conferences & Seminars,Science Group - Delivery Function,Barnes Coaches Ltd,98745858,375.00,Conferences & Seminars
BEIS,UKRI - BBSRC,06/05/2020,Recruitment Costs,PDG - Director,Agenda Resource Management Ltd,98745192,153.91,Recruitment Costs
BEIS,UKRI - BBSRC,06/05/2020,T&S Overseas - Accommodation,CE - Chief Executive,Corporate Travel Management (North) Ltd,98745279,0.80,T&S Overseas - Accommodation
BEIS,UKRI - BBSRC,06/05/2020,T&S Overseas - Accommodation,CE - Chief Executive,Corporate Travel Management (North) Ltd,98745279,172.44,T&S Overseas - Accommodation
BEIS,UKRI - BBSRC,06/05/2020,T&S Overseas - Accommodation,CE - Chief Executive,Corporate Travel Management (North) Ltd,98745279,0.16,T&S Overseas - Accommodation
BEIS,UKRI - BBSRC,06/05/2020,T&S Overseas - Accommodation,CE - IRU,Corporate Travel Management (North) Ltd,98745279,0.80,T&S Overseas - Accommodation
BEIS,UKRI - BBSRC,06/05/2020,T&S Overseas - Accommodation,CE - IRU,Corporate Travel Management (North) Ltd,98745279,154.27,T&S Overseas - Accommodation
BEIS,UKRI - BBSRC,06/05/2020,T&S Overseas - Accommodation,CE - IRU,Corporate Travel Management (North) Ltd,98745279,0.80,T&S Overseas - Accommodation
BEIS,UKRI - BBSRC,06/05/2020,T&S Overseas - Accommodation,CE - IRU,Corporate Travel Management (North) Ltd,98745279,145.13,T&S Overseas - Accommodation
BEIS,UKRI - BBSRC,06/05/2020,T&S Overseas - Accommodation,CE - IRU,Corporate Travel Management (North) Ltd,98745279,0.80,T&S Overseas - Accommodation
BEIS,UKRI - BBSRC,06/05/2020,T&S Overseas - Accommodation,CE - IRU,Corporate Travel Management (North) Ltd,98745279,145.13,T&S Overseas - Accommodation
BEIS,UKRI - BBSRC,06/05/2020,T&S Overseas - Accommodation,CE - IRU,Corporate Travel Management (North) Ltd,98745279,0.48,T&S Overseas - Accommodation
BEIS,UKRI - BBSRC,06/05/2020,T&S Overseas - Accommodation,Science Group – Admin Function,Corporate Travel Management (North) Ltd,98745279,0.80,T&S Overseas - Accommodation
BEIS,UKRI - BBSRC,06/05/2020,T&S Overseas - Accommodation,Science Group – Admin Function,Corporate Travel Management (North) Ltd,98745279,165.70,T&S Overseas - Accommodation
BEIS,UKRI - BBSRC,06/05/2020,T&S Overseas - Accommodation,Science Group – Admin Function,Corporate Travel Management (North) Ltd,98745279,0.16,T&S Overseas - Accommodation
BEIS,UKRI - BBSRC,06/05/2020,T&S Overseas - Public Transport,RISD - UKRO,Corporate Travel Management (North) Ltd,98745279,2.00,T&S Overseas - Public Transport
BEIS,UKRI - BBSRC,06/05/2020,T&S Overseas - Public Transport,RISD - UKRO,Corporate Travel Management (North) Ltd,98745279,217.00,T&S Overseas - Public Transport
BEIS,UKRI - BBSRC,06/05/2020,T&S UK - Accommodation,CE - CPS,Corporate Travel Management (North) Ltd,98745279,0.80,T&S UK - Accommodation
BEIS,UKRI - BBSRC,06/05/2020,T&S UK - Accommodation,CE - CPS,Corporate Travel Management (North) Ltd,98745279,0.16,T&S UK - Accommodation
BEIS,UKRI - BBSRC,06/05/2020,T&S UK - Accommodation,CE - Chief Executive,Corporate Travel Management (North) Ltd,98745279,0.80,T&S UK - Accommodation
BEIS,UKRI - BBSRC,06/05/2020,T&S UK - Accommodation,CE - Chief Executive,Corporate Travel Management (North) Ltd,98745279,0.16,T&S UK - Accommodation
BEIS,UKRI - BBSRC,06/05/2020,T&S UK - Accommodation,FG - Estates,Corporate Travel Management (North) Ltd,98745279,0.80,T&S UK - Accommodation
BEIS,UKRI - BBSRC,06/05/2020,T&S UK - Accommodation,FG - Estates,Corporate Travel Management (North) Ltd,98745279,0.80,T&S UK - Accommodation
BEIS,UKRI - BBSRC,06/05/2020,T&S UK - Accommodation,FG - Estates,Corporate Travel Management (North) Ltd,98745279,0.32,T&S UK - Accommodation
BEIS,UKRI - BBSRC,06/05/2020,T&S UK - Accommodation,Innovation and Skills Group,Corporate Travel Management (North) Ltd,98745279,0.80,T&S UK - Accommodation
BEIS,UKRI - BBSRC,06/05/2020,T&S UK - Accommodation,Innovation and Skills Group,Corporate Travel Management (North) Ltd,98745279,119.00,T&S UK - Accommodation
BEIS,UKRI - BBSRC,06/05/2020,T&S UK - Accommodation,Innovation and Skills Group,Corporate Travel Management (North) Ltd,98745279,0.80,T&S UK - Accommodation
BEIS,UKRI - BBSRC,06/05/2020,T&S UK - Accommodation,Innovation and Skills Group,Corporate Travel Management (North) Ltd,98745279,0.32,T&S UK - Accommodation
BEIS,UKRI - BBSRC,06/05/2020,T&S UK - Flights,CE - CPS,Corporate Travel Management (North) Ltd,98745279,2.50,T&S UK - Flights
BEIS,UKRI - BBSRC,06/05/2020,T&S UK - Flights,CE - CPS,Corporate Travel Management (North) Ltd,98745279,134.12,T&S UK - Flights
BEIS,UKRI - BBSRC,06/05/2020,T&S UK - Vehicle Hire,CE - Chief Executive,Corporate Travel Management (North) Ltd,98745279,5.00,T&S UK - Vehicle Hire
BEIS,UKRI - BBSRC,06/05/2020,T&S UK - Vehicle Hire,CE - Chief Executive,Corporate Travel Management (North) Ltd,98745279,16.23,T&S UK - Vehicle Hire
BEIS,UKRI - BBSRC,06/05/2020,T&S UK - Vehicle Hire,CE - Chief Executive,Corporate Travel Management (North) Ltd,98745279,21.35,T&S UK - Vehicle Hire
BEIS,UKRI - BBSRC,06/05/2020,T&S UK - Vehicle Hire,CE - Chief Executive,Corporate Travel Management (North) Ltd,98745279,5.00,T&S UK - Vehicle Hire
BEIS,UKRI - BBSRC,06/05/2020,T&S UK - Vehicle Hire,CE - Chief Executive,Corporate Travel Management (North) Ltd,98745279,14.36,T&S UK - Vehicle Hire
BEIS,UKRI - BBSRC,06/05/2020,T&S UK - Vehicle Hire,CE - Chief Executive,Corporate Travel Management (North) Ltd,98745279,14.36,T&S UK - Vehicle Hire
BEIS,UKRI - BBSRC,06/05/2020,T&S UK - Vehicle Hire,CE - Chief Executive,Corporate Travel Management (North) Ltd,98745279,2.00,T&S UK - Vehicle Hire
BEIS,UKRI - BBSRC,06/05/2020,T&S UK - Vehicle Hire,Innovation and Skills Group,Corporate Travel Management (North) Ltd,98745279,5.00,T&S UK - Vehicle Hire
BEIS,UKRI - BBSRC,06/05/2020,T&S UK - Vehicle Hire,Innovation and Skills Group,Corporate Travel Management (North) Ltd,98745279,29.90,T&S UK - Vehicle Hire
BEIS,UKRI - BBSRC,06/05/2020,T&S UK - Vehicle Hire,Innovation and Skills Group,Corporate Travel Management (North) Ltd,98745279,20.58,T&S UK - Vehicle Hire
BEIS,UKRI - BBSRC,06/05/2020,T&S UK - Vehicle Hire,Innovation and Skills Group,Corporate Travel Management (North) Ltd,98745279,1.00,T&S UK - Vehicle Hire
BEIS,UKRI - BBSRC,06/05/2020,T&S UK - Other Charges,CIMG - Information Management,Unspecified,98746585,128.98,T&S UK - Other Charges
BEIS,UKRI - BBSRC,06/05/2020,T&S UK - Other Charges,Innovation and Skills Group CDSU,Unspecified,98746586,76.45,T&S UK - Other Charges
BEIS,UKRI - BBSRC,07/05/2020,Research Grant Expenditure,FG - Accounts & Business Planning,University of Glasgow,98744589,9606.33,Research Grant Expenditure
BEIS,UKRI - BBSRC,07/05/2020,Fees (Including College Members),CE - CPS,Unspecified,98746906,170.00,Fees (Including College Members)
BEIS,UKRI - BBSRC,11/05/2020,Fees (Including College Members),Science Group - Delivery Function,Unspecified,98747979,170.00,Fees (Including College Members)
BEIS,UKRI - BBSRC,11/05/2020,Fees (Including College Members),Science Group,Unspecified,98747980,170.00,Fees (Including College Members)
BEIS,UKRI - BBSRC,12/05/2020,Non-staff travel and subsistance,European Initiatives,Edinburgh Innovations Ltd,98740227,6000.00,Non-staff travel and subsistance
BEIS,UKRI - BBSRC,12/05/2020,T&S UK - Other Charges,CE - IRU,Unspecified,98747330,29.99,T&S UK - Other Charges
BEIS,UKRI - BBSRC,12/05/2020,Other Programme Costs,FG - Director,NBI Partnership Limited,98747372,-9741.00,Other Programme Costs
BEIS,UKRI - BBSRC,12/05/2020,Nursery Deductions,Balance Sheet,EDENRED (UK GROUP) LTD,98748129,2020.00,Nursery Deductions
BEIS,UKRI - BBSRC,12/05/2020,Rates,JBOS - Maintenance,Swindon Borough Council,98748343,64000.00,Rates
BEIS,UKRI - BBSRC,13/05/2020,International Subscriptions,CE - IRU,The International Human Frontier Science Programme Organization - HFSP,98599588,399166.00,International Subscriptions
BEIS,UKRI - BBSRC,13/05/2020,T&S UK - Other Charges,Innovation and Skills Group CDSU,Unspecified,98735265,119.99,T&S UK - Other Charges
BEIS,UKRI - BBSRC,13/05/2020,Other Programme Costs,FG - Director,Rothamsted Research Ltd,98743556,2813.00,Other Programme Costs
BEIS,UKRI - BBSRC,13/05/2020,Unspecified,Balance Sheet,HM Revenue & Customs,98745875,72095.60,PAYE Payable Salaries
BEIS,UKRI - BBSRC,13/05/2020,Unspecified,Balance Sheet,HM Revenue & Customs,98745876,4819.00,Student Loans
BEIS,UKRI - BBSRC,13/05/2020,Unspecified,Balance Sheet,HM Revenue & Customs,98745877,97324.24,NI Payable Salaries
BEIS,UKRI - BBSRC,13/05/2020,Unspecified,FG - Accounts & Business Planning,HM Revenue & Customs,98745878,2503.00,Apprenticeship Levy
BEIS,UKRI - BBSRC,13/05/2020,Unspecified,Balance Sheet,HM Revenue & Customs,98745890,2490.15,PAYE Payable Salaries
BEIS,UKRI - BBSRC,13/05/2020,Unspecified,Balance Sheet,HM Revenue & Customs,98745891,407.02,NI Payable Salaries
BEIS,UKRI - BBSRC,13/05/2020,Unspecified,FG - Accounts & Business Planning,HM Revenue & Customs,98745892,41.00,Apprenticeship Levy
BEIS,UKRI - BBSRC,13/05/2020,Non-staff travel and subsistance,Science Group - Delivery Function,Unspecified,98747379,202.80,Non-staff travel and subsistance
BEIS,UKRI - BBSRC,13/05/2020,Non-staff travel and subsistance,CE - IRU,Unspecified,98747385,98.40,Non-staff travel and subsistance
BEIS,UKRI - BBSRC,13/05/2020,Non-staff travel and subsistance,Innovation and Skills Group CDSU,Unspecified,98747395,347.24,Non-staff travel and subsistance
BEIS,UKRI - BBSRC,13/05/2020,Non-staff travel and subsistance,Innovation and Skills Group CDSU,Unspecified,98747396,99.70,Non-staff travel and subsistance
BEIS,UKRI - BBSRC,13/05/2020,T&S UK - Other Charges,Innovation and Skills Group CDSU,Unspecified,98747462,83.98,T&S UK - Other Charges
BEIS,UKRI - BBSRC,13/05/2020,Conferences & Seminars,Innovation and Skills Group CDSU,Calder Conference Ltd,98748377,1740.00,Conferences & Seminars
BEIS,UKRI - BBSRC,14/05/2020,Union Deductions,Balance Sheet,PCS Union,98745879,73.90,Union Deductions
BEIS,UKRI - BBSRC,14/05/2020,Unspecified,Balance Sheet,Unspecified,98745881,23960.06,Ees Pension Deductions - JSS
BEIS,UKRI - BBSRC,14/05/2020,Unspecified,Balance Sheet,Unspecified,98745882,94646.28,Ers Pension Deductions - JSS
BEIS,UKRI - BBSRC,14/05/2020,Unspecified,Balance Sheet,Scottish Widows Life Assurance,98745883,446.70,Partnership Pension Deductions
BEIS,UKRI - BBSRC,14/05/2020,Unspecified,Balance Sheet,Scottish Widows Life Assurance,98745884,10.00,Other Pension Deductions
BEIS,UKRI - BBSRC,14/05/2020,Unspecified,Balance Sheet,Cabinet Office RM Shared Services,98745885,12.83,Ers Pension Deductions - JSS
BEIS,UKRI - BBSRC,14/05/2020,Unspecified,Balance Sheet,Cabinet Office RM Shared Services,98745886,6503.41,Ees Pension Deductions - MyCSP
BEIS,UKRI - BBSRC,14/05/2020,Unspecified,Balance Sheet,Cabinet Office RM Shared Services,98745887,32651.75,Ers Pension Deductions - MyCSP
BEIS,UKRI - BBSRC,14/05/2020,Voluntary Deductions,Balance Sheet,BHCA (Services) Ltd,98745888,23.80,Voluntary Deductions
BEIS,UKRI - BBSRC,14/05/2020,Voluntary Deductions,Balance Sheet,Ramsden Fund,98745889,50.00,Voluntary Deductions
BEIS,UKRI - BBSRC,14/05/2020,Voluntary Deductions,Balance Sheet,St Elizabeth’s Centre,98745893,570.83,Voluntary Deductions
BEIS,UKRI - BBSRC,14/05/2020,Other Programme Costs,FG - Estates,NBI Partnership Limited,98746949,27755.83,Other Programme Costs
BEIS,UKRI - BBSRC,14/05/2020,T&S UK - Other Charges,Innovation and Skills Group CDSU,Unspecified,98747646,27.98,T&S UK - Other Charges
BEIS,UKRI - BBSRC,14/05/2020,T&S UK - Other Charges,Innovation and Skills Group CDSU,Unspecified,98747647,84.98,T&S UK - Other Charges
BEIS,UKRI - BBSRC,14/05/2020,T&S UK - Other Charges,Science Group,Unspecified,98747648,42.15,T&S UK - Other Charges
BEIS,UKRI - BBSRC,14/05/2020,Telecoms - Calls Fax & internet Costs,Innovation and Skills Group,Unspecified,98747649,14.13,Telecoms - Calls Fax & internet Costs
BEIS,UKRI - BBSRC,14/05/2020,Conferences & Seminars,Science Group - Delivery Function,Calder Conference Ltd,98748376,4844.00,Conferences & Seminars
BEIS,UKRI - BBSRC,15/05/2020,T&S UK - Public Transport,Innovation and Skills Group,Unspecified,98713111,34.00,T&S UK - Public Transport
BEIS,UKRI - BBSRC,15/05/2020,T&S UK - Subsistence,Innovation and Skills Group,Unspecified,98713111,5.98,T&S UK - Subsistence
BEIS,UKRI - BBSRC,15/05/2020,Other Programme Costs,Innovation and Skills Group CDSU,KNOWLEDGE TRANSFER NETWORK LTD,98747517,7476.90,Other Programme Costs
BEIS,UKRI - BBSRC,15/05/2020,T&S UK - Other Charges,Innovation and Skills Group CDSU,Unspecified,98749558,285.77,T&S UK - Other Charges
BEIS,UKRI - BBSRC,15/05/2020,Non-staff travel and subsistance,Innovation and Skills Group CDSU,Unspecified,98749804,96.20,Non-staff travel and subsistance
BEIS,UKRI - BBSRC,15/05/2020,Fees (Including College Members),Innovation and Skills Group CDSU,Unspecified,98749805,170.00,Fees (Including College Members)
BEIS,UKRI - BBSRC,19/05/2020,Research Grant Expenditure,Science Group,UKRI - Medical Research Council,98735244,746875.00,Research Grant Expenditure
BEIS,UKRI - BBSRC,19/05/2020,Training Awards - Postgraduates,Postgraduate Training: Students,UKRI - Economic & Social Research Council,98743627,9562.50,Training Awards - Postgraduates
BEIS,UKRI - BBSRC,19/05/2020,Compensation Payments,FG - Accounts & Business Planning,Unspecified,98743758,2648.96,Compensation Payments
BEIS,UKRI - BBSRC,19/05/2020,Research Grant Expenditure,Rothamsted Research,Rothamsted Research Ltd,98750250,277851.92,Research Grant Expenditure
BEIS,UKRI - BBSRC,19/05/2020,Non-staff travel and subsistance,Science Group,Unspecified,98750845,695.46,Non-staff travel and subsistance
BEIS,UKRI - BBSRC,19/05/2020,T&S UK - Other Charges,Innovation and Skills Group CDSU,Unspecified,98750916,85.98,T&S UK - Other Charges
BEIS,UKRI - BBSRC,19/05/2020,T&S UK - Other Charges,FG - Estates,Unspecified,98750917,205.00,T&S UK - Other Charges
BEIS,UKRI - BBSRC,19/05/2020,T&S UK - Other Charges,Science Group,Unspecified,98750918,212.27,T&S UK - Other Charges
BEIS,UKRI - BBSRC,19/05/2020,T&S UK - Other Charges,Science Group,Unspecified,98750919,13.25,T&S UK - Other Charges
BEIS,UKRI - BBSRC,19/05/2020,T&S UK - Public Transport,Science Group,Unspecified,98750919,57.00,T&S UK - Public Transport
BEIS,UKRI - BBSRC,19/05/2020,T&S UK - Subsistence,Science Group,Unspecified,98750919,8.30,T&S UK - Subsistence
BEIS,UKRI - BBSRC,19/05/2020,T&S UK - Subsistence,Science Group,Unspecified,98750919,10.00,T&S UK - Subsistence
BEIS,UKRI - BBSRC,19/05/2020,T&S UK - Other Charges,CE - CPS,Unspecified,98750920,84.97,T&S UK - Other Charges
BEIS,UKRI - BBSRC,20/05/2020,Research Institutes - Competitive Strategic Grant,Babraham Institute,Babraham Institute,98744710,352459.91,Research Institutes - Competitive Strategic Grant
BEIS,UKRI - BBSRC,20/05/2020,Research Institutes - Competitive Strategic Grant,Babraham Institute,Babraham Institute,98744710,48750.01,Research Institutes - Competitive Strategic Grant
BEIS,UKRI - BBSRC,20/05/2020,Research Institutes - Competitive Strategic Grant,Babraham Institute,Babraham Institute,98744710,395666.75,Research Institutes - Competitive Strategic Grant
BEIS,UKRI - BBSRC,20/05/2020,Research Institutes - Competitive Strategic Grant,Babraham Institute,Babraham Institute,98744710,5833.33,Research Institutes - Competitive Strategic Grant
BEIS,UKRI - BBSRC,20/05/2020,Research Institutes - Capital Grants: Major Works,IFR,Quadram Institute Bioscience,98746548,121433.25,Research Institutes - Capital Grants: Major Works
BEIS,UKRI - BBSRC,20/05/2020,Institute Grant Expenditure,Rothamsted Research,Rothamsted Research Ltd,98746696,49250.00,Institute Grant Expenditure
BEIS,UKRI - BBSRC,20/05/2020,Research Institutes - Competitive Strategic Grant,IFR,Quadram Institute Bioscience,98746867,23130.89,Research Institutes - Competitive Strategic Grant
BEIS,UKRI - BBSRC,20/05/2020,Research Institutes - Competitive Strategic Grant,IFR,Quadram Institute Bioscience,98746867,344143.33,Research Institutes - Competitive Strategic Grant
BEIS,UKRI - BBSRC,20/05/2020,Research Institutes - Competitive Strategic Grant,IFR,Quadram Institute Bioscience,98746867,46083.29,Research Institutes - Competitive Strategic Grant
BEIS,UKRI - BBSRC,20/05/2020,Research Institutes - Competitive Strategic Grant,IFR,Quadram Institute Bioscience,98746867,265775.16,Research Institutes - Competitive Strategic Grant
BEIS,UKRI - BBSRC,20/05/2020,Research Institutes - Competitive Strategic Grant,IFR,Quadram Institute Bioscience,98746867,5833.33,Research Institutes - Competitive Strategic Grant
BEIS,UKRI - BBSRC,20/05/2020,Research Institutes - Competitive Strategic Grant,TGAC,Earlham Institute,98746874,167372.13,Research Institutes - Competitive Strategic Grant
BEIS,UKRI - BBSRC,20/05/2020,Research Institutes - Competitive Strategic Grant,TGAC,Earlham Institute,98746874,78195.44,Research Institutes - Competitive Strategic Grant
BEIS,UKRI - BBSRC,20/05/2020,Research Institutes - Competitive Strategic Grant,TGAC,Earlham Institute,98746874,41249.97,Research Institutes - Competitive Strategic Grant
BEIS,UKRI - BBSRC,20/05/2020,Research Institutes - Competitive Strategic Grant,TGAC,Earlham Institute,98746874,33333.31,Research Institutes - Competitive Strategic Grant
BEIS,UKRI - BBSRC,20/05/2020,Research Institutes - Competitive Strategic Grant,TGAC,Earlham Institute,98746874,117765.49,Research Institutes - Competitive Strategic Grant
BEIS,UKRI - BBSRC,20/05/2020,Research Institutes - Competitive Strategic Grant,TGAC,Earlham Institute,98746874,2916.66,Research Institutes - Competitive Strategic Grant
BEIS,UKRI - BBSRC,20/05/2020,Research Institutes - Competitive Strategic Grant,JIC,John Innes Centre,98746933,21499.99,Research Institutes - Competitive Strategic Grant
BEIS,UKRI - BBSRC,20/05/2020,Research Institutes - Competitive Strategic Grant,JIC,John Innes Centre,98746933,499916.52,Research Institutes - Competitive Strategic Grant
BEIS,UKRI - BBSRC,20/05/2020,Research Institutes - Competitive Strategic Grant,JIC,John Innes Centre,98746933,65333.31,Research Institutes - Competitive Strategic Grant
BEIS,UKRI - BBSRC,20/05/2020,Research Institutes - Competitive Strategic Grant,JIC,John Innes Centre,98746933,513249.85,Research Institutes - Competitive Strategic Grant
BEIS,UKRI - BBSRC,20/05/2020,Research Institutes - Competitive Strategic Grant,JIC,John Innes Centre,98746933,7083.33,Research Institutes - Competitive Strategic Grant
BEIS,UKRI - BBSRC,20/05/2020,Research Institutes - Competitive Strategic Grant,Rothamsted Research,Rothamsted Research Ltd,98746947,111253.33,Research Institutes - Competitive Strategic Grant
BEIS,UKRI - BBSRC,20/05/2020,Research Institutes - Competitive Strategic Grant,Rothamsted Research,Rothamsted Research Ltd,98746947,418416.67,Research Institutes - Competitive Strategic Grant
BEIS,UKRI - BBSRC,20/05/2020,Research Institutes - Competitive Strategic Grant,Rothamsted Research,Rothamsted Research Ltd,98746947,64666.67,Research Institutes - Competitive Strategic Grant
BEIS,UKRI - BBSRC,20/05/2020,Research Institutes - Competitive Strategic Grant,Rothamsted Research,Rothamsted Research Ltd,98746947,197000.00,Research Institutes - Competitive Strategic Grant
BEIS,UKRI - BBSRC,20/05/2020,Research Institutes - Competitive Strategic Grant,Rothamsted Research,Rothamsted Research Ltd,98746947,7083.33,Research Institutes - Competitive Strategic Grant
BEIS,UKRI - BBSRC,20/05/2020,Unspecified,FG - Estates,Womble Bond Dickinson LLP,98747533,1548.00,Legal & Professional Services
BEIS,UKRI - BBSRC,20/05/2020,Research Institutes - Competitive Strategic Grant,EBRC (Roslin),University of Edinburgh,98747888,277179.92,Research Institutes - Competitive Strategic Grant
BEIS,UKRI - BBSRC,20/05/2020,Research Institutes - Competitive Strategic Grant,EBRC (Roslin),University of Edinburgh,98747888,206087.50,Research Institutes - Competitive Strategic Grant
BEIS,UKRI - BBSRC,20/05/2020,Research Institutes - Competitive Strategic Grant,EBRC (Roslin),University of Edinburgh,98747888,5833.33,Research Institutes - Competitive Strategic Grant
BEIS,UKRI - BBSRC,20/05/2020,Research Institutes - Competitive Strategic Grant,Pirbright,The Pirbright Institute,98748011,816143.92,Research Institutes - Competitive Strategic Grant
BEIS,UKRI - BBSRC,20/05/2020,Research Institutes - Competitive Strategic Grant,Pirbright,The Pirbright Institute,98748011,233969.59,Research Institutes - Competitive Strategic Grant
BEIS,UKRI - BBSRC,20/05/2020,Research Institutes - Competitive Strategic Grant,Pirbright,The Pirbright Institute,98748011,33329.00,Research Institutes - Competitive Strategic Grant
BEIS,UKRI - BBSRC,20/05/2020,Research Institutes - Competitive Strategic Grant,Pirbright,The Pirbright Institute,98748011,199807.36,Research Institutes - Competitive Strategic Grant
BEIS,UKRI - BBSRC,20/05/2020,Research Institutes - Competitive Strategic Grant,Pirbright,The Pirbright Institute,98748011,4166.13,Research Institutes - Competitive Strategic Grant
BEIS,UKRI - BBSRC,20/05/2020,Research Institutes - Competitive Strategic Grant,IBERS,Aberystwyth University,98749615,86360.99,Research Institutes - Competitive Strategic Grant
BEIS,UKRI - BBSRC,20/05/2020,Research Institutes - Competitive Strategic Grant,IBERS,Aberystwyth University,98749615,46980.67,Research Institutes - Competitive Strategic Grant
BEIS,UKRI - BBSRC,20/05/2020,Research Institutes - Competitive Strategic Grant,IBERS,Aberystwyth University,98749615,2916.67,Research Institutes - Competitive Strategic Grant
BEIS,UKRI - BBSRC,20/05/2020,Conferences & Seminars,Innovation and Skills Group CDSU,Calder Conference Ltd,98750986,3002.90,Conferences & Seminars
BEIS,UKRI - BBSRC,21/05/2020,Research Institutes - Capital Grants: Major Works,Pirbright,The Pirbright Institute,98750551,21616.30,Research Institutes - Capital Grants: Major Works
BEIS,UKRI - BBSRC,21/05/2020,Unspecified,CE - CPS,University of Southampton,98750552,9948.00,Secondments
BEIS,UKRI - BBSRC,22/05/2020,Research Institutes - Capital Grants: Major Works,Estates - Projects,EMBL (European Molecular Biology Laboratory),98745703,247953.00,Research Institutes - Capital Grants: Major Works
BEIS,UKRI - BBSRC,22/05/2020,Research Institutes - Capital Grants: Major Works,Estates - Projects,EMBL (European Molecular Biology Laboratory),98745705,496746.87,Research Institutes - Capital Grants: Major Works
BEIS,UKRI - BBSRC,22/05/2020,Other Programme Costs,FG - Estates,Rothamsted Research Ltd,98747324,403773.60,Other Programme Costs
BEIS,UKRI - BBSRC,22/05/2020,Research Grant Expenditure,FG - Accounts & Business Planning,Imperial College London,98749718,14776.64,Research Grant Expenditure
BEIS,UKRI - BBSRC,22/05/2020,Research Grant Expenditure,FG - Accounts & Business Planning,Imperial College London,98749720,18693.79,Research Grant Expenditure
BEIS,UKRI - BBSRC,22/05/2020,Other Programme Costs,IBERS,Aberystwyth University,98750430,14635.00,Other Programme Costs
BEIS,UKRI - BBSRC,22/05/2020,Research Institutes - Capital Grants: Minor Works,Pirbright,The Pirbright Institute,98750555,9537.60,Research Institutes - Capital Grants: Minor Works
BEIS,UKRI - BBSRC,22/05/2020,Research Institutes - Capital Grants: Minor Works,Pirbright,The Pirbright Institute,98750559,3081.89,Research Institutes - Capital Grants: Minor Works
BEIS,UKRI - BBSRC,22/05/2020,Research Institutes - Capital Grants: Major Works,Estates - Projects,EMBL (European Molecular Biology Laboratory),98750878,204634.57,Research Institutes - Capital Grants: Major Works
BEIS,UKRI - BBSRC,22/05/2020,Research Grant Expenditure,SPF W1 EMBL EBI,EMBL (European Molecular Biology Laboratory),98751240,76843.37,Research Grant Expenditure
BEIS,UKRI - BBSRC,22/05/2020,Research Grant Expenditure,SPF W1 EMBL EBI,EMBL (European Molecular Biology Laboratory),98751241,11458.20,Research Grant Expenditure
BEIS,UKRI - BBSRC,22/05/2020,Research Grant Expenditure,SPF W1 EMBL EBI,EMBL (European Molecular Biology Laboratory),98751279,3233.58,Research Grant Expenditure
BEIS,UKRI - BBSRC,22/05/2020,Research Grant Expenditure,SPF W1 EMBL EBI,EMBL (European Molecular Biology Laboratory),98751317,149850.00,Research Grant Expenditure
BEIS,UKRI - BBSRC,22/05/2020,T&S UK - Other Charges,Innovation and Skills Group,Unspecified,98751387,193.00,T&S UK - Other Charges
BEIS,UKRI - BBSRC,26/05/2020,Voluntary Deductions,Balance Sheet,Swindon Office Sports and Social Club,98745880,58.00,Voluntary Deductions
BEIS,UKRI - BBSRC,26/05/2020,Water,FG - Estates,Environment Agency,98751154,21.06,Water
BEIS,UKRI - BBSRC,26/05/2020,Non-staff travel and subsistance,CIMG - Council Secretariat,Calder Conference Ltd,98751322,5965.00,Non-staff travel and subsistance
BEIS,UKRI - BBSRC,26/05/2020,Non-staff travel and subsistance,Science Group - Delivery Function,Unspecified,98751624,98.60,Non-staff travel and subsistance
BEIS,UKRI - BBSRC,28/05/2020,Unspecified,European Initiatives,Edinburgh Innovations Ltd,98735874,8400.00,Legal & Professional Services
BEIS,UKRI - BBSRC,28/05/2020,Research Consumables,CE - CPS,INRAE,98751181,59500.00,Research Consumables
BEIS,UKRI - BBSRC,28/05/2020,Non-staff travel and subsistance,CE - IRU,Unspecified,98751680,960.63,Non-staff travel and subsistance
BEIS,UKRI - BBSRC,28/05/2020,Rates,JBOS - Maintenance,Swindon Borough Council,98754880,64000.00,Rates
BEIS,UKRI - BBSRC,29/05/2020,Non-staff travel and subsistance,Innovation and Skills Group CDSU,Unspecified,98753838,51.30,Non-staff travel and subsistance
BEIS,UKRI - UKRI,01/05/2020,Library Services,UKRI - Digital Data and Technology Library Services,The British Library,98690893,243.48,Library Services
BEIS,UKRI - UKRI,01/05/2020,Library Services,UKRI - Digital Data and Technology Library Services,The British Library,98690893,155.25,Library Services
BEIS,UKRI - UKRI,01/05/2020,UK - Professional Memberships & Subscriptions,UKRI - Strategy,Unspecified,98701465,188.00,UK - Professional Memberships & Subscriptions
BEIS,UKRI - UKRI,01/05/2020,Other Staff Benefits,"UKRI People, Policies and Management",EDENRED (UK GROUP) LTD,98724644,18.84,Other Staff Benefits
BEIS,UKRI - UKRI,01/05/2020,Other Staff Benefits,"UKRI People, Policies and Management",EDENRED (UK GROUP) LTD,98724663,3.62,Other Staff Benefits
BEIS,UKRI - UKRI,01/05/2020,Other Staff Benefits,"UKRI People, Policies and Management",EDENRED (UK GROUP) LTD,98724665,42.08,Other Staff Benefits
BEIS,UKRI - EPSRC,01/05/2020,Nursery Deductions,Balance Sheet,EDENRED (UK GROUP) LTD,98724667,5064.00,Nursery Deductions
BEIS,UKRI - UKRI,01/05/2020,Other Staff Benefits,"UKRI People, Policies and Management",EDENRED (UK GROUP) LTD,98724668,10.94,Other Staff Benefits
BEIS,UKRI - UKRI,01/05/2020,Other Staff Benefits,"UKRI People, Policies and Management",EDENRED (UK GROUP) LTD,98725332,4.51,Other Staff Benefits
BEIS,UKRI - UKRI,01/05/2020,T&S UK - Other Charges,UKRI - Analysis,Unspecified,98729829,45.47,T&S UK - Other Charges
BEIS,UKRI - UKRI,01/05/2020,T&S UK - Other Charges,UKRI - Strategy,Unspecified,98729838,213.48,T&S UK - Other Charges
BEIS,UKRI - UKRI,01/05/2020,Other Staff Benefits,"UKRI People, Policies and Management",EDENRED (UK GROUP) LTD,98736940,2.15,Other Staff Benefits
BEIS,UKRI - UKRI,01/05/2020,Other Staff Benefits,"UKRI People, Policies and Management",EDENRED (UK GROUP) LTD,98737501,5.82,Other Staff Benefits
BEIS,UKRI - UKRI,01/05/2020,Other Staff Benefits,"UKRI People, Policies and Management",EDENRED (UK GROUP) LTD,98737781,66.49,Other Staff Benefits
BEIS,UKRI - UKRI,01/05/2020,Other Staff Benefits,"UKRI People, Policies and Management",EDENRED (UK GROUP) LTD,98737787,37.18,Other Staff Benefits
BEIS,UKRI - UKRI,01/05/2020,Other Staff Benefits,"UKRI People, Policies and Management",EDENRED (UK GROUP) LTD,98738668,40.56,Other Staff Benefits
BEIS,UKRI - UKRI,01/05/2020,Other Staff Benefits,"UKRI People, Policies and Management",EDENRED (UK GROUP) LTD,98738819,37.18,Other Staff Benefits
BEIS,UKRI - UKRI,01/05/2020,T&S UK - Other Charges,UKRI Strategic HR Business Partners,Unspecified,98739261,74.99,T&S UK - Other Charges
BEIS,UKRI - UKRI,01/05/2020,UK - Professional Memberships & Subscriptions,UKRI Strategic HR Business Partners,Unspecified,98739261,162.00,UK - Professional Memberships & Subscriptions
BEIS,UKRI - UKRI,01/05/2020,Other Staff Benefits,"UKRI People, Policies and Management",EDENRED (UK GROUP) LTD,98740484,11.46,Other Staff Benefits
BEIS,UKRI - UKRI,01/05/2020,Computer Software Licences,UKRI - Digital Data and Technology Recharges,Chess Cybersecurity Ltd,98740548,9529.20,Computer Software Licences
BEIS,UKRI - UKRI,01/05/2020,T&S UK - Other Charges,UKRI - PSU IT Costs/BAU,Unspecified,98740781,508.75,T&S UK - Other Charges
BEIS,UKRI - UKRI,01/05/2020,Advertising & Promotion,Covid-19 website,Unspecified,98740979,2400.00,Advertising & Promotion
BEIS,UKRI - UKRI,01/05/2020,Computer Software Licences,UKRI - Digital Data and Technology BAU Costs,Softcat plc,98740998,1750.70,Computer Software Licences
BEIS,UKRI - UKRI,01/05/2020,Other Staff Benefits,"UKRI People, Policies and Management",EDENRED (UK GROUP) LTD,98741434,14.84,Other Staff Benefits
BEIS,UKRI - UKRI,01/05/2020,Computer Hardware,UKRI - Digital Data and Technology BAU Costs,Academia Ltd,98741470,273876.00,Computer Hardware
BEIS,UKRI - UKRI,01/05/2020,Computer Software Licences,UKRI - Digital Data and Technology BAU Costs,Softcat plc,98741845,184.32,Computer Software Licences
BEIS,UKRI - UKRI,01/05/2020,Other Staff Benefits,"UKRI People, Policies and Management",EDENRED (UK GROUP) LTD,98742357,2.82,Other Staff Benefits
BEIS,UKRI - UKRI,01/05/2020,Other Staff Benefits,"UKRI People, Policies and Management",EDENRED (UK GROUP) LTD,98742372,4.20,Other Staff Benefits
BEIS,UKRI - UKRI,01/05/2020,Computer Software Licences,UKRI - Digital Data and Technology BAU Costs,Phoenix Software Ltd,98742461,485.76,Computer Software Licences
BEIS,UKRI - UKRI,01/05/2020,Education Fees & Study Materials,UKRI Strategic HR Business Partners,Unspecified,98743110,37.59,Education Fees & Study Materials
BEIS,UKRI - UKRI,01/05/2020,Advertising & Promotion,UKRI - Communications Content,Unspecified,98743652,420.00,Advertising & Promotion
BEIS,UKRI - UKRI,01/05/2020,Other Staff Benefits,"UKRI People, Policies and Management",EDENRED (UK GROUP) LTD,98743659,-993.00,Other Staff Benefits
BEIS,UKRI - EPSRC,01/05/2020,Nursery Deductions,Balance Sheet,EDENRED (UK GROUP) LTD,98743660,993.00,Nursery Deductions
BEIS,UKRI - UKRI,01/05/2020,Unspecified,UKRI - JRS,Alexander Mann Solutions Ltd,98743692,3423.12,Contract Staff
BEIS,UKRI - UKRI,01/05/2020,Non-staff travel and subsistance,UKRI - GCRF Challenge Leaders,Unspecified,98743695,140.00,Non-staff travel and subsistance
BEIS,UKRI - UKRI,01/05/2020,Printing & Stationery,UKRI - Estates,RS Components,98743717,91.61,Printing & Stationery
BEIS,UKRI - UKRI,01/05/2020,Computer Software,UKRI - Overseas Office China,Foreign & Commonwealth Office,98743721,0.36,Computer Software
BEIS,UKRI - UKRI,01/05/2020,Computing Consumables,UKRI - Overseas Office China,Foreign & Commonwealth Office,98743721,0.36,Computing Consumables
BEIS,UKRI - UKRI,01/05/2020,Conferences & Seminars,UKRI - Overseas Office China,Foreign & Commonwealth Office,98743721,14.35,Conferences & Seminars
BEIS,UKRI - UKRI,01/05/2020,Unspecified,UKRI - Overseas Office China,Foreign & Commonwealth Office,98743721,0.36,Legal & Professional Services
BEIS,UKRI - UKRI,01/05/2020,Marketing & PR,UKRI - Overseas Office China,Foreign & Commonwealth Office,98743721,71.40,Marketing & PR
BEIS,UKRI - UKRI,01/05/2020,Meetings & Catering,UKRI - Overseas Office China,Foreign & Commonwealth Office,98743721,0.36,Meetings & Catering
BEIS,UKRI - UKRI,01/05/2020,Mobile Phone Costs,UKRI - Overseas Office China,Foreign & Commonwealth Office,98743721,1.43,Mobile Phone Costs
BEIS,UKRI - UKRI,01/05/2020,Non-staff travel and subsistance,UKRI - Overseas Office China,Foreign & Commonwealth Office,98743721,0.36,Non-staff travel and subsistance
BEIS,UKRI - UKRI,01/05/2020,Other Bought In Services,UKRI - Overseas Office China,Foreign & Commonwealth Office,98743721,1.08,Other Bought In Services
BEIS,UKRI - UKRI,01/05/2020,Other Staff Benefits,UKRI - Overseas Office China,Foreign & Commonwealth Office,98743721,0.36,Other Staff Benefits
BEIS,UKRI - UKRI,01/05/2020,Postage & Courier Services,UKRI - Overseas Office China,Foreign & Commonwealth Office,98743721,0.36,Postage & Courier Services
BEIS,UKRI - UKRI,01/05/2020,Printing & Stationery,UKRI - Overseas Office China,Foreign & Commonwealth Office,98743721,0.36,Printing & Stationery
BEIS,UKRI - UKRI,01/05/2020,Unspecified,UKRI - Management Reporting,Foreign & Commonwealth Office,98743721,3917.66,Secondments
BEIS,UKRI - UKRI,01/05/2020,Unspecified,UKRI - Overseas Office China,Foreign & Commonwealth Office,98743721,215.27,Secondments
BEIS,UKRI - UKRI,01/05/2020,Staff Training,UKRI - Overseas Office China,Foreign & Commonwealth Office,98743721,0.72,Staff Training
BEIS,UKRI - UKRI,01/05/2020,T&S Overseas - Subsistence,UKRI - Overseas Office China,Foreign & Commonwealth Office,98743721,14.35,T&S Overseas - Subsistence
BEIS,UKRI - UKRI,01/05/2020,T&S UK - Subsistence,UKRI - Overseas Office China,Foreign & Commonwealth Office,98743721,0.36,T&S UK - Subsistence
BEIS,UKRI - UKRI,01/05/2020,Translation Services,UKRI - Overseas Office China,Foreign & Commonwealth Office,98743721,0.36,Translation Services
BEIS,UKRI - UKRI,01/05/2020,Unspecified,"UKRI People, Policies and Management",Department for Business Energy & Industrial Strategy,98743743,11769.47,Secondments
BEIS,UKRI - UKRI,01/05/2020,Marketing & PR,UKRI - Communications Web and Intranet Service,Derek Holmes T/A Derek Holmes Media,98744077,4650.00,Marketing & PR
BEIS,UKRI - UKRI,01/05/2020,T&S UK - Other Charges,UKRI - PSU IT Costs/BAU,Unspecified,98744279,159.95,T&S UK - Other Charges
BEIS,UKRI - UKRI,01/05/2020,Unspecified,Sciencewise,3KQ Ltd,98744328,5508.00,Legal & Professional Services
BEIS,UKRI - UKRI,01/05/2020,Unspecified,UKRI - GCRF Challenge Leaders,London School of Hygiene & Tropical Medicine,98744335,21818.57,Secondments
BEIS,UKRI - Research England,01/05/2020,Non-staff travel and subsistance,RE - Research Excellence Framework (REF),Heriot Watt University,98744348,182.90,Non-staff travel and subsistance
BEIS,UKRI - UKRI,01/05/2020,Mechanical & Electrical Maintenance,UKRI - JBOS,Hendrick Heating & Plumbing Limited,98744354,4140.00,Mechanical & Electrical Maintenance
BEIS,UKRI - UKRI,01/05/2020,Advertising & Promotion,UKRI - Communications Content,Unspecified,98744389,2500.00,Advertising & Promotion
BEIS,UKRI - EPSRC,01/05/2020,Non-staff travel and subsistance,Business Improvement,Unspecified,98744402,160.00,Non-staff travel and subsistance
BEIS,UKRI - UKRI,01/05/2020,Computer Software,UKRI - Overseas Office China,Foreign & Commonwealth Office,98744409,0.24,Computer Software
BEIS,UKRI - UKRI,01/05/2020,Computing Consumables,UKRI - Overseas Office China,Foreign & Commonwealth Office,98744409,0.23,Computing Consumables
BEIS,UKRI - UKRI,01/05/2020,Conferences & Seminars,UKRI - Overseas Office China,Foreign & Commonwealth Office,98744409,9.43,Conferences & Seminars
BEIS,UKRI - UKRI,01/05/2020,Unspecified,UKRI - Overseas Office China,Foreign & Commonwealth Office,98744409,0.24,Legal & Professional Services
BEIS,UKRI - UKRI,01/05/2020,Marketing & PR,UKRI - Overseas Office China,Foreign & Commonwealth Office,98744409,46.93,Marketing & PR
BEIS,UKRI - UKRI,01/05/2020,Meetings & Catering,UKRI - Overseas Office China,Foreign & Commonwealth Office,98744409,0.24,Meetings & Catering
BEIS,UKRI - UKRI,01/05/2020,Mobile Phone Costs,UKRI - Overseas Office China,Foreign & Commonwealth Office,98744409,0.94,Mobile Phone Costs
BEIS,UKRI - UKRI,01/05/2020,Non-staff travel and subsistance,UKRI - Overseas Office China,Foreign & Commonwealth Office,98744409,0.24,Non-staff travel and subsistance
BEIS,UKRI - UKRI,01/05/2020,Other Bought In Services,UKRI - Overseas Office China,Foreign & Commonwealth Office,98744409,0.71,Other Bought In Services
BEIS,UKRI - UKRI,01/05/2020,Other Staff Benefits,UKRI - Overseas Office China,Foreign & Commonwealth Office,98744409,0.24,Other Staff Benefits
BEIS,UKRI - UKRI,01/05/2020,Postage & Courier Services,UKRI - Overseas Office China,Foreign & Commonwealth Office,98744409,0.24,Postage & Courier Services
BEIS,UKRI - UKRI,01/05/2020,Printing & Stationery,UKRI - Overseas Office China,Foreign & Commonwealth Office,98744409,0.24,Printing & Stationery
BEIS,UKRI - UKRI,01/05/2020,Unspecified,UKRI - Management Reporting,Foreign & Commonwealth Office,98744409,8154.11,Secondments
BEIS,UKRI - UKRI,01/05/2020,Unspecified,UKRI - Overseas Office China,Foreign & Commonwealth Office,98744409,141.46,Secondments
BEIS,UKRI - UKRI,01/05/2020,Staff Training,UKRI - Overseas Office China,Foreign & Commonwealth Office,98744409,0.47,Staff Training
BEIS,UKRI - UKRI,01/05/2020,T&S Overseas - Subsistence,UKRI - Overseas Office China,Foreign & Commonwealth Office,98744409,9.43,T&S Overseas - Subsistence
BEIS,UKRI - UKRI,01/05/2020,T&S UK - Subsistence,UKRI - Overseas Office China,Foreign & Commonwealth Office,98744409,0.24,T&S UK - Subsistence
BEIS,UKRI - UKRI,01/05/2020,Translation Services,UKRI - Overseas Office China,Foreign & Commonwealth Office,98744409,0.24,Translation Services
BEIS,UKRI - UKRI,01/05/2020,Library Services,UKRI - Digital Data and Technology Library Services,Unspecified,98744414,482.60,Library Services
BEIS,UKRI - UKRI,01/05/2020,Building Rents,UKRI - Overseas Office China,Foreign & Commonwealth Office,98744416,17973.58,Building Rents
BEIS,UKRI - UKRI,01/05/2020,Building Rents,UKRI - Overseas Office India,Foreign & Commonwealth Office,98744416,38619.29,Building Rents
BEIS,UKRI - UKRI,01/05/2020,Building Rents,UKRI - Overseas Office USA,Foreign & Commonwealth Office,98744416,36739.42,Building Rents
BEIS,UKRI - UKRI,01/05/2020,Design services,UKRI - JRS,Vincent Design Consultants Ltd,98744417,585.00,Design services
BEIS,UKRI - Research England,01/05/2020,Staff Training,RE - Operations and Private Office,Oxentia Ltd,98744427,360.00,Staff Training
BEIS,UKRI - UKRI,01/05/2020,T&S UK - Mileage,UKRI - Communications Projects and Services,Unspecified,98744443,6.30,T&S UK - Mileage
BEIS,UKRI - UKRI,01/05/2020,T&S UK - Other Charges,UKRI - Communications Projects and Services,Unspecified,98744443,46.78,T&S UK - Other Charges
BEIS,UKRI - UKRI,01/05/2020,T&S UK - Other Charges,UKRI - Secretariat,Unspecified,98744444,123.60,T&S UK - Other Charges
BEIS,UKRI - UKRI,01/05/2020,T&S UK - Other Charges,UKRI - Secretariat,Unspecified,98744445,53.97,T&S UK - Other Charges
BEIS,UKRI - UKRI,01/05/2020,T&S UK - Other Charges,UKRI Strategic HR Business Partners,Unspecified,98744446,124.92,T&S UK - Other Charges
BEIS,UKRI - UKRI,01/05/2020,T&S UK - Other Charges,UKRI - Project Management Office,Unspecified,98744447,143.98,T&S UK - Other Charges
BEIS,UKRI - UKRI,01/05/2020,T&S UK - Other Charges,UKRI - Assurance,Unspecified,98744448,27.99,T&S UK - Other Charges
BEIS,UKRI - UKRI,01/05/2020,UK - Professional Memberships & Subscriptions,UKRI - Assurance,Unspecified,98744448,250.00,UK - Professional Memberships & Subscriptions
BEIS,UKRI - EPSRC,01/05/2020,T&S UK - Other Charges,Directors and Deputy Directors,Unspecified,98744450,196.08,T&S UK - Other Charges
BEIS,UKRI - EPSRC,01/05/2020,T&S UK - Parking Tolls Congestion Charges,Directors and Deputy Directors,Unspecified,98744451,8.00,T&S UK - Parking Tolls Congestion Charges
BEIS,UKRI - EPSRC,01/05/2020,T&S UK - Public Transport,Directors and Deputy Directors,Unspecified,98744451,4.90,T&S UK - Public Transport
BEIS,UKRI - EPSRC,01/05/2020,T&S UK - Subsistence,Directors and Deputy Directors,Unspecified,98744451,10.75,T&S UK - Subsistence
BEIS,UKRI - UKRI,01/05/2020,T&S UK - Other Charges,UKRI - Communications Business Partners,Unspecified,98744452,22.97,T&S UK - Other Charges
BEIS,UKRI - UKRI,01/05/2020,T&S UK - Other Charges,UKRI - Research Funding Support,Unspecified,98744453,195.31,T&S UK - Other Charges
BEIS,UKRI - UKRI,01/05/2020,T&S UK - Other Charges,UKRI - Research Funding Support,Unspecified,98744454,18.00,T&S UK - Other Charges
BEIS,UKRI - UKRI,04/05/2020,Corporate Events,UKRI - Communications Content,Fig Office Network Ltd T/A Fig Offices,98701236,99.90,Corporate Events
BEIS,UKRI - UKRI,04/05/2020,Health & Safety (inc. Medicals & Opticians),UKRI - JBOS,AM Health & Safety Ltd,98702758,456.00,Health & Safety (inc. Medicals & Opticians)
BEIS,UKRI - UKRI,04/05/2020,Health & Safety (inc. Medicals & Opticians),UKRI - JBOS,AM Health & Safety Ltd,98702760,189.00,Health & Safety (inc. Medicals & Opticians)
BEIS,UKRI - UKRI,04/05/2020,Health & Safety (inc. Medicals & Opticians),UKRI - JBOS,AM Health & Safety Ltd,98706480,252.00,Health & Safety (inc. Medicals & Opticians)
BEIS,UKRI - UKRI,04/05/2020,Health & Safety (inc. Medicals & Opticians),UKRI - JBOS,AM Health & Safety Ltd,98713093,315.00,Health & Safety (inc. Medicals & Opticians)
BEIS,UKRI - UKRI,04/05/2020,Marketing & PR,UKRI - Transformation,The Fifth Business (Scotland) Ltd,98728526,34076.60,Marketing & PR
BEIS,UKRI - UKRI,04/05/2020,Health & Safety (inc. Medicals & Opticians),UKRI - JBOS,AM Health & Safety Ltd,98729777,99.00,Health & Safety (inc. Medicals & Opticians)
BEIS,UKRI - UKRI,04/05/2020,Marketing & PR,UKRI - Transformation,The Fifth Business (Scotland) Ltd,98737521,17415.00,Marketing & PR
BEIS,UKRI - UKRI,04/05/2020,T&S UK - Other Charges,UKRI - Project Management Office,Unspecified,98739259,192.95,T&S UK - Other Charges
BEIS,UKRI - UKRI,04/05/2020,Unspecified,UKRI - Governance,Alexander Mann Solutions Ltd,98740436,1260.12,Contract Staff
BEIS,UKRI - UKRI,04/05/2020,T&S UK - Other Charges,"UKRI - Data Policy, Governance and MI",Unspecified,98741239,96.38,T&S UK - Other Charges
BEIS,UKRI - UKRI,04/05/2020,Hardware/Software Maintenance,UKRI - Digital Data and Technology Recharges,Dell Corporation Ltd,98741616,3222.98,Hardware/Software Maintenance
BEIS,UKRI - UKRI,04/05/2020,Unspecified,UKRI - Governance,Alexander Mann Solutions Ltd,98742524,2520.24,Contract Staff
BEIS,UKRI - UKRI,04/05/2020,Computer Hardware,UKRI - Strategic Finance Business Partners,Dell Corporation Ltd,98742592,38.02,Computer Hardware
BEIS,UKRI - UKRI,04/05/2020,Unspecified,UKRI - JRS,Getty Images (UK) Ltd,98742611,14880.00,Legal & Professional Services
BEIS,UKRI - UKRI,04/05/2020,Staff Training,UKRI - GCRF Delivery,BRITISH OVERSEAS NGOS FOR DEVELOPMENT (BOND),98742780,41.60,Staff Training
BEIS,UKRI - UKRI,04/05/2020,Staff Training,UKRI - GCRF Delivery,BRITISH OVERSEAS NGOS FOR DEVELOPMENT (BOND),98742780,-2400.00,Staff Training
BEIS,UKRI - UKRI,04/05/2020,Staff Training,UKRI - GCRF Delivery,BRITISH OVERSEAS NGOS FOR DEVELOPMENT (BOND),98742781,2358.40,Staff Training
BEIS,UKRI - UKRI,04/05/2020,Unspecified,UKRI - Governance,Alexander Mann Solutions Ltd,98742994,1260.12,Contract Staff
BEIS,UKRI - UKRI,04/05/2020,Unspecified,UKRI - Communications Web and Intranet Service,Reed Specialist Recruitment Ltd,98743452,911.11,Contract Staff
BEIS,UKRI - UKRI,04/05/2020,Other Staff Benefits,"UKRI People, Policies and Management",Health Assured Ltd,98743775,396.00,Other Staff Benefits
BEIS,UKRI - UKRI,04/05/2020,Other Staff Benefits,"UKRI People, Policies and Management",Health Assured Ltd,98743776,132.00,Other Staff Benefits
BEIS,UKRI - UKRI,04/05/2020,Computer Hardware,UKRI - Procurement and Commercial,Dell Corporation Ltd,98744353,13.25,Computer Hardware
BEIS,UKRI - UKRI,04/05/2020,Computer Hardware,UKRI - Procurement and Commercial,Dell Corporation Ltd,98744353,8.58,Computer Hardware
BEIS,UKRI - UKRI,04/05/2020,IT / Computing Support Services,UKRI - Digital Data and Technology BAU Costs,Natterbox Ltd,98744406,0.11,IT / Computing Support Services
BEIS,UKRI - UKRI,04/05/2020,Advertising & Promotion,UKRI - Communications Content,CASS Productions Ltd,98744432,8182.80,Advertising & Promotion
BEIS,UKRI - UKRI,04/05/2020,Unspecified,UKRI - Transformation,Alexander Mann Solutions Ltd,98744504,4095.36,Contract Staff
BEIS,UKRI - UKRI,04/05/2020,Unspecified,UKRI - Governance,Alexander Mann Solutions Ltd,98744529,1890.18,Contract Staff
BEIS,UKRI - UKRI,04/05/2020,Unspecified,UKRI - Financial Accounting,Alexander Mann Solutions Ltd,98744531,2771.70,Contract Staff
BEIS,UKRI - UKRI,04/05/2020,Unspecified,UKRI People and Organisation Development,Alexander Mann Solutions Ltd,98744532,4312.62,Agency Staff
BEIS,UKRI - UKRI,04/05/2020,Unspecified,UKRI People and Organisation Development,Alexander Mann Solutions Ltd,98744534,3000.00,Agency Staff
BEIS,UKRI - UKRI,04/05/2020,Unspecified,UKRI People and Organisation Development,Alexander Mann Solutions Ltd,98744539,5400.00,Agency Staff
BEIS,UKRI - UKRI,04/05/2020,Unspecified,UKRI - PSU IT Costs/BAU,Alexander Mann Solutions Ltd,98744540,3911.16,Contract Staff
BEIS,UKRI - UKRI,04/05/2020,Unspecified,Project 2025,Alexander Mann Solutions Ltd,98744542,2205.18,Agency Staff
BEIS,UKRI - UKRI,04/05/2020,Unspecified,UKRI - Management Reporting,Alexander Mann Solutions Ltd,98744544,902.35,Agency Staff
BEIS,UKRI - UKRI,04/05/2020,Computer Software Licences,UKRI - Information Governance,Fivium Ltd,98744557,180.00,Computer Software Licences
BEIS,UKRI - UKRI,04/05/2020,Computer Software Licences,UKRI - Information Governance,Fivium Ltd,98744557,3360.00,Computer Software Licences
BEIS,UKRI - UKRI,04/05/2020,Library Services,UKRI - Digital Data and Technology Library Services,The British Library,98744586,346.12,Library Services
BEIS,UKRI - UKRI,04/05/2020,Marketing & PR,UKRI - Communications Content,Rebecca Battman Ltd,98744700,2160.00,Marketing & PR
BEIS,UKRI - UKRI,04/05/2020,Unspecified,UKRI - Estates,Jones Lang LaSalle Ltd,98744712,53580.00,Legal & Professional Services
BEIS,UKRI - UKRI,04/05/2020,Mobile Phone Costs,UKRI - Digital Data and Technology BAU Costs,Telefonica UK Ltd (O2),98744818,1310.43,Mobile Phone Costs
BEIS,UKRI - UKRI,04/05/2020,Mobile Phone Costs,UKRI - Digital Data and Technology BAU Costs,Telefonica UK Ltd (O2),98744820,983.90,Mobile Phone Costs
BEIS,UKRI - UKRI,04/05/2020,Mobile Phone Costs,UKRI - Digital Data and Technology BAU Costs,Telefonica UK Ltd (O2),98744821,3528.77,Mobile Phone Costs
BEIS,UKRI - UKRI,04/05/2020,Mobile Phone Costs,UKRI - Digital Data and Technology BAU Costs,Telefonica UK Ltd (O2),98744825,1129.78,Mobile Phone Costs
BEIS,UKRI - UKRI,04/05/2020,Mobile Phone Costs,UKRI - Digital Data and Technology BAU Costs,Telefonica UK Ltd (O2),98744826,6.00,Mobile Phone Costs
BEIS,UKRI - UKRI,04/05/2020,Mobile Phone Costs,UKRI - Digital Data and Technology BAU Costs,Telefonica UK Ltd (O2),98744835,724.77,Mobile Phone Costs
BEIS,UKRI - UKRI,04/05/2020,UK - Professional Memberships & Subscriptions,UKRI - Strategic Finance Business Partners,Unspecified,98744848,147.00,UK - Professional Memberships & Subscriptions
BEIS,UKRI - Research England,04/05/2020,T&S UK - Other Charges,RE - Knowledge Exchange,Unspecified,98744849,200.52,T&S UK - Other Charges
BEIS,UKRI - EPSRC,04/05/2020,T&S UK - Other Charges,Programme Delivery Impact,Unspecified,98744850,104.40,T&S UK - Other Charges
BEIS,UKRI - EPSRC,04/05/2020,T&S UK - Other Charges,Programme Delivery Impact,Unspecified,98744851,149.99,T&S UK - Other Charges
BEIS,UKRI - UKRI,04/05/2020,T&S UK - Other Charges,UKRI - Project Management Office,Unspecified,98744852,535.46,T&S UK - Other Charges
BEIS,UKRI - EPSRC,04/05/2020,T&S UK - Other Charges,Programme Delivery Maths,Unspecified,98744853,343.26,T&S UK - Other Charges
BEIS,UKRI - EPSRC,04/05/2020,T&S UK - Other Charges,Programme Delivery Quantum Technology,Unspecified,98744856,39.62,T&S UK - Other Charges
BEIS,UKRI - EPSRC,04/05/2020,T&S UK - Other Charges,Programme Delivery Digital Economy,Unspecified,98744857,104.40,T&S UK - Other Charges
BEIS,UKRI - Research England,04/05/2020,T&S UK - Other Charges,RE - Research Excellence Framework (REF),Unspecified,98744861,286.92,T&S UK - Other Charges
BEIS,UKRI - EPSRC,04/05/2020,T&S UK - Other Charges,Programme Delivery Engineering,Unspecified,98744862,330.51,T&S UK - Other Charges
BEIS,UKRI - UKRI,04/05/2020,T&S UK - Other Charges,UKRI - Project Management Office,Unspecified,98744863,149.99,T&S UK - Other Charges
BEIS,UKRI - UKRI,04/05/2020,UK - Professional Memberships & Subscriptions,UKRI - Project Management Office,Unspecified,98744864,110.40,UK - Professional Memberships & Subscriptions
BEIS,UKRI - UKRI,04/05/2020,Health & Safety (inc. Medicals & Opticians),UKRI - JSS,Unspecified,98745136,-36.50,Health & Safety (inc. Medicals & Opticians)
BEIS,UKRI - EPSRC,05/05/2020,Photocopy Costs,JRS,Canon (UK) Ltd,98662444,-37.80,Photocopy Costs
BEIS,UKRI - EPSRC,05/05/2020,Photocopy Costs,JRS,Canon (UK) Ltd,98662444,-189.00,Photocopy Costs
BEIS,UKRI - EPSRC,05/05/2020,Hardware/Software Maintenance,JRS,Canon (UK) Ltd,98662446,-3388.14,Hardware/Software Maintenance
BEIS,UKRI - EPSRC,05/05/2020,Hardware/Software Maintenance,JRS,Canon (UK) Ltd,98662449,-3388.14,Hardware/Software Maintenance
BEIS,UKRI - UKRI,05/05/2020,IT / Computing Support Services,UKRI - Digital Data and Technology BAU Costs,UKRI - Medical Research Council,98713868,388648.99,IT / Computing Support Services
BEIS,UKRI - UKRI,05/05/2020,Computer Software,UKRI - Digital Data and Technology BAU Costs,Zoom Video Communications Inc,98716577,8402.60,Computer Software
BEIS,UKRI - UKRI,05/05/2020,Computer Software,UKRI - Digital Data and Technology BAU Costs,Zoom Video Communications Inc,98716577,141265.40,Computer Software
BEIS,UKRI - UKRI,05/05/2020,Meetings & Catering,UKRI - Estates,Abbey Business Interiors Ltd,98727069,1136.40,Meetings & Catering
BEIS,UKRI - UKRI,05/05/2020,Printing & Stationery,UKRI - Estates,Paperstone Ltd,98727394,134.37,Printing & Stationery
BEIS,UKRI - UKRI,05/05/2020,T&S UK - Public Transport,UKRI - International,Unspecified,98729831,9.00,T&S UK - Public Transport
BEIS,UKRI - UKRI,05/05/2020,T&S UK - Subsistence,UKRI - International,Unspecified,98729831,6.60,T&S UK - Subsistence
BEIS,UKRI - UKRI,05/05/2020,T&S UK - Subsistence,UKRI - International,Unspecified,98729831,3.60,T&S UK - Subsistence
BEIS,UKRI - UKRI,05/05/2020,T&S UK - Subsistence,UKRI - International,Unspecified,98729831,5.00,T&S UK - Subsistence
BEIS,UKRI - EPSRC,05/05/2020,T&S UK - Other Charges,AI and Robotics OpEx,Unspecified,98732696,236.41,T&S UK - Other Charges
BEIS,UKRI - UKRI,05/05/2020,T&S UK - Subsistence,UKRI - Private Office,Unspecified,98738137,58.95,T&S UK - Subsistence
BEIS,UKRI - UKRI,05/05/2020,T&S UK - Other Charges,UKRI - International,Unspecified,98741939,85.99,T&S UK - Other Charges
BEIS,UKRI - UKRI,05/05/2020,T&S UK - Other Charges,UKRI - Risk and Counter Fraud,Unspecified,98741944,318.25,T&S UK - Other Charges
BEIS,UKRI - UKRI,05/05/2020,T&S UK - Other Charges,UKRI - International,Unspecified,98741945,294.79,T&S UK - Other Charges
BEIS,UKRI - UKRI,05/05/2020,Health & Safety (inc. Medicals & Opticians),UKRI Strategic HR Business Partners,Action on Hearing Loss,98742207,1074.00,Health & Safety (inc. Medicals & Opticians)
BEIS,UKRI - UKRI,05/05/2020,Computer Software,UKRI - Digital Data and Technology BAU Costs,Academia Ltd,98742891,46640.70,Computer Software
BEIS,UKRI - UKRI,05/05/2020,Computer Software,UKRI - Digital Data and Technology BAU Costs,Academia Ltd,98742891,2818.80,Computer Software
BEIS,UKRI - UKRI,05/05/2020,Marketing & PR,UKRI - Communications Web and Intranet Service,Reed Specialist Recruitment Ltd,98743454,1057.73,Marketing & PR
BEIS,UKRI - EPSRC,05/05/2020,Capital Grants & Equipment to HEIs,NC Infrastructure,UKRI - Medical Research Council,98743757,-9671.04,Capital Grants & Equipment to HEIs
BEIS,UKRI - UKRI,05/05/2020,Other Bought In Services,UKRI - Corporate Services,UK Shared Business Services Ltd,98743762,2043049.00,Other Bought In Services
BEIS,UKRI - UKRI,05/05/2020,Marketing & PR,UKRI - Communications Content,Phi Inc Ltd,98743786,600.00,Marketing & PR
BEIS,UKRI - UKRI,05/05/2020,T&S UK - Other Charges,UKRI - Project Management Office,Unspecified,98744276,149.98,T&S UK - Other Charges
BEIS,UKRI - Research England,05/05/2020,Meetings & Catering,RE - Executive Group,Calder Conference Ltd,98744390,-138.50,Meetings & Catering
BEIS,UKRI - UKRI,05/05/2020,Unspecified,UKRI - Digital Data and Technology BAU Costs,JC Web Services Ltd,98744588,7800.00,Contract Staff
BEIS,UKRI - UKRI,05/05/2020,Unspecified,UKRI - PSU IT Costs/BAU,JC Web Services Ltd,98744588,2400.00,Contract Staff
BEIS,UKRI - UKRI,05/05/2020,Marketing & PR,UKRI - Communications Projects and Services,Rebecca Battman Ltd,98744695,341.40,Marketing & PR
BEIS,UKRI - UKRI,05/05/2020,Marketing & PR,UKRI - Communications Projects and Services,Rebecca Battman Ltd,98744699,292.50,Marketing & PR
BEIS,UKRI - UKRI,05/05/2020,Unspecified,UKRI - Digital Data and Technology BAU Costs,Highplaces Consulting Ltd,98744713,12600.00,Contract Staff
BEIS,UKRI - UKRI,05/05/2020,Non-staff travel and subsistance,UKRI - Global Engagement,Unspecified,98744916,237.84,Non-staff travel and subsistance
BEIS,UKRI - UKRI,05/05/2020,Unspecified,Reforming Our Business,Butler Meridian Ltd,98744922,15960.00,Legal & Professional Services
BEIS,UKRI - EPSRC,05/05/2020,Meetings & Catering,Programme Delivery Infrastructure,Calder Conference Ltd,98745044,460.01,Meetings & Catering
BEIS,UKRI - EPSRC,05/05/2020,Corporate Events,Governance and Planning,Calder Conference Ltd,98745047,10049.53,Corporate Events
BEIS,UKRI - EPSRC,05/05/2020,Conferences & Seminars,SPF - NICER OpEx,Calder Conference Ltd,98745048,418.78,Conferences & Seminars
BEIS,UKRI - EPSRC,05/05/2020,Corporate Events,SPF - NICER OpEx,Calder Conference Ltd,98745048,7335.60,Corporate Events
BEIS,UKRI - UKRI,05/05/2020,Unspecified,UKRI - Digital Data and Technology Project Costs,TMI Systems Ltd,98745067,2988.00,Legal & Professional Services
BEIS,UKRI - UKRI,05/05/2020,Postage & Courier Services,UKRI - Digital Data and Technology BAU Costs,Logicalis Uk Ltd,98745069,72993.84,Postage & Courier Services
BEIS,UKRI - UKRI,05/05/2020,Catering Contracts,UKRI - Estates,BFS Group Ltd t/a Bidfood,98745077,89.97,Catering Contracts
BEIS,UKRI - UKRI,05/05/2020,Meetings & Catering,UKRI - Estates,BFS Group Ltd t/a Bidfood,98745077,13.57,Meetings & Catering
BEIS,UKRI - EPSRC,05/05/2020,Fees (Including College Members),EDI and People,Unspecified,98745081,160.00,Fees (Including College Members)
BEIS,UKRI - EPSRC,05/05/2020,Fees (Including College Members),EDI and People,Unspecified,98745082,160.00,Fees (Including College Members)
BEIS,UKRI - EPSRC,05/05/2020,Fees (Including College Members),EDI and People,Unspecified,98745083,160.00,Fees (Including College Members)
BEIS,UKRI - EPSRC,05/05/2020,Fees (Including College Members),Business Improvement,Unspecified,98745084,320.00,Fees (Including College Members)
BEIS,UKRI - EPSRC,05/05/2020,Fees (Including College Members),Business Improvement,Unspecified,98745085,320.00,Fees (Including College Members)
BEIS,UKRI - EPSRC,05/05/2020,Non-staff travel and subsistance,Programme Delivery Digital Economy,Unspecified,98745087,181.60,Non-staff travel and subsistance
BEIS,UKRI - EPSRC,05/05/2020,Fees (Including College Members),Programme Delivery Digital Economy,Unspecified,98745088,160.00,Fees (Including College Members)
BEIS,UKRI - UKRI,05/05/2020,Postage & Courier Services,UKRI - Digital Data and Technology BAU Costs,Logicalis Uk Ltd,98745112,27403.33,Postage & Courier Services
BEIS,UKRI - UKRI,05/05/2020,T&S UK - Vehicle Hire,UKRI - Communications Projects and Services,Enterprise Rent-A-Car UK Ltd,98745158,55.00,T&S UK - Vehicle Hire
BEIS,UKRI - UKRI,05/05/2020,Postage & Courier Services,UKRI - Digital Data and Technology BAU Costs,Logicalis Uk Ltd,98745161,23585.96,Postage & Courier Services
BEIS,UKRI - UKRI,05/05/2020,Recruitment Costs,UKRI People and Organisation Development,Agenda Resource Management Ltd,98745179,56.11,Recruitment Costs
BEIS,UKRI - UKRI,05/05/2020,Recruitment Costs,UKRI People and Organisation Development,Agenda Resource Management Ltd,98745181,56.11,Recruitment Costs
BEIS,UKRI - UKRI,05/05/2020,Rates,UKRI - Estates,Stamford Street Tenant Ltd T/A Weework,98745195,55344.00,Rates
BEIS,UKRI - UKRI,05/05/2020,T&S UK - Other Charges,UKRI - Human Resources Support,Unspecified,98745204,139.98,T&S UK - Other Charges
BEIS,UKRI - UKRI,05/05/2020,T&S UK - Other Charges,UKRI - International,Unspecified,98745205,66.98,T&S UK - Other Charges
BEIS,UKRI - EPSRC,05/05/2020,T&S UK - Other Charges,Programme Delivery Manufacturing,Unspecified,98745210,185.35,T&S UK - Other Charges
BEIS,UKRI - EPSRC,05/05/2020,T&S UK - Other Charges,Circular Economy OpEx,Unspecified,98745211,295.96,T&S UK - Other Charges
BEIS,UKRI - UKRI,05/05/2020,T&S UK - Other Charges,UKRI - Digital Data and Technology BAU Costs,Unspecified,98745214,39.99,T&S UK - Other Charges
BEIS,UKRI - UKRI,05/05/2020,Library Services,UKRI - Digital Data and Technology Library Services,The British Library,98745817,185.53,Library Services
BEIS,UKRI - UKRI,05/05/2020,Library Services,UKRI - Digital Data and Technology Library Services,The British Library,98745817,27.05,Library Services
BEIS,UKRI - UKRI,05/05/2020,T&S UK - Other Charges,UKRI Strategic HR Business Partners,Unspecified,98745848,31.48,T&S UK - Other Charges
BEIS,UKRI - UKRI,05/05/2020,Fees (Including College Members),UKRI - GCRF Delivery,Unspecified,98745872,1026.00,Fees (Including College Members)
BEIS,UKRI - Research England,05/05/2020,Council & Committee Honoraria,RE - Research Excellence Framework (REF),Sheffield Hallam University,98745910,1875.00,Council & Committee Honoraria
BEIS,UKRI - UKRI,05/05/2020,Postage & Courier Services,UKRI - Digital Data and Technology BAU Costs,Logicalis Uk Ltd,98745916,70353.71,Postage & Courier Services
BEIS,UKRI - UKRI,05/05/2020,Postage & Courier Services,UKRI - Digital Data and Technology BAU Costs,Logicalis Uk Ltd,98745917,116710.63,Postage & Courier Services
BEIS,UKRI - UKRI,05/05/2020,Postage & Courier Services,UKRI - Digital Data and Technology BAU Costs,Logicalis Uk Ltd,98745963,188893.21,Postage & Courier Services
BEIS,UKRI - UKRI,05/05/2020,Health & Safety (inc. Medicals & Opticians),UKRI - JRS,Unspecified,98746026,-20.00,Health & Safety (inc. Medicals & Opticians)
BEIS,UKRI - EPSRC,06/05/2020,Consumables,JRS,Canon (UK) Ltd,98662441,65.38,Consumables
BEIS,UKRI - EPSRC,06/05/2020,Consumables,JRS,Canon (UK) Ltd,98662441,51.55,Consumables
BEIS,UKRI - UKRI,06/05/2020,Consumables,UKRI - JRS,Canon (UK) Ltd,98662441,154.65,Consumables
BEIS,UKRI - UKRI,06/05/2020,Computing Consumables,UKRI - PSU IT Costs/BAU,Canon (UK) Ltd,98674294,1440.00,Computing Consumables
BEIS,UKRI - UKRI,06/05/2020,Computing Consumables,UKRI - PSU IT Costs/BAU,Canon (UK) Ltd,98674298,1310.40,Computing Consumables
BEIS,UKRI - UKRI,06/05/2020,Hardware/Software Maintenance,UKRI - JRS,Canon (UK) Ltd,98676023,250.04,Hardware/Software Maintenance
BEIS,UKRI - UKRI,06/05/2020,Consumables,UKRI - JRS,Canon (UK) Ltd,98678916,196.13,Consumables
BEIS,UKRI - UKRI,06/05/2020,Consumables,UKRI - JRS,Canon (UK) Ltd,98696769,145.37,Consumables
BEIS,UKRI - UKRI,06/05/2020,Consumables,UKRI - JRS,Canon (UK) Ltd,98696783,675.14,Consumables
BEIS,UKRI - UKRI,06/05/2020,Consumables,UKRI - JRS,Canon (UK) Ltd,98699033,-35.66,Consumables
BEIS,UKRI - UKRI,06/05/2020,Consumables,UKRI - JRS,Canon (UK) Ltd,98713529,111.14,Consumables
BEIS,UKRI - UKRI,06/05/2020,Consumables,UKRI - JRS,Canon (UK) Ltd,98713529,265.25,Consumables
BEIS,UKRI - UKRI,06/05/2020,Consumables,UKRI - JRS,Canon (UK) Ltd,98724616,321.12,Consumables
BEIS,UKRI - UKRI,06/05/2020,Unspecified,UKRI - Digital Data and Technology BAU Costs,Ecometrica Ltd,98727577,5746.00,IT Cloud Services
BEIS,UKRI - UKRI,06/05/2020,Consumables,UKRI - JRS,Canon (UK) Ltd,98728877,190.75,Consumables
BEIS,UKRI - UKRI,06/05/2020,Unspecified,UKRI - Digital Data and Technology BAU Costs,Ecometrica Ltd,98728983,24000.00,IT Cloud Services
BEIS,UKRI - UKRI,06/05/2020,Hardware/Software Maintenance,UKRI - JRS,Canon (UK) Ltd,98735621,250.04,Hardware/Software Maintenance
BEIS,UKRI - UKRI,06/05/2020,Advertising & Promotion,UKRI - Communications Content,Unspecified,98735805,2880.00,Advertising & Promotion
BEIS,UKRI - UKRI,06/05/2020,T&S UK - Other Charges,"UKRI - Data Policy, Governance and MI",Unspecified,98738539,153.17,T&S UK - Other Charges
BEIS,UKRI - UKRI,06/05/2020,Advertising & Promotion,UKRI - Communications Content,GO GENIE LTD T/A NETLEADZ,98739080,10671.56,Advertising & Promotion
BEIS,UKRI - UKRI,06/05/2020,Telecoms - Non Capital Hardware Costs,UKRI - Digital Data and Technology BAU Costs,Telefonica UK Ltd (O2),98739319,318.29,Telecoms - Non Capital Hardware Costs
BEIS,UKRI - UKRI,06/05/2020,Telecoms - Non Capital Hardware Costs,UKRI - Digital Data and Technology BAU Costs,Telefonica UK Ltd (O2),98739322,318.29,Telecoms - Non Capital Hardware Costs
BEIS,UKRI - UKRI,06/05/2020,Telecoms - Non Capital Hardware Costs,UKRI - Digital Data and Technology BAU Costs,Telefonica UK Ltd (O2),98740205,123.60,Telecoms - Non Capital Hardware Costs
BEIS,UKRI - UKRI,06/05/2020,Telecoms - Non Capital Hardware Costs,UKRI - Digital Data and Technology BAU Costs,Telefonica UK Ltd (O2),98740373,318.29,Telecoms - Non Capital Hardware Costs
BEIS,UKRI - UKRI,06/05/2020,Telecoms - Non Capital Hardware Costs,UKRI - Digital Data and Technology Recharges,Telefonica UK Ltd (O2),98740374,774.00,Telecoms - Non Capital Hardware Costs
BEIS,UKRI - UKRI,06/05/2020,Telecoms - Non Capital Hardware Costs,UKRI - Digital Data and Technology BAU Costs,Telefonica UK Ltd (O2),98740379,292.80,Telecoms - Non Capital Hardware Costs
BEIS,UKRI - UKRI,06/05/2020,Telecoms - Non Capital Hardware Costs,UKRI - Digital Data and Technology BAU Costs,Telefonica UK Ltd (O2),98740382,318.29,Telecoms - Non Capital Hardware Costs
BEIS,UKRI - UKRI,06/05/2020,Telecoms - Non Capital Hardware Costs,UKRI - Digital Data and Technology BAU Costs,Telefonica UK Ltd (O2),98740408,318.29,Telecoms - Non Capital Hardware Costs
BEIS,UKRI - UKRI,06/05/2020,Telecoms - Non Capital Hardware Costs,UKRI - Digital Data and Technology BAU Costs,Telefonica UK Ltd (O2),98740427,318.29,Telecoms - Non Capital Hardware Costs
BEIS,UKRI - UKRI,06/05/2020,T&S UK - Other Charges,UKRI - Public Engagement,Unspecified,98742902,268.69,T&S UK - Other Charges
BEIS,UKRI - UKRI,06/05/2020,Unspecified,UKRI - Funding Service,Alexander Mann Solutions Ltd,98743765,9415.27,Contract Staff
BEIS,UKRI - UKRI,06/05/2020,T&S UK - Other Charges,UKRI - Project Management Office,Unspecified,98744043,243.33,T&S UK - Other Charges
BEIS,UKRI - UKRI,06/05/2020,Recruitment Costs,UKRI - Funding Service,Alexander Mann Solutions Ltd,98744488,2463.70,Recruitment Costs
BEIS,UKRI - UKRI,06/05/2020,Unspecified,UKRI - Funding Service,Alexander Mann Solutions Ltd,98744492,5820.55,Contract Staff
BEIS,UKRI - UKRI,06/05/2020,Unspecified,UKRI - Digital Data and Technology Project Costs,Alexander Mann Solutions Ltd,98744499,1005.00,Contract Staff
BEIS,UKRI - UKRI,06/05/2020,Unspecified,UKRI - Funding Service,Alexander Mann Solutions Ltd,98744503,5235.36,Contract Staff
BEIS,UKRI - UKRI,06/05/2020,Recruitment Costs,UKRI - Funding Service,Alexander Mann Solutions Ltd,98744527,4619.52,Recruitment Costs
BEIS,UKRI - UKRI,06/05/2020,Unspecified,UKRI - Digital Data and Technology Project Costs,Alexander Mann Solutions Ltd,98744536,3387.66,Contract Staff
BEIS,UKRI - UKRI,06/05/2020,Unspecified,UKRI - Funding Service,Alexander Mann Solutions Ltd,98744548,4619.52,Contract Staff
BEIS,UKRI - UKRI,06/05/2020,Computer Software Licences,UKRI - Digital Data and Technology BAU Costs,Affinity Digital (Technology) Ltd,98744687,11352.60,Computer Software Licences
BEIS,UKRI - UKRI,06/05/2020,Marketing & PR,UKRI - Communications Web and Intranet Service,Derek Holmes T/A Derek Holmes Media,98744873,1862.50,Marketing & PR
BEIS,UKRI - UKRI,06/05/2020,Marketing & PR,Covid-19 website,Unspecified,98745154,2400.00,Marketing & PR
BEIS,UKRI - UKRI,06/05/2020,Recruitment Costs,UKRI People and Organisation Development,Agenda Resource Management Ltd,98745180,153.91,Recruitment Costs
BEIS,UKRI - UKRI,06/05/2020,Recruitment Costs,UKRI People and Organisation Development,Agenda Resource Management Ltd,98745182,153.91,Recruitment Costs
BEIS,UKRI - UKRI,06/05/2020,Recruitment Costs,UKRI People and Organisation Development,Agenda Resource Management Ltd,98745184,153.91,Recruitment Costs
BEIS,UKRI - UKRI,06/05/2020,T&S UK - Public Transport,UKRI - Private Office,Addison Lee Plc,98745280,440.90,T&S UK - Public Transport
BEIS,UKRI - UKRI,06/05/2020,Unspecified,UKRI - Management Reporting,Careers Research and Advisory Centre (CRAC Ltd),98745283,35766.90,Legal & Professional Services
BEIS,UKRI - UKRI,06/05/2020,Staff Training,UKRI People and Organisation Development,Unspecified,98745296,142.50,Staff Training
BEIS,UKRI - UKRI,06/05/2020,Health & Safety (inc. Medicals & Opticians),UKRI - JBOS,AM Health & Safety Ltd,98745694,279.00,Health & Safety (inc. Medicals & Opticians)
BEIS,UKRI - UKRI,06/05/2020,Computer Software Licences,UKRI - Digital Data and Technology BAU Costs,Zoho Corporation B.V.,98745701,646.00,Computer Software Licences
BEIS,UKRI - Research England,06/05/2020,Non-staff travel and subsistance,RE - Research Excellence Framework (REF),Unspecified,98745712,57.20,Non-staff travel and subsistance
BEIS,UKRI - Research England,06/05/2020,Non-staff travel and subsistance,RE - Research Excellence Framework (REF),Unspecified,98745713,93.00,Non-staff travel and subsistance
BEIS,UKRI - Research England,06/05/2020,Non-staff travel and subsistance,RE - Research Excellence Framework (REF),Unspecified,98745714,151.49,Non-staff travel and subsistance
BEIS,UKRI - UKRI,06/05/2020,Other Bought In Services,UKRI - Corporate Services,HM Revenue & Customs,98745716,35265.28,Other Bought In Services
BEIS,UKRI - EPSRC,06/05/2020,Nursery Deductions,Balance Sheet,EDENRED (UK GROUP) LTD,98745742,992.00,Nursery Deductions
BEIS,UKRI - EPSRC,06/05/2020,Non-staff travel and subsistance,Programme Delivery Healthcare,Corporate Travel Management (North) Ltd,98745970,10.00,Non-staff travel and subsistance
BEIS,UKRI - EPSRC,06/05/2020,Non-staff travel and subsistance,Programme Delivery Healthcare,Corporate Travel Management (North) Ltd,98745970,31.46,Non-staff travel and subsistance
BEIS,UKRI - EPSRC,06/05/2020,Non-staff travel and subsistance,Programme Delivery Healthcare,Corporate Travel Management (North) Ltd,98745970,94.38,Non-staff travel and subsistance
BEIS,UKRI - EPSRC,06/05/2020,Non-staff travel and subsistance,Programme Delivery Healthcare,Corporate Travel Management (North) Ltd,98745970,2.00,Non-staff travel and subsistance
BEIS,UKRI - EPSRC,06/05/2020,T&S Overseas - Accommodation,Programme Delivery Infrastructure,Corporate Travel Management (North) Ltd,98745970,0.80,T&S Overseas - Accommodation
BEIS,UKRI - EPSRC,06/05/2020,T&S Overseas - Accommodation,Programme Delivery Infrastructure,Corporate Travel Management (North) Ltd,98745970,86.98,T&S Overseas - Accommodation
BEIS,UKRI - EPSRC,06/05/2020,T&S Overseas - Accommodation,Programme Delivery Infrastructure,Corporate Travel Management (North) Ltd,98745970,0.80,T&S Overseas - Accommodation
BEIS,UKRI - EPSRC,06/05/2020,T&S Overseas - Accommodation,Programme Delivery Infrastructure,Corporate Travel Management (North) Ltd,98745970,256.26,T&S Overseas - Accommodation
BEIS,UKRI - EPSRC,06/05/2020,T&S Overseas - Accommodation,Programme Delivery Infrastructure,Corporate Travel Management (North) Ltd,98745970,0.32,T&S Overseas - Accommodation
BEIS,UKRI - Research England,06/05/2020,T&S Overseas - Accommodation,RE - Executive Group,Corporate Travel Management (North) Ltd,98745970,0.80,T&S Overseas - Accommodation
BEIS,UKRI - Research England,06/05/2020,T&S Overseas - Accommodation,RE - Executive Group,Corporate Travel Management (North) Ltd,98745970,705.36,T&S Overseas - Accommodation
BEIS,UKRI - Research England,06/05/2020,T&S Overseas - Accommodation,RE - Executive Group,Corporate Travel Management (North) Ltd,98745970,0.16,T&S Overseas - Accommodation
BEIS,UKRI - UKRI,06/05/2020,T&S Overseas - Accommodation,UKRI - GCRF Challenge Leaders,Corporate Travel Management (North) Ltd,98745970,0.80,T&S Overseas - Accommodation
BEIS,UKRI - UKRI,06/05/2020,T&S Overseas - Accommodation,UKRI - GCRF Challenge Leaders,Corporate Travel Management (North) Ltd,98745970,585.04,T&S Overseas - Accommodation
BEIS,UKRI - UKRI,06/05/2020,T&S Overseas - Accommodation,UKRI - GCRF Challenge Leaders,Corporate Travel Management (North) Ltd,98745970,0.80,T&S Overseas - Accommodation
BEIS,UKRI - UKRI,06/05/2020,T&S Overseas - Accommodation,UKRI - GCRF Challenge Leaders,Corporate Travel Management (North) Ltd,98745970,156.95,T&S Overseas - Accommodation
BEIS,UKRI - UKRI,06/05/2020,T&S Overseas - Accommodation,UKRI - GCRF Challenge Leaders,Corporate Travel Management (North) Ltd,98745970,236.16,T&S Overseas - Accommodation
BEIS,UKRI - UKRI,06/05/2020,T&S Overseas - Accommodation,UKRI - GCRF Challenge Leaders,Corporate Travel Management (North) Ltd,98745970,0.80,T&S Overseas - Accommodation
BEIS,UKRI - UKRI,06/05/2020,T&S Overseas - Accommodation,UKRI - GCRF Challenge Leaders,Corporate Travel Management (North) Ltd,98745970,252.74,T&S Overseas - Accommodation
BEIS,UKRI - UKRI,06/05/2020,T&S Overseas - Accommodation,UKRI - GCRF Challenge Leaders,Corporate Travel Management (North) Ltd,98745970,0.48,T&S Overseas - Accommodation
BEIS,UKRI - UKRI,06/05/2020,T&S Overseas - Accommodation,UKRI - GCRF Delivery,Corporate Travel Management (North) Ltd,98745970,0.80,T&S Overseas - Accommodation
BEIS,UKRI - UKRI,06/05/2020,T&S Overseas - Accommodation,UKRI - GCRF Delivery,Corporate Travel Management (North) Ltd,98745970,1060.75,T&S Overseas - Accommodation
BEIS,UKRI - UKRI,06/05/2020,T&S Overseas - Accommodation,UKRI - GCRF Delivery,Corporate Travel Management (North) Ltd,98745970,2.00,T&S Overseas - Accommodation
BEIS,UKRI - UKRI,06/05/2020,T&S Overseas - Accommodation,UKRI - GCRF Delivery,Corporate Travel Management (North) Ltd,98745970,300.39,T&S Overseas - Accommodation
BEIS,UKRI - UKRI,06/05/2020,T&S Overseas - Accommodation,UKRI - GCRF Delivery,Corporate Travel Management (North) Ltd,98745970,0.56,T&S Overseas - Accommodation
BEIS,UKRI - UKRI,06/05/2020,T&S Overseas - Accommodation,UKRI - International,Corporate Travel Management (North) Ltd,98745970,0.80,T&S Overseas - Accommodation
BEIS,UKRI - UKRI,06/05/2020,T&S Overseas - Accommodation,UKRI - International,Corporate Travel Management (North) Ltd,98745970,104.30,T&S Overseas - Accommodation
BEIS,UKRI - UKRI,06/05/2020,T&S Overseas - Accommodation,UKRI - International,Corporate Travel Management (North) Ltd,98745970,0.80,T&S Overseas - Accommodation
BEIS,UKRI - UKRI,06/05/2020,T&S Overseas - Accommodation,UKRI - International,Corporate Travel Management (North) Ltd,98745970,197.38,T&S Overseas - Accommodation
BEIS,UKRI - UKRI,06/05/2020,T&S Overseas - Accommodation,UKRI - International,Corporate Travel Management (North) Ltd,98745970,0.80,T&S Overseas - Accommodation
BEIS,UKRI - UKRI,06/05/2020,T&S Overseas - Accommodation,UKRI - International,Corporate Travel Management (North) Ltd,98745970,169.83,T&S Overseas - Accommodation
BEIS,UKRI - UKRI,06/05/2020,T&S Overseas - Accommodation,UKRI - International,Corporate Travel Management (North) Ltd,98745970,0.80,T&S Overseas - Accommodation
BEIS,UKRI - UKRI,06/05/2020,T&S Overseas - Accommodation,UKRI - International,Corporate Travel Management (North) Ltd,98745970,239.11,T&S Overseas - Accommodation
BEIS,UKRI - UKRI,06/05/2020,T&S Overseas - Accommodation,UKRI - International,Corporate Travel Management (North) Ltd,98745970,0.80,T&S Overseas - Accommodation
BEIS,UKRI - UKRI,06/05/2020,T&S Overseas - Accommodation,UKRI - International,Corporate Travel Management (North) Ltd,98745970,101.56,T&S Overseas - Accommodation
BEIS,UKRI - UKRI,06/05/2020,T&S Overseas - Accommodation,UKRI - International,Corporate Travel Management (North) Ltd,98745970,0.80,T&S Overseas - Accommodation
BEIS,UKRI - UKRI,06/05/2020,T&S Overseas - Accommodation,UKRI - International,Corporate Travel Management (North) Ltd,98745970,111.59,T&S Overseas - Accommodation
BEIS,UKRI - UKRI,06/05/2020,T&S Overseas - Accommodation,UKRI - International,Corporate Travel Management (North) Ltd,98745970,0.96,T&S Overseas - Accommodation
BEIS,UKRI - UKRI,06/05/2020,T&S Overseas - Accommodation,UKRI - International Communications,Corporate Travel Management (North) Ltd,98745970,0.80,T&S Overseas - Accommodation
BEIS,UKRI - UKRI,06/05/2020,T&S Overseas - Accommodation,UKRI - International Communications,Corporate Travel Management (North) Ltd,98745970,843.03,T&S Overseas - Accommodation
BEIS,UKRI - UKRI,06/05/2020,T&S Overseas - Accommodation,UKRI - International Communications,Corporate Travel Management (North) Ltd,98745970,0.16,T&S Overseas - Accommodation
BEIS,UKRI - UKRI,06/05/2020,T&S Overseas - Accommodation,UKRI - Strategy,Corporate Travel Management (North) Ltd,98745970,0.80,T&S Overseas - Accommodation
BEIS,UKRI - UKRI,06/05/2020,T&S Overseas - Accommodation,UKRI - Strategy,Corporate Travel Management (North) Ltd,98745970,149.97,T&S Overseas - Accommodation
BEIS,UKRI - UKRI,06/05/2020,T&S Overseas - Accommodation,UKRI - Strategy,Corporate Travel Management (North) Ltd,98745970,0.16,T&S Overseas - Accommodation
BEIS,UKRI - UKRI,06/05/2020,T&S Overseas - Flights,UKRI - GCRF Challenge Leaders,Corporate Travel Management (North) Ltd,98745970,125.80,T&S Overseas - Flights
BEIS,UKRI - UKRI,06/05/2020,T&S Overseas - Flights,UKRI - Overseas Office China,Corporate Travel Management (North) Ltd,98745970,-4115.57,T&S Overseas - Flights
BEIS,UKRI - UKRI,06/05/2020,T&S Overseas - Flights,UKRI - Overseas Office USA,Corporate Travel Management (North) Ltd,98745970,2.50,T&S Overseas - Flights
BEIS,UKRI - UKRI,06/05/2020,T&S Overseas - Flights,UKRI - Overseas Office USA,Corporate Travel Management (North) Ltd,98745970,280.30,T&S Overseas - Flights
BEIS,UKRI - EPSRC,06/05/2020,T&S UK - Accommodation,Governance and Planning,Corporate Travel Management (North) Ltd,98745970,0.80,T&S UK - Accommodation
BEIS,UKRI - EPSRC,06/05/2020,T&S UK - Accommodation,Governance and Planning,Corporate Travel Management (North) Ltd,98745970,487.13,T&S UK - Accommodation
BEIS,UKRI - EPSRC,06/05/2020,T&S UK - Accommodation,Governance and Planning,Corporate Travel Management (North) Ltd,98745970,0.80,T&S UK - Accommodation
BEIS,UKRI - EPSRC,06/05/2020,T&S UK - Accommodation,Governance and Planning,Corporate Travel Management (North) Ltd,98745970,487.13,T&S UK - Accommodation
BEIS,UKRI - EPSRC,06/05/2020,T&S UK - Accommodation,Governance and Planning,Corporate Travel Management (North) Ltd,98745970,0.32,T&S UK - Accommodation
BEIS,UKRI - EPSRC,06/05/2020,T&S UK - Accommodation,Programme Delivery ICT,Corporate Travel Management (North) Ltd,98745970,0.80,T&S UK - Accommodation
BEIS,UKRI - EPSRC,06/05/2020,T&S UK - Accommodation,Programme Delivery ICT,Corporate Travel Management (North) Ltd,98745970,120.64,T&S UK - Accommodation
BEIS,UKRI - EPSRC,06/05/2020,T&S UK - Accommodation,Programme Delivery ICT,Corporate Travel Management (North) Ltd,98745970,0.16,T&S UK - Accommodation
BEIS,UKRI - Research England,06/05/2020,T&S UK - Accommodation,RE - Knowledge Exchange,Corporate Travel Management (North) Ltd,98745970,2.00,T&S UK - Accommodation
BEIS,UKRI - Research England,06/05/2020,T&S UK - Accommodation,RE - Knowledge Exchange,Corporate Travel Management (North) Ltd,98745970,190.00,T&S UK - Accommodation
BEIS,UKRI - Research England,06/05/2020,T&S UK - Accommodation,RE - Knowledge Exchange,Corporate Travel Management (North) Ltd,98745970,0.40,T&S UK - Accommodation
BEIS,UKRI - UKRI,06/05/2020,T&S UK - Accommodation,UKRI - GCRF Challenge Leaders,Corporate Travel Management (North) Ltd,98745970,0.80,T&S UK - Accommodation
BEIS,UKRI - UKRI,06/05/2020,T&S UK - Accommodation,UKRI - GCRF Challenge Leaders,Corporate Travel Management (North) Ltd,98745970,95.00,T&S UK - Accommodation
BEIS,UKRI - UKRI,06/05/2020,T&S UK - Accommodation,UKRI - GCRF Challenge Leaders,Corporate Travel Management (North) Ltd,98745970,0.16,T&S UK - Accommodation
BEIS,UKRI - UKRI,06/05/2020,T&S UK - Accommodation,UKRI - International,Corporate Travel Management (North) Ltd,98745970,0.80,T&S UK - Accommodation
BEIS,UKRI - UKRI,06/05/2020,T&S UK - Accommodation,UKRI - International,Corporate Travel Management (North) Ltd,98745970,127.82,T&S UK - Accommodation
BEIS,UKRI - UKRI,06/05/2020,T&S UK - Accommodation,UKRI - International,Corporate Travel Management (North) Ltd,98745970,0.80,T&S UK - Accommodation
BEIS,UKRI - UKRI,06/05/2020,T&S UK - Accommodation,UKRI - International,Corporate Travel Management (North) Ltd,98745970,127.82,T&S UK - Accommodation
BEIS,UKRI - UKRI,06/05/2020,T&S UK - Accommodation,UKRI - International,Corporate Travel Management (North) Ltd,98745970,0.32,T&S UK - Accommodation
BEIS,UKRI - UKRI,06/05/2020,T&S UK - Accommodation,UKRI - Public Engagement,Corporate Travel Management (North) Ltd,98745970,0.80,T&S UK - Accommodation
BEIS,UKRI - UKRI,06/05/2020,T&S UK - Accommodation,UKRI - Public Engagement,Corporate Travel Management (North) Ltd,98745970,0.16,T&S UK - Accommodation
BEIS,UKRI - UKRI,06/05/2020,T&S UK - Accommodation,UKRI - Strategy,Corporate Travel Management (North) Ltd,98745970,0.80,T&S UK - Accommodation
BEIS,UKRI - UKRI,06/05/2020,T&S UK - Accommodation,UKRI - Strategy,Corporate Travel Management (North) Ltd,98745970,487.13,T&S UK - Accommodation
BEIS,UKRI - UKRI,06/05/2020,T&S UK - Accommodation,UKRI - Strategy,Corporate Travel Management (North) Ltd,98745970,0.80,T&S UK - Accommodation
BEIS,UKRI - UKRI,06/05/2020,T&S UK - Accommodation,UKRI - Strategy,Corporate Travel Management (North) Ltd,98745970,122.67,T&S UK - Accommodation
BEIS,UKRI - UKRI,06/05/2020,T&S UK - Accommodation,UKRI - Strategy,Corporate Travel Management (North) Ltd,98745970,0.80,T&S UK - Accommodation
BEIS,UKRI - UKRI,06/05/2020,T&S UK - Accommodation,UKRI - Strategy,Corporate Travel Management (North) Ltd,98745970,0.48,T&S UK - Accommodation
BEIS,UKRI - EPSRC,06/05/2020,T&S UK - Flights,Plastics Innovation Fund – OpEx,Corporate Travel Management (North) Ltd,98745970,2.50,T&S UK - Flights
BEIS,UKRI - EPSRC,06/05/2020,T&S UK - Flights,Plastics Innovation Fund – OpEx,Corporate Travel Management (North) Ltd,98745970,181.06,T&S UK - Flights
BEIS,UKRI - EPSRC,06/05/2020,T&S UK - Other Charges,Directors and Deputy Directors,Corporate Travel Management (North) Ltd,98745970,2.50,T&S UK - Other Charges
BEIS,UKRI - EPSRC,06/05/2020,T&S UK - Other Charges,Directors and Deputy Directors,Corporate Travel Management (North) Ltd,98745970,18.10,T&S UK - Other Charges
BEIS,UKRI - EPSRC,06/05/2020,T&S UK - Other Charges,Directors and Deputy Directors,Corporate Travel Management (North) Ltd,98745970,0.50,T&S UK - Other Charges
BEIS,UKRI - EPSRC,06/05/2020,T&S UK - Other Charges,Executive Chair and Deputy Exec Chairs,Corporate Travel Management (North) Ltd,98745970,2.50,T&S UK - Other Charges
BEIS,UKRI - EPSRC,06/05/2020,T&S UK - Other Charges,Executive Chair and Deputy Exec Chairs,Corporate Travel Management (North) Ltd,98745970,24.64,T&S UK - Other Charges
BEIS,UKRI - EPSRC,06/05/2020,T&S UK - Other Charges,Executive Chair and Deputy Exec Chairs,Corporate Travel Management (North) Ltd,98745970,2.50,T&S UK - Other Charges
BEIS,UKRI - EPSRC,06/05/2020,T&S UK - Other Charges,Executive Chair and Deputy Exec Chairs,Corporate Travel Management (North) Ltd,98745970,9.60,T&S UK - Other Charges
BEIS,UKRI - EPSRC,06/05/2020,T&S UK - Other Charges,Executive Chair and Deputy Exec Chairs,Corporate Travel Management (North) Ltd,98745970,2.50,T&S UK - Other Charges
BEIS,UKRI - EPSRC,06/05/2020,T&S UK - Other Charges,Executive Chair and Deputy Exec Chairs,Corporate Travel Management (North) Ltd,98745970,10.94,T&S UK - Other Charges
BEIS,UKRI - EPSRC,06/05/2020,T&S UK - Other Charges,Executive Chair and Deputy Exec Chairs,Corporate Travel Management (North) Ltd,98745970,2.50,T&S UK - Other Charges
BEIS,UKRI - EPSRC,06/05/2020,T&S UK - Other Charges,Executive Chair and Deputy Exec Chairs,Corporate Travel Management (North) Ltd,98745970,10.94,T&S UK - Other Charges
BEIS,UKRI - EPSRC,06/05/2020,T&S UK - Other Charges,Executive Chair and Deputy Exec Chairs,Corporate Travel Management (North) Ltd,98745970,2.00,T&S UK - Other Charges
BEIS,UKRI - Research England,06/05/2020,T&S UK - Other Charges,RE - Executive Group,Corporate Travel Management (North) Ltd,98745970,0.80,T&S UK - Other Charges
BEIS,UKRI - Research England,06/05/2020,T&S UK - Other Charges,RE - Executive Group,Corporate Travel Management (North) Ltd,98745970,426.15,T&S UK - Other Charges
BEIS,UKRI - Research England,06/05/2020,T&S UK - Other Charges,RE - Executive Group,Corporate Travel Management (North) Ltd,98745970,0.16,T&S UK - Other Charges
BEIS,UKRI - UKRI,06/05/2020,T&S UK - Other Charges,UKRI - International,Corporate Travel Management (North) Ltd,98745970,2.50,T&S UK - Other Charges
BEIS,UKRI - UKRI,06/05/2020,T&S UK - Other Charges,UKRI - International,Corporate Travel Management (North) Ltd,98745970,209.96,T&S UK - Other Charges
BEIS,UKRI - UKRI,06/05/2020,T&S UK - Other Charges,UKRI - International,Corporate Travel Management (North) Ltd,98745970,0.50,T&S UK - Other Charges
BEIS,UKRI - UKRI,06/05/2020,T&S UK - Other Charges,UKRI - Overseas Office USA,Corporate Travel Management (North) Ltd,98745970,2.50,T&S UK - Other Charges
BEIS,UKRI - UKRI,06/05/2020,T&S UK - Other Charges,UKRI - Overseas Office USA,Corporate Travel Management (North) Ltd,98745970,370.69,T&S UK - Other Charges
BEIS,UKRI - UKRI,06/05/2020,T&S UK - Other Charges,UKRI - Overseas Office USA,Corporate Travel Management (North) Ltd,98745970,0.50,T&S UK - Other Charges
BEIS,UKRI - UKRI,06/05/2020,T&S UK - Other Charges,UKRI Strategic HR Business Partners,Corporate Travel Management (North) Ltd,98745970,2.50,T&S UK - Other Charges
BEIS,UKRI - UKRI,06/05/2020,T&S UK - Other Charges,UKRI Strategic HR Business Partners,Corporate Travel Management (North) Ltd,98745970,226.96,T&S UK - Other Charges
BEIS,UKRI - UKRI,06/05/2020,T&S UK - Other Charges,UKRI Strategic HR Business Partners,Corporate Travel Management (North) Ltd,98745970,2.50,T&S UK - Other Charges
BEIS,UKRI - UKRI,06/05/2020,T&S UK - Other Charges,UKRI Strategic HR Business Partners,Corporate Travel Management (North) Ltd,98745970,260.35,T&S UK - Other Charges
BEIS,UKRI - UKRI,06/05/2020,T&S UK - Other Charges,UKRI Strategic HR Business Partners,Corporate Travel Management (North) Ltd,98745970,1.00,T&S UK - Other Charges
BEIS,UKRI - UKRI,06/05/2020,T&S Overseas - Public Transport,UKRI - UKRO,Corporate Travel Management (North) Ltd,98745991,4.50,T&S Overseas - Public Transport
BEIS,UKRI - UKRI,06/05/2020,T&S Overseas - Public Transport,UKRI - UKRO,Corporate Travel Management (North) Ltd,98745991,128.00,T&S Overseas - Public Transport
BEIS,UKRI - UKRI,06/05/2020,Unspecified,UKRI - GCRF Challenge Leaders,UNIVERSITY OF ULSTER,98745993,13849.59,Secondments
BEIS,UKRI - UKRI,06/05/2020,Consumables,UKRI - JRS,Premier Paper Group Ltd,98746004,321.12,Consumables
BEIS,UKRI - UKRI,06/05/2020,Consumables,UKRI - JRS,Premier Paper Group Ltd,98746004,30.88,Consumables
BEIS,UKRI - UKRI,06/05/2020,Consumables,UKRI - JRS,Premier Paper Group Ltd,98746004,42.00,Consumables
BEIS,UKRI - UKRI,06/05/2020,Consumables,UKRI - JRS,Premier Paper Group Ltd,98746004,33.73,Consumables
BEIS,UKRI - UKRI,06/05/2020,Consumables,UKRI - JRS,Premier Paper Group Ltd,98746004,213.00,Consumables
BEIS,UKRI - UKRI,06/05/2020,Consumables,UKRI - JRS,Premier Paper Group Ltd,98746004,127.80,Consumables
BEIS,UKRI - UKRI,06/05/2020,Postage & Courier Services,UKRI - Digital Data and Technology BAU Costs,Logicalis Uk Ltd,98746028,51294.17,Postage & Courier Services
BEIS,UKRI - UKRI,06/05/2020,Postage & Courier Services,UKRI - Digital Data and Technology BAU Costs,Logicalis Uk Ltd,98746030,12121.80,Postage & Courier Services
BEIS,UKRI - UKRI,06/05/2020,Advertising & Promotion,UKRI - Communications Content,STIRLING MEDIA LTD,98746032,1008.00,Advertising & Promotion
BEIS,UKRI - EPSRC,06/05/2020,Non-staff travel and subsistance,Business Improvement,Unspecified,98746517,84.30,Non-staff travel and subsistance
BEIS,UKRI - UKRI,06/05/2020,Removal Services,UKRI - Estates,Harrow Green Ltd T/A Restore Harrow Green,98746549,124.80,Removal Services
BEIS,UKRI - Research England,06/05/2020,Recruitment Costs,RE - Operations and Private Office,Swindon Occupational Medical Services Ltd,98746561,175.00,Recruitment Costs
BEIS,UKRI - UKRI,06/05/2020,T&S UK - Other Charges,UKRI - Strategic Finance Business Partners,Unspecified,98746587,19.48,T&S UK - Other Charges
BEIS,UKRI - UKRI,06/05/2020,T&S UK - Other Charges,UKRI Strategic HR Business Partners,Unspecified,98746589,103.00,T&S UK - Other Charges
BEIS,UKRI - EPSRC,06/05/2020,T&S UK - Other Charges,Programme Delivery Physical Sciences,Unspecified,98746590,217.84,T&S UK - Other Charges
BEIS,UKRI - UKRI,06/05/2020,T&S UK - Other Charges,UKRI - Strategy,Unspecified,98746593,83.98,T&S UK - Other Charges
BEIS,UKRI - UKRI,06/05/2020,T&S UK - Subsistence,UKRI People and Organisation Development,Unspecified,98746594,155.96,T&S UK - Subsistence
BEIS,UKRI - EPSRC,06/05/2020,T&S UK - Other Charges,Programme Delivery Engineering,Unspecified,98746595,415.91,T&S UK - Other Charges
BEIS,UKRI - UKRI,06/05/2020,T&S UK - Other Charges,UKRI - UKRO,Unspecified,98746596,712.14,T&S UK - Other Charges
BEIS,UKRI - UKRI,07/05/2020,Plant Maintenance,UKRI - Estates,Zip Heaters (UK) Ltd,98510721,3340.80,Plant Maintenance
BEIS,UKRI - UKRI,07/05/2020,Plant Maintenance,UKRI - Estates,Zip Heaters (UK) Ltd,98525779,-851.81,Plant Maintenance
BEIS,UKRI - UKRI,07/05/2020,Education Fees & Study Materials,UKRI - Transformation Communications,Unspecified,98731983,33.98,Education Fees & Study Materials
BEIS,UKRI - UKRI,07/05/2020,T&S UK - Public Transport,UKRI - Transformation Communications,Unspecified,98731983,7.50,T&S UK - Public Transport
BEIS,UKRI - UKRI,07/05/2020,T&S UK - Public Transport,UKRI - Transformation Communications,Unspecified,98731983,102.80,T&S UK - Public Transport
BEIS,UKRI - UKRI,07/05/2020,T&S UK - Subsistence,UKRI - Transformation Communications,Unspecified,98731983,18.30,T&S UK - Subsistence
BEIS,UKRI - UKRI,07/05/2020,T&S UK - Other Charges,UKRI - Transformation Communications,Unspecified,98731984,55.98,T&S UK - Other Charges
BEIS,UKRI - UKRI,07/05/2020,T&S UK - Other Charges,UKRI - Research Funding Support,Unspecified,98733084,79.99,T&S UK - Other Charges
BEIS,UKRI - UKRI,07/05/2020,T&S UK - Other Charges,UKRI - Research Funding Support,Unspecified,98734777,93.86,T&S UK - Other Charges
BEIS,UKRI - UKRI,07/05/2020,Unspecified,UKRI - Strategic Finance Business Partners,Alexander Mann Solutions Ltd,98736212,809.41,Agency Staff
BEIS,UKRI - UKRI,07/05/2020,Unspecified,UKRI - Digital Data and Technology BAU Costs,Alexander Mann Solutions Ltd,98737483,1847.77,Contract Staff
BEIS,UKRI - EPSRC,07/05/2020,T&S UK - Other Charges,EPSRC Corporate Services,Unspecified,98738135,139.99,T&S UK - Other Charges
BEIS,UKRI - UKRI,07/05/2020,Unspecified,UKRI - Strategic Finance Business Partners,Alexander Mann Solutions Ltd,98739123,809.41,Agency Staff
BEIS,UKRI - UKRI,07/05/2020,T&S UK - Other Charges,UKRI - Communication and Engagement,Unspecified,98741490,334.95,T&S UK - Other Charges
BEIS,UKRI - UKRI,07/05/2020,Education Fees & Study Materials,UKRI - Digital Data and Technology BAU Costs,Unspecified,98741947,11.99,Education Fees & Study Materials
BEIS,UKRI - EPSRC,07/05/2020,T&S UK - Other Charges,EPSRC Corporate Services,Unspecified,98743116,26.75,T&S UK - Other Charges
BEIS,UKRI - UKRI,07/05/2020,Unspecified,UKRI - Digital Data and Technology BAU Costs,Alexander Mann Solutions Ltd,98743769,1478.23,Contract Staff
BEIS,UKRI - UKRI,07/05/2020,Unspecified,UKRI - Digital Data and Technology BAU Costs,Alexander Mann Solutions Ltd,98743770,3969.32,Contract Staff
BEIS,UKRI - UKRI,07/05/2020,Computer Hardware,UKRI - Digital Data and Technology BAU Costs,Logicalis Uk Ltd,98743960,7545.16,Computer Hardware
BEIS,UKRI - UKRI,07/05/2020,Unspecified,UKRI - Funding Service,Alexander Mann Solutions Ltd,98744491,3541.62,Contract Staff
BEIS,UKRI - UKRI,07/05/2020,Unspecified,UKRI - Digital Data and Technology BAU Costs,Alexander Mann Solutions Ltd,98744535,1847.77,Contract Staff
BEIS,UKRI - UKRI,07/05/2020,Unspecified,UKRI - Digital Data and Technology Project Costs,Alexander Mann Solutions Ltd,98744538,4465.50,Contract Staff
BEIS,UKRI - UKRI,07/05/2020,Unspecified,UKRI - Digital Data and Technology BAU Costs,Alexander Mann Solutions Ltd,98744543,1293.48,Contract Staff
BEIS,UKRI - UKRI,07/05/2020,Unspecified,UKRI - Digital Data and Technology BAU Costs,Alexander Mann Solutions Ltd,98744549,3079.62,Agency Staff
BEIS,UKRI - UKRI,07/05/2020,Unspecified,UKRI - Digital Data and Technology Project Costs,Alexander Mann Solutions Ltd,98744551,6319.51,Contract Staff
BEIS,UKRI - UKRI,07/05/2020,Recruitment Costs,UKRI People and Organisation Development,Onefix Recruitment Ltd,98745146,756.00,Recruitment Costs
BEIS,UKRI - UKRI,07/05/2020,Unspecified,UKRI - Communications Web and Intranet Service,Reed Specialist Recruitment Ltd,98746035,1161.47,Contract Staff
BEIS,UKRI - UKRI,07/05/2020,Unspecified,Sciencewise,School of International Futures Ltd,98746069,14898.00,Legal & Professional Services
BEIS,UKRI - UKRI,07/05/2020,Health & Safety (inc. Medicals & Opticians),UKRI - Human Resources Support,Cigna Global Health Benefits,98746650,16321.83,Health & Safety (inc. Medicals & Opticians)
BEIS,UKRI - EPSRC,07/05/2020,Other Staff Benefits,EPSRC Corporate Services,Swindon Occupational Medical Services Ltd,98746686,525.00,Other Staff Benefits
BEIS,UKRI - UKRI,07/05/2020,Unspecified,UKRI - Digital Data and Technology BAU Costs,Capita Business Services Ltd,98746693,11000.40,IT Cloud Services
BEIS,UKRI - UKRI,07/05/2020,Unspecified,UKRI - Digital Data and Technology BAU Costs,Capita Business Services Ltd,98746697,2970.00,IT Cloud Services
BEIS,UKRI - EPSRC,07/05/2020,Non-staff travel and subsistance,Business Improvement,Unspecified,98746739,58.54,Non-staff travel and subsistance
BEIS,UKRI - UKRI,07/05/2020,Conferences & Seminars,UKRI - GCRF Challenge Leaders,Unspecified,98746747,2090.00,Conferences & Seminars
BEIS,UKRI - UKRI,07/05/2020,Non-staff travel and subsistance,UKRI - GCRF Challenge Leaders,Unspecified,98746915,622.71,Non-staff travel and subsistance
BEIS,UKRI - UKRI,07/05/2020,Non-staff travel and subsistance,UKRI - GCRF Challenge Leaders,Unspecified,98746916,64.73,Non-staff travel and subsistance
BEIS,UKRI - UKRI,07/05/2020,T&S UK - Other Charges,UKRI - Communications Strategy and Planning,Unspecified,98746977,145.76,T&S UK - Other Charges
BEIS,UKRI - EPSRC,07/05/2020,T&S UK - Other Charges,Programme Delivery ICT,Unspecified,98746979,287.53,T&S UK - Other Charges
BEIS,UKRI - Research England,07/05/2020,T&S UK - Other Charges,RE - Research,Unspecified,98746980,123.96,T&S UK - Other Charges
BEIS,UKRI - UKRI,07/05/2020,T&S UK - Other Charges,UKRI - Risk and Counter Fraud,Unspecified,98746982,268.95,T&S UK - Other Charges
BEIS,UKRI - UKRI,07/05/2020,T&S UK - Other Charges,UKRI Strategic HR Business Partners,Unspecified,98746983,17.08,T&S UK - Other Charges
BEIS,UKRI - UKRI,11/05/2020,T&S UK - Mileage,UKRI - Strategic Finance Business Partners,Unspecified,98725608,152.82,T&S UK - Mileage
BEIS,UKRI - UKRI,11/05/2020,T&S UK - Parking Tolls Congestion Charges,UKRI - Strategic Finance Business Partners,Unspecified,98725608,5.60,T&S UK - Parking Tolls Congestion Charges
BEIS,UKRI - UKRI,11/05/2020,T&S UK - Subsistence,UKRI - Strategic Finance Business Partners,Unspecified,98725608,40.30,T&S UK - Subsistence
BEIS,UKRI - UKRI,11/05/2020,T&S UK - Subsistence,UKRI - Strategic Finance Business Partners,Unspecified,98725608,9.80,T&S UK - Subsistence
BEIS,UKRI - UKRI,11/05/2020,T&S UK - Other Charges,UKRI Strategic HR Business Partners,Unspecified,98736748,260.97,T&S UK - Other Charges
BEIS,UKRI - UKRI,11/05/2020,T&S UK - Other Charges,UKRI - Research Funding Support,Unspecified,98739264,130.55,T&S UK - Other Charges
BEIS,UKRI - UKRI,11/05/2020,Unspecified,UKRI - Digital Data and Technology BAU Costs,Sanderson Government and Defence Ltd,98743292,12198.60,Contract Staff
BEIS,UKRI - UKRI,11/05/2020,Unspecified,UKRI - Digital Data and Technology BAU Costs,Sanderson Government and Defence Ltd,98743301,12738.60,Contract Staff
BEIS,UKRI - UKRI,11/05/2020,Unspecified,UKRI - Digital Data and Technology BAU Costs,Sanderson Government and Defence Ltd,98743306,4749.30,Agency Staff
BEIS,UKRI - UKRI,11/05/2020,Unspecified,UKRI - Digital Data and Technology BAU Costs,Sanderson Government and Defence Ltd,98743309,5289.30,Agency Staff
BEIS,UKRI - UKRI,11/05/2020,Unspecified,UKRI - Digital Data and Technology BAU Costs,Sanderson Government and Defence Ltd,98743313,4485.46,Agency Staff
BEIS,UKRI - UKRI,11/05/2020,Unspecified,UKRI - Digital Data and Technology BAU Costs,Sanderson Government and Defence Ltd,98744085,-12738.60,Contract Staff
BEIS,UKRI - UKRI,11/05/2020,Unspecified,UKRI - Digital Data and Technology BAU Costs,Sanderson Government and Defence Ltd,98744087,-12198.60,Contract Staff
BEIS,UKRI - UKRI,11/05/2020,Unspecified,UKRI - Digital Data and Technology BAU Costs,Sanderson Government and Defence Ltd,98744089,-5289.30,Agency Staff
BEIS,UKRI - UKRI,11/05/2020,Unspecified,UKRI - Digital Data and Technology BAU Costs,Sanderson Government and Defence Ltd,98744090,-4485.46,Agency Staff
BEIS,UKRI - UKRI,11/05/2020,Unspecified,UKRI - Digital Data and Technology BAU Costs,Sanderson Government and Defence Ltd,98744091,-4749.30,Agency Staff
BEIS,UKRI - UKRI,11/05/2020,Unspecified,UKRI - Digital Data and Technology BAU Costs,Alexander Mann Solutions Ltd,98744545,2520.24,Contract Staff
BEIS,UKRI - UKRI,11/05/2020,Other Bought In Services,UKRI - Corporate Services,HM Revenue & Customs,98745738,19516313.00,Other Bought In Services
BEIS,UKRI - UKRI,11/05/2020,Recruitment Costs,UKRI People and Organisation Development,Onefix Recruitment Ltd,98746063,906.00,Recruitment Costs
BEIS,UKRI - UKRI,11/05/2020,Marketing & PR,UKRI - Transformation,The Fifth Business (Scotland) Ltd,98746890,21915.01,Marketing & PR
BEIS,UKRI - UKRI,11/05/2020,Research Grant Expenditure,Public Engagement Programmes,British Science Association,98747021,81633.00,Research Grant Expenditure
BEIS,UKRI - UKRI,11/05/2020,Research Grant Expenditure,Public Engagement Programmes,British Science Association,98747022,8637.00,Research Grant Expenditure
BEIS,UKRI - EPSRC,11/05/2020,Fees (Including College Members),Business Improvement,Unspecified,98747039,160.00,Fees (Including College Members)
BEIS,UKRI - EPSRC,11/05/2020,Fees (Including College Members),Business Improvement,Unspecified,98747040,160.00,Fees (Including College Members)
BEIS,UKRI - EPSRC,11/05/2020,Fees (Including College Members),Programme Delivery Physical Sciences,Unspecified,98747041,160.00,Fees (Including College Members)
BEIS,UKRI - EPSRC,11/05/2020,Fees (Including College Members),Programme Delivery Physical Sciences,Unspecified,98747042,240.00,Fees (Including College Members)
BEIS,UKRI - UKRI,11/05/2020,Unspecified,UKRI - Communications Web and Intranet Service,Hays Specialist Recruitment Ltd,98747069,23009.29,Agency Staff
BEIS,UKRI - UKRI,11/05/2020,Health & Safety (inc. Medicals & Opticians),UKRI - Health and Safety,Posturite Ltd,98747082,38.38,Health & Safety (inc. Medicals & Opticians)
BEIS,UKRI - UKRI,11/05/2020,Health & Safety (inc. Medicals & Opticians),UKRI - Health and Safety,Posturite Ltd,98747082,328.68,Health & Safety (inc. Medicals & Opticians)
BEIS,UKRI - UKRI,11/05/2020,Health & Safety (inc. Medicals & Opticians),UKRI - Health and Safety,Posturite Ltd,98747092,522.43,Health & Safety (inc. Medicals & Opticians)
BEIS,UKRI - UKRI,11/05/2020,Health & Safety (inc. Medicals & Opticians),UKRI - Health and Safety,Posturite Ltd,98747094,870.72,Health & Safety (inc. Medicals & Opticians)
BEIS,UKRI - UKRI,11/05/2020,Health & Safety (inc. Medicals & Opticians),UKRI - Health and Safety,Posturite Ltd,98747100,153.48,Health & Safety (inc. Medicals & Opticians)
BEIS,UKRI - UKRI,11/05/2020,Health & Safety (inc. Medicals & Opticians),UKRI - Health and Safety,Posturite Ltd,98747103,123.54,Health & Safety (inc. Medicals & Opticians)
BEIS,UKRI - UKRI,11/05/2020,Health & Safety (inc. Medicals & Opticians),UKRI - Health and Safety,Posturite Ltd,98747103,146.28,Health & Safety (inc. Medicals & Opticians)
BEIS,UKRI - UKRI,11/05/2020,Health & Safety (inc. Medicals & Opticians),UKRI - Health and Safety,Posturite Ltd,98747104,242.46,Health & Safety (inc. Medicals & Opticians)
BEIS,UKRI - UKRI,11/05/2020,Health & Safety (inc. Medicals & Opticians),UKRI - Health and Safety,Posturite Ltd,98747110,191.94,Health & Safety (inc. Medicals & Opticians)
BEIS,UKRI - UKRI,11/05/2020,Health & Safety (inc. Medicals & Opticians),UKRI - Health and Safety,Posturite Ltd,98747110,65.94,Health & Safety (inc. Medicals & Opticians)
BEIS,UKRI - UKRI,11/05/2020,Health & Safety (inc. Medicals & Opticians),UKRI - Estates,Posturite Ltd,98747111,9.00,Health & Safety (inc. Medicals & Opticians)
BEIS,UKRI - UKRI,11/05/2020,Health & Safety (inc. Medicals & Opticians),UKRI - Estates,Posturite Ltd,98747111,105.55,Health & Safety (inc. Medicals & Opticians)
BEIS,UKRI - UKRI,11/05/2020,Health & Safety (inc. Medicals & Opticians),UKRI - Health and Safety,Posturite Ltd,98747117,69.54,Health & Safety (inc. Medicals & Opticians)
BEIS,UKRI - UKRI,11/05/2020,Health & Safety (inc. Medicals & Opticians),UKRI - Health and Safety,Posturite Ltd,98747117,767.40,Health & Safety (inc. Medicals & Opticians)
BEIS,UKRI - UKRI,11/05/2020,Health & Safety (inc. Medicals & Opticians),UKRI - Health and Safety,Posturite Ltd,98747117,98.34,Health & Safety (inc. Medicals & Opticians)
BEIS,UKRI - UKRI,11/05/2020,Health & Safety (inc. Medicals & Opticians),UKRI - Health and Safety,Posturite Ltd,98747118,52.79,Health & Safety (inc. Medicals & Opticians)
BEIS,UKRI - Research England,11/05/2020,T&S UK - Other Charges,RE - Research,Unspecified,98747132,2.89,T&S UK - Other Charges
BEIS,UKRI - Research England,11/05/2020,T&S UK - Public Transport,RE - Research,Unspecified,98747132,2.50,T&S UK - Public Transport
BEIS,UKRI - Research England,11/05/2020,T&S UK - Public Transport,RE - Research,Unspecified,98747132,93.60,T&S UK - Public Transport
BEIS,UKRI - Research England,11/05/2020,T&S UK - Public Transport,RE - Research,Unspecified,98747132,4.80,T&S UK - Public Transport
BEIS,UKRI - Research England,11/05/2020,T&S UK - Subsistence,RE - Research,Unspecified,98747132,24.95,T&S UK - Subsistence
BEIS,UKRI - Research England,11/05/2020,T&S UK - Subsistence,RE - Research,Unspecified,98747132,10.20,T&S UK - Subsistence
BEIS,UKRI - UKRI,11/05/2020,T&S UK - Public Transport,UKRI - Overseas Office India,Unspecified,98747133,139.69,T&S UK - Public Transport
BEIS,UKRI - UKRI,11/05/2020,T&S UK - Public Transport,UKRI - Overseas Office India,Unspecified,98747133,21.60,T&S UK - Public Transport
BEIS,UKRI - UKRI,11/05/2020,T&S UK - Subsistence,UKRI - Overseas Office India,Unspecified,98747133,5.00,T&S UK - Subsistence
BEIS,UKRI - EPSRC,11/05/2020,T&S UK - Other Charges,Programme Delivery Infrastructure,Unspecified,98747135,160.94,T&S UK - Other Charges
BEIS,UKRI - UKRI,11/05/2020,Education Fees & Study Materials,UKRI People and Organisation Development,Unspecified,98747136,81.28,Education Fees & Study Materials
BEIS,UKRI - UKRI,11/05/2020,T&S UK - Other Charges,UKRI - Strategy,Unspecified,98747137,213.89,T&S UK - Other Charges
BEIS,UKRI - UKRI,11/05/2020,T&S UK - Other Charges,UKRI - Information Governance,Unspecified,98747138,330.98,T&S UK - Other Charges
BEIS,UKRI - UKRI,11/05/2020,T&S UK - Other Charges,UKRI - Estates,Unspecified,98747139,188.00,T&S UK - Other Charges
BEIS,UKRI - UKRI,11/05/2020,Staff Training,UKRI - Communications Strategy and Planning,The Chartered Institute of Public Relations (CIPR),98747818,504.00,Staff Training
BEIS,UKRI - Research England,11/05/2020,Meetings & Catering,RE - Operations and Private Office,Berkeley Catering Ltd,98747837,249.36,Meetings & Catering
BEIS,UKRI - UKRI,11/05/2020,Photocopy Costs,UKRI - JRS,Kodak Ltd,98747851,1586.52,Photocopy Costs
BEIS,UKRI - Research England,11/05/2020,Conferences & Seminars,RE - Knowledge Exchange,Calder Conference Ltd,98747918,1832.00,Conferences & Seminars
BEIS,UKRI - UKRI,11/05/2020,Unspecified,UKRI - Digital Data and Technology BAU Costs,Capita Business Services Ltd,98747928,18000.00,IT Cloud Services
BEIS,UKRI - UKRI,11/05/2020,Research Grant Expenditure,Public Engagement Programmes,British Science Association,98747930,50749.00,Research Grant Expenditure
BEIS,UKRI - UKRI,11/05/2020,Health & Safety (inc. Medicals & Opticians),"UKRI People, Policies and Management",Benenden Healthcare Society,98747959,13455.00,Health & Safety (inc. Medicals & Opticians)
BEIS,UKRI - UKRI,11/05/2020,Health & Safety (inc. Medicals & Opticians),"UKRI People, Policies and Management",Benenden Healthcare Society,98747960,1541.00,Health & Safety (inc. Medicals & Opticians)
BEIS,UKRI - UKRI,11/05/2020,Health & Safety (inc. Medicals & Opticians),"UKRI People, Policies and Management",Benenden Healthcare Society,98747961,2967.00,Health & Safety (inc. Medicals & Opticians)
BEIS,UKRI - UKRI,11/05/2020,Health & Safety (inc. Medicals & Opticians),"UKRI People, Policies and Management",Benenden Healthcare Society,98747962,1058.00,Health & Safety (inc. Medicals & Opticians)
BEIS,UKRI - UKRI,11/05/2020,Health & Safety (inc. Medicals & Opticians),"UKRI People, Policies and Management",Benenden Healthcare Society,98747964,1587.00,Health & Safety (inc. Medicals & Opticians)
BEIS,UKRI - UKRI,11/05/2020,Health & Safety (inc. Medicals & Opticians),"UKRI People, Policies and Management",Benenden Healthcare Society,98747965,13455.00,Health & Safety (inc. Medicals & Opticians)
BEIS,UKRI - UKRI,11/05/2020,Health & Safety (inc. Medicals & Opticians),"UKRI People, Policies and Management",Benenden Healthcare Society,98747967,1184.50,Health & Safety (inc. Medicals & Opticians)
BEIS,UKRI - UKRI,11/05/2020,Health & Safety (inc. Medicals & Opticians),"UKRI People, Policies and Management",Benenden Healthcare Society,98747968,3059.00,Health & Safety (inc. Medicals & Opticians)
BEIS,UKRI - UKRI,11/05/2020,Health & Safety (inc. Medicals & Opticians),"UKRI People, Policies and Management",Benenden Healthcare Society,98747969,2357.50,Health & Safety (inc. Medicals & Opticians)
BEIS,UKRI - UKRI,11/05/2020,Non-staff travel and subsistance,UKRI - GCRF Challenge Leaders,Unspecified,98747975,130.64,Non-staff travel and subsistance
BEIS,UKRI - UKRI,11/05/2020,Non-staff travel and subsistance,UKRI - GCRF Challenge Leaders,Unspecified,98747976,160.35,Non-staff travel and subsistance
BEIS,UKRI - UKRI,11/05/2020,Non-staff travel and subsistance,UKRI - GCRF Challenge Leaders,Unspecified,98747977,229.81,Non-staff travel and subsistance
BEIS,UKRI - UKRI,11/05/2020,Unspecified,"UKRI People, Policies and Management",UK Atomic Energy Authority (UKAEA),98748001,57.98,Legal & Professional Services
BEIS,UKRI - UKRI,11/05/2020,Health & Safety (inc. Medicals & Opticians),UKRI - Health and Safety,Posturite Ltd,98748043,838.80,Health & Safety (inc. Medicals & Opticians)
BEIS,UKRI - UKRI,11/05/2020,Health & Safety (inc. Medicals & Opticians),UKRI - Estates,Posturite Ltd,98748044,7.50,Health & Safety (inc. Medicals & Opticians)
BEIS,UKRI - UKRI,11/05/2020,Health & Safety (inc. Medicals & Opticians),UKRI - Estates,Posturite Ltd,98748044,53.33,Health & Safety (inc. Medicals & Opticians)
BEIS,UKRI - UKRI,11/05/2020,Health & Safety (inc. Medicals & Opticians),UKRI - Health and Safety,Posturite Ltd,98748047,2599.92,Health & Safety (inc. Medicals & Opticians)
BEIS,UKRI - UKRI,11/05/2020,Health & Safety (inc. Medicals & Opticians),UKRI - Health and Safety,Posturite Ltd,98748049,251.88,Health & Safety (inc. Medicals & Opticians)
BEIS,UKRI - Research England,12/05/2020,Meetings & Catering,RE - Research Excellence Framework (REF),King's College London,98697990,182.70,Meetings & Catering
BEIS,UKRI - UKRI,12/05/2020,Consultancy Services,UKRI - Strategy,Butler Meridian Ltd,98704576,2160.00,Consultancy Services
BEIS,UKRI - UKRI,12/05/2020,Unspecified,Reforming Our Business,Butler Meridian Ltd,98704576,14640.00,Legal & Professional Services
BEIS,UKRI - UKRI,12/05/2020,Conferences & Seminars,UKRI - Global Engagement,Karen Kaplan LLC,98724594,2197.91,Conferences & Seminars
BEIS,UKRI - UKRI,12/05/2020,Other Programme Costs,UKRI - GCRF Challenge Leaders,Karen Kaplan LLC,98724594,2442.12,Other Programme Costs
BEIS,UKRI - UKRI,12/05/2020,Unspecified,UKRI - GCRF Challenge Leaders,King's College London,98740752,23812.02,Secondments
BEIS,UKRI - UKRI,12/05/2020,Advertising & Promotion,UKRI - Communications Content,Unspecified,98741593,350.00,Advertising & Promotion
BEIS,UKRI - Research England,12/05/2020,Council & Committee Honoraria,RE - Research Excellence Framework (REF),King's College London,98742715,1500.00,Council & Committee Honoraria
BEIS,UKRI - Research England,12/05/2020,Research Grant Expenditure,RE- HEIF,Anglia Ruskin University,98746074,259366.47,Research Grant Expenditure
BEIS,UKRI - Research England,12/05/2020,Research Grant Expenditure,RE- HEIF,University of the Arts London,98746075,267395.31,Research Grant Expenditure
BEIS,UKRI - Research England,12/05/2020,Research Grant Expenditure,RE- HEIF,Aston University,98746076,104440.89,Research Grant Expenditure
BEIS,UKRI - Research England,12/05/2020,Research Grant Expenditure,RE- HEIF,University of Bath,98746077,118158.15,Research Grant Expenditure
BEIS,UKRI - Research England,12/05/2020,Research Grant Expenditure,RE- HEIF,University of Bedfordshire,98746078,45434.36,Research Grant Expenditure
BEIS,UKRI - Research England,12/05/2020,Research Grant Expenditure,RE- HEIF,University of Birmingham,98746079,337268.81,Research Grant Expenditure
BEIS,UKRI - Research England,12/05/2020,Research Grant Expenditure,RE- HEIF,Birmingham City University,98746080,69924.74,Research Grant Expenditure
BEIS,UKRI - Research England,12/05/2020,Research Grant Expenditure,RE- HEIF,Bournemouth University,98746081,46700.72,Research Grant Expenditure
BEIS,UKRI - Research England,12/05/2020,Research Grant Expenditure,RE- HEIF,University of Bradford,98746082,48542.44,Research Grant Expenditure
BEIS,UKRI - Research England,12/05/2020,Research Grant Expenditure,RE- HEIF,University of Brighton,98746083,95445.10,Research Grant Expenditure
BEIS,UKRI - Research England,12/05/2020,Research Grant Expenditure,RE- HEIF,University of Bristol,98746084,337268.81,Research Grant Expenditure
BEIS,UKRI - Research England,12/05/2020,Research Grant Expenditure,RE- HEIF,Brunel University London,98746085,87191.45,Research Grant Expenditure
BEIS,UKRI - Research England,12/05/2020,Research Grant Expenditure,RE- HEIF,Buckinghamshire New University (Bucks New University),98746086,23190.45,Research Grant Expenditure
BEIS,UKRI - Research England,12/05/2020,Research Grant Expenditure,RE- HEIF,University of Cambridge,98746087,337268.81,Research Grant Expenditure
BEIS,UKRI - Research England,12/05/2020,Research Grant Expenditure,RE- HEIF,Canterbury Christ Church University,98746088,39369.36,Research Grant Expenditure
BEIS,UKRI - Research England,12/05/2020,Research Grant Expenditure,RE- HEIF,University of Central Lancashire,98746089,190620.92,Research Grant Expenditure
BEIS,UKRI - Research England,12/05/2020,Research Grant Expenditure,RE- HEIF,University of Chester,98746090,70153.57,Research Grant Expenditure
BEIS,UKRI - Research England,12/05/2020,Research Grant Expenditure,RE- HEIF,University of Chichester,98746091,20495.64,Research Grant Expenditure
BEIS,UKRI - Research England,12/05/2020,Research Grant Expenditure,RE- HEIF,"City, University of London",98746092,158405.43,Research Grant Expenditure
BEIS,UKRI - Research England,12/05/2020,Research Grant Expenditure,RE- HEIF,The Conservatoire for Dance and Drama,98746093,32071.68,Research Grant Expenditure
BEIS,UKRI - Research England,12/05/2020,Research Grant Expenditure,RE- HEIF,Coventry University,98746094,177868.84,Research Grant Expenditure
BEIS,UKRI - Research England,12/05/2020,Research Grant Expenditure,RE- HEIF,Cranfield University,98746095,317918.68,Research Grant Expenditure
BEIS,UKRI - Research England,12/05/2020,Research Grant Expenditure,RE- HEIF,De Montfort University,98746096,58716.25,Research Grant Expenditure
BEIS,UKRI - Research England,12/05/2020,Research Grant Expenditure,RE- HEIF,University of Derby,98746097,78475.44,Research Grant Expenditure
BEIS,UKRI - Research England,12/05/2020,Research Grant Expenditure,RE- HEIF,University of Durham,98746098,229315.48,Research Grant Expenditure
BEIS,UKRI - Research England,12/05/2020,Research Grant Expenditure,RE- HEIF,University of East Anglia,98746099,231297.78,Research Grant Expenditure
BEIS,UKRI - Research England,12/05/2020,Research Grant Expenditure,RE- HEIF,University of East London,98746100,20455.10,Research Grant Expenditure
BEIS,UKRI - Research England,12/05/2020,Research Grant Expenditure,RE- HEIF,Edge Hill University College,98746101,21919.66,Research Grant Expenditure
BEIS,UKRI - Research England,12/05/2020,Research Grant Expenditure,RE- HEIF,University of Essex,98746102,229335.80,Research Grant Expenditure
BEIS,UKRI - Research England,12/05/2020,Research Grant Expenditure,RE- HEIF,University of Exeter,98746103,283886.89,Research Grant Expenditure
BEIS,UKRI - Research England,12/05/2020,Research Grant Expenditure,RE- HEIF,University of Gloucestershire,98746104,35604.24,Research Grant Expenditure
BEIS,UKRI - Research England,12/05/2020,Research Grant Expenditure,RE- HEIF,Goldsmiths College University of London,98746105,38569.30,Research Grant Expenditure
BEIS,UKRI - Research England,12/05/2020,Research Grant Expenditure,RE- HEIF,University of Greenwich,98746106,164577.92,Research Grant Expenditure
BEIS,UKRI - Research England,12/05/2020,Research Grant Expenditure,RE- HEIF,Guildhall School of Music & Drama,98746107,40946.52,Research Grant Expenditure
BEIS,UKRI - Research England,12/05/2020,Research Grant Expenditure,RE- HEIF,Harper Adams University College,98746108,30092.32,Research Grant Expenditure
BEIS,UKRI - Research England,12/05/2020,Research Grant Expenditure,RE- HEIF,Hartpury University,98746109,18937.92,Research Grant Expenditure
BEIS,UKRI - Research England,12/05/2020,Research Grant Expenditure,RE- HEIF,University of Hertfordshire,98746110,285263.50,Research Grant Expenditure
BEIS,UKRI - Research England,12/05/2020,Research Grant Expenditure,RE- HEIF,University of Huddersfield,98746111,98698.77,Research Grant Expenditure
BEIS,UKRI - Research England,12/05/2020,Research Grant Expenditure,RE- HEIF,University of Hull,98746112,100641.31,Research Grant Expenditure
BEIS,UKRI - Research England,12/05/2020,Research Grant Expenditure,RE- HEIF,Imperial College Science Tech & Med,98746113,337268.81,Research Grant Expenditure
BEIS,UKRI - Research England,12/05/2020,Research Grant Expenditure,RE- HEIF,Institute of Cancer Research,98746114,217599.95,Research Grant Expenditure
BEIS,UKRI - Research England,12/05/2020,Research Grant Expenditure,RE- HEIF,Keele University,98746115,98632.90,Research Grant Expenditure
BEIS,UKRI - Research England,12/05/2020,Research Grant Expenditure,RE- HEIF,University of Kent,98746116,103753.81,Research Grant Expenditure
BEIS,UKRI - Research England,12/05/2020,Research Grant Expenditure,RE- HEIF,King's College London,98746117,337268.81,Research Grant Expenditure
BEIS,UKRI - Research England,12/05/2020,Research Grant Expenditure,RE- HEIF,Kingston University,98746118,36247.43,Research Grant Expenditure
BEIS,UKRI - Research England,12/05/2020,Research Grant Expenditure,RE- HEIF,Lamda Ltd (London Academy of Music & Dramatic Art),98746119,99774.78,Research Grant Expenditure
BEIS,UKRI - Research England,12/05/2020,Research Grant Expenditure,RE- HEIF,Lancaster University,98746120,259366.47,Research Grant Expenditure
BEIS,UKRI - Research England,12/05/2020,Research Grant Expenditure,RE- HEIF,University of Leeds,98746121,337268.81,Research Grant Expenditure
BEIS,UKRI - Research England,12/05/2020,Research Grant Expenditure,RE- HEIF,Leeds Beckett University,98746122,212051.51,Research Grant Expenditure
BEIS,UKRI - Research England,12/05/2020,Research Grant Expenditure,RE- HEIF,University of Leicester,98746123,319642.51,Research Grant Expenditure
BEIS,UKRI - Research England,12/05/2020,Research Grant Expenditure,RE- HEIF,University of Lincoln,98746124,89868.78,Research Grant Expenditure
BEIS,UKRI - Research England,12/05/2020,Research Grant Expenditure,RE- HEIF,University of Liverpool,98746125,335944.33,Research Grant Expenditure
BEIS,UKRI - Research England,12/05/2020,Research Grant Expenditure,RE- HEIF,Liverpool Hope University,98746126,29864.67,Research Grant Expenditure
BEIS,UKRI - Research England,12/05/2020,Research Grant Expenditure,RE- HEIF,Liverpool John Moores University,98746127,93520.32,Research Grant Expenditure
BEIS,UKRI - Research England,12/05/2020,Research Grant Expenditure,RE- HEIF,Liverpool School of Tropical Medicine,98746128,231977.88,Research Grant Expenditure
BEIS,UKRI - Research England,12/05/2020,Research Grant Expenditure,RE- HEIF,University College London,98746129,337268.81,Research Grant Expenditure
BEIS,UKRI - Research England,12/05/2020,Research Grant Expenditure,RE- HEIF,London Business School,98746130,327359.37,Research Grant Expenditure
BEIS,UKRI - Research England,12/05/2020,Research Grant Expenditure,RE- HEIF,London Metropolitan University,98746131,61848.98,Research Grant Expenditure
BEIS,UKRI - Research England,12/05/2020,Research Grant Expenditure,RE- HEIF,London School of Economics and Political Science,98746132,336458.92,Research Grant Expenditure
BEIS,UKRI - Research England,12/05/2020,Research Grant Expenditure,RE- HEIF,London School of Hygiene & Tropical Medicine,98746133,119564.21,Research Grant Expenditure
BEIS,UKRI - Research England,12/05/2020,Research Grant Expenditure,RE- HEIF,London South Bank University,98746134,46149.22,Research Grant Expenditure
BEIS,UKRI - Research England,12/05/2020,Research Grant Expenditure,RE- HEIF,Loughborough University,98746135,315700.88,Research Grant Expenditure
BEIS,UKRI - Research England,12/05/2020,Research Grant Expenditure,RE- HEIF,The University of Manchester,98746136,337268.81,Research Grant Expenditure
BEIS,UKRI - Research England,12/05/2020,Research Grant Expenditure,RE- HEIF,Manchester Metropolitan University,98746137,90278.83,Research Grant Expenditure
BEIS,UKRI - Research England,12/05/2020,Research Grant Expenditure,RE- HEIF,Middlesex University,98746138,132341.81,Research Grant Expenditure
BEIS,UKRI - Research England,12/05/2020,Research Grant Expenditure,RE- HEIF,The National Film & Television School,98746139,22797.28,Research Grant Expenditure
BEIS,UKRI - Research England,12/05/2020,Research Grant Expenditure,RE- HEIF,Newcastle University,98746140,325088.46,Research Grant Expenditure
BEIS,UKRI - Research England,12/05/2020,Research Grant Expenditure,RE- HEIF,University of Northampton,98746141,50167.71,Research Grant Expenditure
BEIS,UKRI - Research England,12/05/2020,Research Grant Expenditure,RE- HEIF,Northumbria University,98746142,46711.13,Research Grant Expenditure
BEIS,UKRI - Research England,12/05/2020,Research Grant Expenditure,RE- Quality Research (QR),Queen Mary University of London,98746143,2004394.00,Research Grant Expenditure
BEIS,UKRI - Research England,12/05/2020,Research Grant Expenditure,RE- Quality Research (QR),University of Reading,98746144,1101894.00,Research Grant Expenditure
BEIS,UKRI - Research England,12/05/2020,Research Grant Expenditure,RE- Quality Research (QR),Roehampton University (University of Roehampton),98746145,221075.00,Research Grant Expenditure
BEIS,UKRI - Research England,12/05/2020,Research Grant Expenditure,RE- Quality Research (QR),Rose Bruford College of Theatre and Performance,98746146,4022.00,Research Grant Expenditure
BEIS,UKRI - Research England,12/05/2020,Research Grant Expenditure,RE- Quality Research (QR),Royal Academy of Music,98746147,20996.00,Research Grant Expenditure
BEIS,UKRI - Research England,12/05/2020,Research Grant Expenditure,RE- Quality Research (QR),Royal Agricultural University,98746148,3355.00,Research Grant Expenditure
BEIS,UKRI - Research England,12/05/2020,Research Grant Expenditure,RE- Quality Research (QR),The Royal Central School of Speech and Drama,98746149,40606.00,Research Grant Expenditure
BEIS,UKRI - Research England,12/05/2020,Research Grant Expenditure,RE- Quality Research (QR),Royal College of Art,98746150,143279.00,Research Grant Expenditure
BEIS,UKRI - Research England,12/05/2020,Research Grant Expenditure,RE- Quality Research (QR),Royal College of Music,98746151,26762.00,Research Grant Expenditure
BEIS,UKRI - Research England,12/05/2020,Research Grant Expenditure,RE- Quality Research (QR),Royal Holloway & Bedford New C,98746152,795516.00,Research Grant Expenditure
BEIS,UKRI - Research England,12/05/2020,Research Grant Expenditure,RE- Quality Research (QR),Royal Northern College of Music,98746153,19373.00,Research Grant Expenditure
BEIS,UKRI - Research England,12/05/2020,Research Grant Expenditure,RE- Quality Research (QR),Royal Veterinary College,98746154,279717.00,Research Grant Expenditure
BEIS,UKRI - Research England,12/05/2020,Research Grant Expenditure,RE- Quality Research (QR),University of Salford,98746155,248473.00,Research Grant Expenditure
BEIS,UKRI - Research England,12/05/2020,Research Grant Expenditure,RE- Quality Research (QR),University of Sheffield,98746156,2645938.00,Research Grant Expenditure
BEIS,UKRI - Research England,12/05/2020,Research Grant Expenditure,RE- Quality Research (QR),Sheffield Hallam University,98746157,300507.00,Research Grant Expenditure
BEIS,UKRI - Research England,12/05/2020,Research Grant Expenditure,RE- Quality Research (QR),Solent University Ltd,98746158,10428.00,Research Grant Expenditure
BEIS,UKRI - Research England,12/05/2020,Research Grant Expenditure,RE- Quality Research (QR),University of Southampton,98746159,2825303.00,Research Grant Expenditure
BEIS,UKRI - Research England,12/05/2020,Research Grant Expenditure,RE- Quality Research (QR),University of St Mark & St John,98746160,166.00,Research Grant Expenditure
BEIS,UKRI - Research England,12/05/2020,Research Grant Expenditure,RE- Quality Research (QR),St Marys University,98746161,29679.00,Research Grant Expenditure
BEIS,UKRI - Research England,12/05/2020,Research Grant Expenditure,RE- Quality Research (QR),St George's University of London,98746162,162862.00,Research Grant Expenditure
BEIS,UKRI - Research England,12/05/2020,Research Grant Expenditure,RE- Quality Research (QR),Staffordshire University,98746163,55118.00,Research Grant Expenditure
BEIS,UKRI - Research England,12/05/2020,Research Grant Expenditure,RE- Quality Research (QR),University of Suffolk Ltd,98746164,501.00,Research Grant Expenditure
BEIS,UKRI - Research England,12/05/2020,Research Grant Expenditure,RE- Quality Research (QR),University of Sunderland,98746165,83340.00,Research Grant Expenditure
BEIS,UKRI - Research England,12/05/2020,Research Grant Expenditure,RE- Quality Research (QR),University of Surrey,98746166,932611.00,Research Grant Expenditure
BEIS,UKRI - Research England,12/05/2020,Research Grant Expenditure,RE- Quality Research (QR),University of Sussex,98746167,916820.00,Research Grant Expenditure
BEIS,UKRI - Research England,12/05/2020,Research Grant Expenditure,RE- Quality Research (QR),Teesside University,98746168,96888.00,Research Grant Expenditure
BEIS,UKRI - Research England,12/05/2020,Research Grant Expenditure,RE- Quality Research (QR),Trinity Laban Conservatoire of Music and Dance,98746169,15319.00,Research Grant Expenditure
BEIS,UKRI - Research England,12/05/2020,Research Grant Expenditure,RE- Quality Research (QR),University of Warwick,98746170,2267495.00,Research Grant Expenditure
BEIS,UKRI - Research England,12/05/2020,Research Grant Expenditure,RE- Quality Research (QR),University of West London,98746171,22913.00,Research Grant Expenditure
BEIS,UKRI - Research England,12/05/2020,Research Grant Expenditure,RE- Quality Research (QR),University of the West of England,98746172,344558.00,Research Grant Expenditure
BEIS,UKRI - Research England,12/05/2020,Research Grant Expenditure,RE- Quality Research (QR),University of Westminster,98746173,280339.00,Research Grant Expenditure
BEIS,UKRI - Research England,12/05/2020,Research Grant Expenditure,RE- Quality Research (QR),University of Winchester,98746174,51753.00,Research Grant Expenditure
BEIS,UKRI - Research England,12/05/2020,Research Grant Expenditure,RE- Quality Research (QR),University of Wolverhampton,98746175,119590.00,Research Grant Expenditure
BEIS,UKRI - Research England,12/05/2020,Research Grant Expenditure,RE- Quality Research (QR),University of Worcester,98746176,59342.00,Research Grant Expenditure
BEIS,UKRI - Research England,12/05/2020,Research Grant Expenditure,RE- Quality Research (QR),Writtle College,98746177,2528.00,Research Grant Expenditure
BEIS,UKRI - Research England,12/05/2020,Research Grant Expenditure,RE- Quality Research (QR),University of York,98746178,1463124.00,Research Grant Expenditure
BEIS,UKRI - Research England,12/05/2020,Research Grant Expenditure,RE- Quality Research (QR),York St John University,98746179,34175.00,Research Grant Expenditure
BEIS,UKRI - Research England,12/05/2020,Research Grant Expenditure,RE- HEIF,Nottingham Trent University,98746180,134825.16,Research Grant Expenditure
BEIS,UKRI - Research England,12/05/2020,Research Grant Expenditure,RE- HEIF,University of Nottingham,98746181,337268.81,Research Grant Expenditure
BEIS,UKRI - Research England,12/05/2020,Research Grant Expenditure,RE- HEIF,Open University,98746182,81092.79,Research Grant Expenditure
BEIS,UKRI - Research England,12/05/2020,Research Grant Expenditure,RE- HEIF,"SOAS, University of London",98746183,38633.40,Research Grant Expenditure
BEIS,UKRI - Research England,12/05/2020,Research Grant Expenditure,RE- HEIF,University of Oxford,98746184,337268.81,Research Grant Expenditure
BEIS,UKRI - Research England,12/05/2020,Research Grant Expenditure,RE- HEIF,Oxford Brookes University,98746185,89817.83,Research Grant Expenditure
BEIS,UKRI - Research England,12/05/2020,Research Grant Expenditure,RE- HEIF,University of Plymouth,98746186,159166.03,Research Grant Expenditure
BEIS,UKRI - Research England,12/05/2020,Research Grant Expenditure,RE- HEIF,University of Portsmouth,98746187,139277.06,Research Grant Expenditure
BEIS,UKRI - Research England,12/05/2020,Research Grant Expenditure,RE- HEIF,Queen Mary University of London,98746188,319641.72,Research Grant Expenditure
BEIS,UKRI - Research England,12/05/2020,Research Grant Expenditure,RE- HEIF,University of Reading,98746189,201360.46,Research Grant Expenditure
BEIS,UKRI - Research England,12/05/2020,Research Grant Expenditure,RE- HEIF,Roehampton University (University of Roehampton),98746190,38299.92,Research Grant Expenditure
BEIS,UKRI - Research England,12/05/2020,Research Grant Expenditure,RE- HEIF,Royal Academy of Dramatic Arts,98746191,55775.34,Research Grant Expenditure
BEIS,UKRI - Research England,12/05/2020,Research Grant Expenditure,RE- HEIF,Royal Agricultural University,98746192,19542.53,Research Grant Expenditure
BEIS,UKRI - Research England,12/05/2020,Research Grant Expenditure,RE- HEIF,Royal College of Art,98746193,28312.44,Research Grant Expenditure
BEIS,UKRI - Research England,12/05/2020,Research Grant Expenditure,RE- HEIF,Royal College of Music,98746194,23669.60,Research Grant Expenditure
BEIS,UKRI - Research England,12/05/2020,Research Grant Expenditure,RE- HEIF,Royal Holloway & Bedford New C,98746195,57950.05,Research Grant Expenditure
BEIS,UKRI - Research England,12/05/2020,Research Grant Expenditure,RE- HEIF,Royal Northern College of Music,98746196,26416.33,Research Grant Expenditure
BEIS,UKRI - Research England,12/05/2020,Research Grant Expenditure,RE- HEIF,Royal Veterinary College,98746197,133691.81,Research Grant Expenditure
BEIS,UKRI - Research England,12/05/2020,Research Grant Expenditure,RE- HEIF,University of Salford,98746198,136150.23,Research Grant Expenditure
BEIS,UKRI - Research England,12/05/2020,Research Grant Expenditure,RE- HEIF,University of Sheffield,98746199,337268.81,Research Grant Expenditure
BEIS,UKRI - Research England,12/05/2020,Research Grant Expenditure,RE- HEIF,Sheffield Hallam University,98746200,85765.96,Research Grant Expenditure
BEIS,UKRI - Research England,12/05/2020,Research Grant Expenditure,RE- HEIF,Solent University Ltd,98746201,100612.45,Research Grant Expenditure
BEIS,UKRI - Research England,12/05/2020,Research Grant Expenditure,RE- HEIF,University of Southampton,98746202,337268.81,Research Grant Expenditure
BEIS,UKRI - Research England,12/05/2020,Research Grant Expenditure,RE- HEIF,St Marys University,98746203,32110.45,Research Grant Expenditure
BEIS,UKRI - Research England,12/05/2020,Research Grant Expenditure,RE- HEIF,St George's University of London,98746204,42641.49,Research Grant Expenditure
BEIS,UKRI - Research England,12/05/2020,Research Grant Expenditure,RE- HEIF,Staffordshire University,98746205,88142.80,Research Grant Expenditure
BEIS,UKRI - Research England,12/05/2020,Research Grant Expenditure,RE- HEIF,University of Sunderland,98746206,46567.02,Research Grant Expenditure
BEIS,UKRI - Research England,12/05/2020,Research Grant Expenditure,RE- HEIF,University of Surrey,98746207,318514.07,Research Grant Expenditure
BEIS,UKRI - Research England,12/05/2020,Research Grant Expenditure,RE- HEIF,University of Sussex,98746208,244339.94,Research Grant Expenditure
BEIS,UKRI - Research England,12/05/2020,Research Grant Expenditure,RE- HEIF,Teesside University,98746209,90920.75,Research Grant Expenditure
BEIS,UKRI - Research England,12/05/2020,Research Grant Expenditure,RE- HEIF,Trinity Laban Conservatoire of Music and Dance,98746210,34007.05,Research Grant Expenditure
BEIS,UKRI - Research England,12/05/2020,Research Grant Expenditure,RE- HEIF,University of Warwick,98746211,326381.03,Research Grant Expenditure
BEIS,UKRI - Research England,12/05/2020,Research Grant Expenditure,RE- HEIF,University of West London,98746212,29943.40,Research Grant Expenditure
BEIS,UKRI - Research England,12/05/2020,Research Grant Expenditure,RE- HEIF,University of the West of England,98746213,130750.61,Research Grant Expenditure
BEIS,UKRI - Research England,12/05/2020,Research Grant Expenditure,RE- HEIF,University of Westminster,98746214,74949.45,Research Grant Expenditure
BEIS,UKRI - Research England,12/05/2020,Research Grant Expenditure,RE- HEIF,University of Winchester,98746215,19014.98,Research Grant Expenditure
BEIS,UKRI - Research England,12/05/2020,Research Grant Expenditure,RE- HEIF,University of Wolverhampton,98746216,111181.67,Research Grant Expenditure
BEIS,UKRI - Research England,12/05/2020,Research Grant Expenditure,RE- HEIF,University of Worcester,98746217,32443.24,Research Grant Expenditure
BEIS,UKRI - Research England,12/05/2020,Research Grant Expenditure,RE- HEIF,University of York,98746218,320055.40,Research Grant Expenditure
BEIS,UKRI - Research England,12/05/2020,Research Grant Expenditure,RE - JISC,JISC,98746219,166666.67,Research Grant Expenditure
BEIS,UKRI - Research England,12/05/2020,Research Grant Expenditure,"RE - Museums, Galleries and Collections",Arts University Bournemouth,98746220,6385.42,Research Grant Expenditure
BEIS,UKRI - Research England,12/05/2020,Research Grant Expenditure,"RE - Museums, Galleries and Collections",University of Durham,98746221,6666.67,Research Grant Expenditure
BEIS,UKRI - Research England,12/05/2020,Research Grant Expenditure,"RE - Museums, Galleries and Collections",London School of Economics and Political Science,98746222,3750.00,Research Grant Expenditure
BEIS,UKRI - Research England,12/05/2020,Research Grant Expenditure,"RE - Museums, Galleries and Collections",Royal Academy of Music,98746223,12500.00,Research Grant Expenditure
BEIS,UKRI - Research England,12/05/2020,Research Grant Expenditure,"RE - Museums, Galleries and Collections",Courtauld Institute of Art,98746224,80416.67,Research Grant Expenditure
BEIS,UKRI - Research England,12/05/2020,Research Grant Expenditure,"RE - Museums, Galleries and Collections",University College London,98746225,25916.67,Research Grant Expenditure
BEIS,UKRI - Research England,12/05/2020,Research Grant Expenditure,"RE - Museums, Galleries and Collections",University of Birmingham,98746226,17500.00,Research Grant Expenditure
BEIS,UKRI - Research England,12/05/2020,Research Grant Expenditure,"RE - Museums, Galleries and Collections",University of Brighton,98746227,5000.00,Research Grant Expenditure
BEIS,UKRI - Research England,12/05/2020,Research Grant Expenditure,"RE - Museums, Galleries and Collections",University of Bristol,98746228,5833.33,Research Grant Expenditure
BEIS,UKRI - Research England,12/05/2020,Research Grant Expenditure,"RE - Museums, Galleries and Collections",University of Cambridge,98746229,176333.33,Research Grant Expenditure
BEIS,UKRI - Research England,12/05/2020,Research Grant Expenditure,"RE - Museums, Galleries and Collections",University of East Anglia,98746230,20833.33,Research Grant Expenditure
BEIS,UKRI - Research England,12/05/2020,Research Grant Expenditure,"RE - Museums, Galleries and Collections",University of Leeds,98746231,4166.67,Research Grant Expenditure
BEIS,UKRI - Research England,12/05/2020,Research Grant Expenditure,"RE - Museums, Galleries and Collections",The University of Manchester,98746232,172500.00,Research Grant Expenditure
BEIS,UKRI - Research England,12/05/2020,Research Grant Expenditure,"RE - Museums, Galleries and Collections",Newcastle University,98746233,16666.67,Research Grant Expenditure
BEIS,UKRI - Research England,12/05/2020,Research Grant Expenditure,"RE - Museums, Galleries and Collections",University of Oxford,98746234,296666.67,Research Grant Expenditure
BEIS,UKRI - Research England,12/05/2020,Research Grant Expenditure,"RE - Museums, Galleries and Collections",University of Reading,98746235,25000.00,Research Grant Expenditure
BEIS,UKRI - Research England,12/05/2020,Research Grant Expenditure,"RE - Museums, Galleries and Collections",University of the Arts London,98746236,3333.33,Research Grant Expenditure
BEIS,UKRI - Research England,12/05/2020,Research Grant Expenditure,"RE - Museums, Galleries and Collections",University for the Creative Arts,98746237,5833.33,Research Grant Expenditure
BEIS,UKRI - Research England,12/05/2020,Research Grant Expenditure,"RE - Museums, Galleries and Collections",University of York,98746238,6666.67,Research Grant Expenditure
BEIS,UKRI - Research England,12/05/2020,Research Grant Expenditure,RE- Quality Research (QR),AECC University College,98746239,307.03,Research Grant Expenditure
BEIS,UKRI - Research England,12/05/2020,Research Grant Expenditure,RE- Quality Research (QR),Anglia Ruskin University,98746240,211203.93,Research Grant Expenditure
BEIS,UKRI - Research England,12/05/2020,Research Grant Expenditure,RE- Quality Research (QR),Arts University Bournemouth,98746241,10660.84,Research Grant Expenditure
BEIS,UKRI - Research England,12/05/2020,Research Grant Expenditure,RE- Quality Research (QR),University of the Arts London,98746242,309221.32,Research Grant Expenditure
BEIS,UKRI - Research England,12/05/2020,Research Grant Expenditure,RE- Quality Research (QR),Aston University,98746243,552141.89,Research Grant Expenditure
BEIS,UKRI - Research England,12/05/2020,Research Grant Expenditure,RE- Quality Research (QR),University of Bath,98746244,1569843.12,Research Grant Expenditure
BEIS,UKRI - Research England,12/05/2020,Research Grant Expenditure,RE- Quality Research (QR),Bath Spa University,98746245,95265.30,Research Grant Expenditure
BEIS,UKRI - Research England,12/05/2020,Research Grant Expenditure,RE- Quality Research (QR),University of Bedfordshire,98746246,207247.71,Research Grant Expenditure
BEIS,UKRI - Research England,12/05/2020,Research Grant Expenditure,RE- Quality Research (QR),Birkbeck College,98746247,881394.53,Research Grant Expenditure
BEIS,UKRI - Research England,12/05/2020,Research Grant Expenditure,RE- Quality Research (QR),University of Birmingham,98746249,3565499.47,Research Grant Expenditure
BEIS,UKRI - Research England,12/05/2020,Research Grant Expenditure,RE- Quality Research (QR),Birmingham City University,98746250,216297.96,Research Grant Expenditure
BEIS,UKRI - Research England,12/05/2020,Research Grant Expenditure,RE- Quality Research (QR),"Bishop Grosseteste University College, Lincoln",98746251,7318.77,Research Grant Expenditure
BEIS,UKRI - Research England,12/05/2020,Research Grant Expenditure,RE- Quality Research (QR),University of Bolton,98746252,42840.14,Research Grant Expenditure
BEIS,UKRI - Research England,12/05/2020,Research Grant Expenditure,RE- Quality Research (QR),Bournemouth University,98746253,280565.21,Research Grant Expenditure
BEIS,UKRI - Research England,12/05/2020,Research Grant Expenditure,RE- Quality Research (QR),University of Bradford,98746254,331466.91,Research Grant Expenditure
BEIS,UKRI - Research England,12/05/2020,Research Grant Expenditure,RE- Quality Research (QR),University of Brighton,98746255,442208.81,Research Grant Expenditure
BEIS,UKRI - Research England,12/05/2020,Research Grant Expenditure,RE- Quality Research (QR),University of Bristol,98746256,4164498.04,Research Grant Expenditure
BEIS,UKRI - Research England,12/05/2020,Research Grant Expenditure,RE- Quality Research (QR),Brunel University London,98746257,1001197.32,Research Grant Expenditure
BEIS,UKRI - Research England,12/05/2020,Research Grant Expenditure,RE- Quality Research (QR),Buckinghamshire New University (Bucks New University),98746258,20146.67,Research Grant Expenditure
BEIS,UKRI - Research England,12/05/2020,Research Grant Expenditure,RE- Quality Research (QR),University of Cambridge,98746259,11164473.10,Research Grant Expenditure
BEIS,UKRI - Research England,12/05/2020,Research Grant Expenditure,RE- Quality Research (QR),Canterbury Christ Church University,98746260,194606.12,Research Grant Expenditure
BEIS,UKRI - Research England,12/05/2020,Research Grant Expenditure,RE- Quality Research (QR),University of Central Lancashire,98746261,351880.34,Research Grant Expenditure
BEIS,UKRI - Research England,12/05/2020,Research Grant Expenditure,RE- Quality Research (QR),University of Chester,98746262,130136.03,Research Grant Expenditure
BEIS,UKRI - Research England,12/05/2020,Research Grant Expenditure,RE- Quality Research (QR),University of Chichester,98746263,74938.03,Research Grant Expenditure
BEIS,UKRI - Research England,12/05/2020,Research Grant Expenditure,RE- Quality Research (QR),"City, University of London",98746264,929281.32,Research Grant Expenditure
BEIS,UKRI - Research England,12/05/2020,Research Grant Expenditure,RE- Quality Research (QR),Courtauld Institute of Art,98746265,139861.72,Research Grant Expenditure
BEIS,UKRI - Research England,12/05/2020,Research Grant Expenditure,RE- Quality Research (QR),Coventry University,98746266,327395.34,Research Grant Expenditure
BEIS,UKRI - Research England,12/05/2020,Research Grant Expenditure,RE- Quality Research (QR),Cranfield University,98746267,893970.18,Research Grant Expenditure
BEIS,UKRI - Research England,12/05/2020,Research Grant Expenditure,RE- Quality Research (QR),University for the Creative Arts,98746268,36865.46,Research Grant Expenditure
BEIS,UKRI - Research England,12/05/2020,Research Grant Expenditure,RE- Quality Research (QR),University of Cumbria,98746269,23173.80,Research Grant Expenditure
BEIS,UKRI - Research England,12/05/2020,Research Grant Expenditure,RE- Quality Research (QR),De Montfort University,98746270,344525.17,Research Grant Expenditure
BEIS,UKRI - Research England,12/05/2020,Research Grant Expenditure,RE- Quality Research (QR),University of Derby,98746271,91136.13,Research Grant Expenditure
BEIS,UKRI - Research England,12/05/2020,Research Grant Expenditure,RE- Quality Research (QR),University of Durham,98746272,2204107.65,Research Grant Expenditure
BEIS,UKRI - Research England,12/05/2020,Research Grant Expenditure,RE- Quality Research (QR),University of East Anglia,98746273,1442431.23,Research Grant Expenditure
BEIS,UKRI - Research England,12/05/2020,Research Grant Expenditure,RE- Quality Research (QR),University of East London,98746274,239304.97,Research Grant Expenditure
BEIS,UKRI - Research England,12/05/2020,Research Grant Expenditure,RE- Quality Research (QR),Edge Hill University College,98746275,121455.32,Research Grant Expenditure
BEIS,UKRI - Research England,12/05/2020,Research Grant Expenditure,RE- Quality Research (QR),University of Essex,98746276,771904.23,Research Grant Expenditure
BEIS,UKRI - Research England,12/05/2020,Research Grant Expenditure,RE- Quality Research (QR),University of Exeter,98746277,2210510.17,Research Grant Expenditure
BEIS,UKRI - Research England,12/05/2020,Research Grant Expenditure,RE- Quality Research (QR),Falmouth University,98746278,35570.34,Research Grant Expenditure
BEIS,UKRI - Research England,12/05/2020,Research Grant Expenditure,RE- Quality Research (QR),University of Gloucestershire,98746279,67083.62,Research Grant Expenditure
BEIS,UKRI - Research England,12/05/2020,Research Grant Expenditure,RE- Quality Research (QR),Goldsmiths College University of London,98746280,529704.11,Research Grant Expenditure
BEIS,UKRI - Research England,12/05/2020,Research Grant Expenditure,RE- Quality Research (QR),University of Greenwich,98746281,311030.27,Research Grant Expenditure
BEIS,UKRI - Research England,12/05/2020,Research Grant Expenditure,RE- Quality Research (QR),Guildhall School of Music & Drama,98746282,40398.33,Research Grant Expenditure
BEIS,UKRI - Research England,12/05/2020,Research Grant Expenditure,RE- Quality Research (QR),Harper Adams University College,98746283,42329.75,Research Grant Expenditure
BEIS,UKRI - Research England,12/05/2020,Research Grant Expenditure,RE- Quality Research (QR),University of Hertfordshire,98746284,350130.31,Research Grant Expenditure
BEIS,UKRI - Research England,12/05/2020,Research Grant Expenditure,RE- Quality Research (QR),University of Huddersfield,98746285,496471.83,Research Grant Expenditure
BEIS,UKRI - Research England,12/05/2020,Research Grant Expenditure,RE- Quality Research (QR),University of Hull,98746286,673699.03,Research Grant Expenditure
BEIS,UKRI - Research England,12/05/2020,Research Grant Expenditure,RE- Quality Research (QR),Imperial College Science Tech & Med,98746287,8338316.36,Research Grant Expenditure
BEIS,UKRI - Research England,12/05/2020,Research Grant Expenditure,RE- Quality Research (QR),Institute of Cancer Research,98746288,1402850.51,Research Grant Expenditure
BEIS,UKRI - Research England,12/05/2020,Research Grant Expenditure,RE- Quality Research (QR),Keele University,98746289,615654.41,Research Grant Expenditure
BEIS,UKRI - Research England,12/05/2020,Research Grant Expenditure,RE- Quality Research (QR),University of Kent,98746290,1274057.78,Research Grant Expenditure
BEIS,UKRI - Research England,12/05/2020,Research Grant Expenditure,RE- Quality Research (QR),King's College London,98746291,6299454.28,Research Grant Expenditure
BEIS,UKRI - Research England,12/05/2020,Research Grant Expenditure,RE- Quality Research (QR),Kingston University,98746292,284374.07,Research Grant Expenditure
BEIS,UKRI - Research England,12/05/2020,Research Grant Expenditure,RE- Quality Research (QR),Lancaster University,98746293,1795656.72,Research Grant Expenditure
BEIS,UKRI - Research England,12/05/2020,Research Grant Expenditure,RE- Quality Research (QR),University of Leeds,98746294,3963109.40,Research Grant Expenditure
BEIS,UKRI - Research England,12/05/2020,Research Grant Expenditure,RE- Quality Research (QR),Leeds Beckett University,98746295,216373.67,Research Grant Expenditure
BEIS,UKRI - Research England,12/05/2020,Research Grant Expenditure,RE- Quality Research (QR),Leeds Trinity University,98746296,12373.33,Research Grant Expenditure
BEIS,UKRI - Research England,12/05/2020,Research Grant Expenditure,RE- Quality Research (QR),University of Leicester,98746297,1660347.08,Research Grant Expenditure
BEIS,UKRI - Research England,12/05/2020,Research Grant Expenditure,RE- Quality Research (QR),University of Lincoln,98746298,322513.37,Research Grant Expenditure
BEIS,UKRI - Research England,12/05/2020,Research Grant Expenditure,RE- Quality Research (QR),University of Liverpool,98746299,2601721.44,Research Grant Expenditure
BEIS,UKRI - Research England,12/05/2020,Research Grant Expenditure,RE- Quality Research (QR),Liverpool Hope University,98746300,96362.41,Research Grant Expenditure
BEIS,UKRI - Research England,12/05/2020,Research Grant Expenditure,RE- Quality Research (QR),Liverpool John Moores University,98746301,528293.46,Research Grant Expenditure
BEIS,UKRI - Research England,12/05/2020,Research Grant Expenditure,RE- Quality Research (QR),Liverpool School of Tropical Medicine,98746302,607904.19,Research Grant Expenditure
BEIS,UKRI - Research England,12/05/2020,Research Grant Expenditure,RE- Quality Research (QR),University College London,98746303,12708843.40,Research Grant Expenditure
BEIS,UKRI - Research England,12/05/2020,Research Grant Expenditure,RE- Quality Research (QR),University of London,98746304,755.09,Research Grant Expenditure
BEIS,UKRI - Research England,12/05/2020,Research Grant Expenditure,RE- Quality Research (QR),London Business School,98746305,281610.54,Research Grant Expenditure
BEIS,UKRI - Research England,12/05/2020,Research Grant Expenditure,RE- Quality Research (QR),London Metropolitan University,98746306,102971.11,Research Grant Expenditure
BEIS,UKRI - Research England,12/05/2020,Research Grant Expenditure,RE- Quality Research (QR),London School of Economics and Political Science,98746307,1616442.71,Research Grant Expenditure
BEIS,UKRI - Research England,12/05/2020,Research Grant Expenditure,RE- Quality Research (QR),London School of Hygiene & Tropical Medicine,98746308,1754888.68,Research Grant Expenditure
BEIS,UKRI - Research England,12/05/2020,Research Grant Expenditure,RE- Quality Research (QR),London South Bank University,98746309,172512.02,Research Grant Expenditure
BEIS,UKRI - Research England,12/05/2020,Research Grant Expenditure,RE- Quality Research (QR),Loughborough University,98746310,1594120.54,Research Grant Expenditure
BEIS,UKRI - Research England,12/05/2020,Research Grant Expenditure,RE- Quality Research (QR),The University of Manchester,98746311,6154106.56,Research Grant Expenditure
BEIS,UKRI - Research England,12/05/2020,Research Grant Expenditure,RE- Quality Research (QR),Manchester Metropolitan University,98746312,596651.71,Research Grant Expenditure
BEIS,UKRI - Research England,12/05/2020,Research Grant Expenditure,RE- Quality Research (QR),Middlesex University,98746313,400969.05,Research Grant Expenditure
BEIS,UKRI - Research England,12/05/2020,Research Grant Expenditure,RE- Quality Research (QR),Newcastle University,98746314,3040572.97,Research Grant Expenditure
BEIS,UKRI - Research England,12/05/2020,Research Grant Expenditure,RE- Quality Research (QR),Newman University,98746315,18094.27,Research Grant Expenditure
BEIS,UKRI - Research England,12/05/2020,Research Grant Expenditure,RE- Quality Research (QR),University of Northampton,98746316,59363.04,Research Grant Expenditure
BEIS,UKRI - Research England,12/05/2020,Research Grant Expenditure,RE- Quality Research (QR),Northumbria University,98746317,600388.82,Research Grant Expenditure
BEIS,UKRI - Research England,12/05/2020,Research Grant Expenditure,RE- Quality Research (QR),Norwich University of the Arts,98746318,11418.75,Research Grant Expenditure
BEIS,UKRI - Research England,12/05/2020,Research Grant Expenditure,RE- Quality Research (QR),Nottingham Trent University,98746319,412631.70,Research Grant Expenditure
BEIS,UKRI - Research England,12/05/2020,Research Grant Expenditure,RE- Quality Research (QR),University of Nottingham,98746320,4387198.00,Research Grant Expenditure
BEIS,UKRI - Research England,12/05/2020,Research Grant Expenditure,RE- Quality Research (QR),Open University,98746321,782635.32,Research Grant Expenditure
BEIS,UKRI - Research England,12/05/2020,Research Grant Expenditure,RE- Quality Research (QR),"SOAS, University of London",98746322,498689.18,Research Grant Expenditure
BEIS,UKRI - Research England,12/05/2020,Research Grant Expenditure,RE- Quality Research (QR),University of Oxford,98746323,12898030.60,Research Grant Expenditure
BEIS,UKRI - Research England,12/05/2020,Research Grant Expenditure,RE- Quality Research (QR),Oxford Brookes University,98746324,446575.19,Research Grant Expenditure
BEIS,UKRI - Research England,12/05/2020,Research Grant Expenditure,RE- Quality Research (QR),University of Plymouth,98746325,740274.54,Research Grant Expenditure
BEIS,UKRI - Research England,12/05/2020,Research Grant Expenditure,RE- Quality Research (QR),University of Portsmouth,98746326,523910.37,Research Grant Expenditure
BEIS,UKRI - Research England,12/05/2020,Research Grant Expenditure,RE- Quality Research (QR),Queen Mary University of London,98746327,2870729.25,Research Grant Expenditure
BEIS,UKRI - Research England,12/05/2020,Research Grant Expenditure,RE- Quality Research (QR),University of Reading,98746328,1578152.01,Research Grant Expenditure
BEIS,UKRI - Research England,12/05/2020,Research Grant Expenditure,RE- Quality Research (QR),Roehampton University (University of Roehampton),98746329,316627.84,Research Grant Expenditure
BEIS,UKRI - Research England,12/05/2020,Research Grant Expenditure,RE- Quality Research (QR),Rose Bruford College of Theatre and Performance,98746330,5760.85,Research Grant Expenditure
BEIS,UKRI - Research England,12/05/2020,Research Grant Expenditure,RE- Quality Research (QR),Royal Academy of Music,98746331,30070.36,Research Grant Expenditure
BEIS,UKRI - Research England,12/05/2020,Research Grant Expenditure,RE- Quality Research (QR),Royal Agricultural University,98746332,4805.74,Research Grant Expenditure
BEIS,UKRI - Research England,12/05/2020,Research Grant Expenditure,RE- Quality Research (QR),The Royal Central School of Speech and Drama,98746333,58156.11,Research Grant Expenditure
BEIS,UKRI - Research England,12/05/2020,Research Grant Expenditure,RE- Quality Research (QR),Royal College of Art,98746334,205206.47,Research Grant Expenditure
BEIS,UKRI - Research England,12/05/2020,Research Grant Expenditure,RE- Quality Research (QR),Royal College of Music,98746335,38328.51,Research Grant Expenditure
BEIS,UKRI - Research England,12/05/2020,Research Grant Expenditure,RE- Quality Research (QR),Royal Holloway & Bedford New C,98746336,1139351.91,Research Grant Expenditure
BEIS,UKRI - Research England,12/05/2020,Research Grant Expenditure,RE- Quality Research (QR),Royal Northern College of Music,98746337,27746.63,Research Grant Expenditure
BEIS,UKRI - Research England,12/05/2020,Research Grant Expenditure,RE- Quality Research (QR),Royal Veterinary College,98746338,400615.51,Research Grant Expenditure
BEIS,UKRI - Research England,12/05/2020,Research Grant Expenditure,RE- Quality Research (QR),University of Salford,98746339,355868.12,Research Grant Expenditure
BEIS,UKRI - Research England,12/05/2020,Research Grant Expenditure,RE- Quality Research (QR),University of Sheffield,98746340,3789559.70,Research Grant Expenditure
BEIS,UKRI - Research England,12/05/2020,Research Grant Expenditure,RE- Quality Research (QR),Sheffield Hallam University,98746341,430391.24,Research Grant Expenditure
BEIS,UKRI - Research England,12/05/2020,Research Grant Expenditure,RE- Quality Research (QR),Solent University Ltd,98746342,14934.82,Research Grant Expenditure
BEIS,UKRI - Research England,12/05/2020,Research Grant Expenditure,RE- Quality Research (QR),University of Southampton,98746343,4046450.03,Research Grant Expenditure
BEIS,UKRI - Research England,12/05/2020,Research Grant Expenditure,RE- Quality Research (QR),University of St Mark & St John,98746344,237.39,Research Grant Expenditure
BEIS,UKRI - Research England,12/05/2020,Research Grant Expenditure,RE- Quality Research (QR),St Marys University,98746345,42506.56,Research Grant Expenditure
BEIS,UKRI - Research England,12/05/2020,Research Grant Expenditure,RE- Quality Research (QR),St George's University of London,98746346,233254.41,Research Grant Expenditure
BEIS,UKRI - Research England,12/05/2020,Research Grant Expenditure,RE- Quality Research (QR),Staffordshire University,98746347,78940.49,Research Grant Expenditure
BEIS,UKRI - Research England,12/05/2020,Research Grant Expenditure,RE- Quality Research (QR),University of Suffolk Ltd,98746348,718.25,Research Grant Expenditure
BEIS,UKRI - Research England,12/05/2020,Research Grant Expenditure,RE- Quality Research (QR),University of Sunderland,98746349,119361.68,Research Grant Expenditure
BEIS,UKRI - Research England,12/05/2020,Research Grant Expenditure,RE- Quality Research (QR),University of Surrey,98746350,1335702.97,Research Grant Expenditure
BEIS,UKRI - Research England,12/05/2020,Research Grant Expenditure,RE- Quality Research (QR),University of Sussex,98746351,1313085.90,Research Grant Expenditure
BEIS,UKRI - Research England,12/05/2020,Research Grant Expenditure,RE- Quality Research (QR),Teesside University,98746352,138764.96,Research Grant Expenditure
BEIS,UKRI - Research England,12/05/2020,Research Grant Expenditure,RE- Quality Research (QR),Trinity Laban Conservatoire of Music and Dance,98746353,21939.44,Research Grant Expenditure
BEIS,UKRI - Research England,12/05/2020,Research Grant Expenditure,RE- Quality Research (QR),University of Warwick,98746354,3247547.32,Research Grant Expenditure
BEIS,UKRI - Research England,12/05/2020,Research Grant Expenditure,RE- Quality Research (QR),University of West London,98746355,32816.75,Research Grant Expenditure
BEIS,UKRI - Research England,12/05/2020,Research Grant Expenditure,RE- Quality Research (QR),University of the West of England,98746356,493482.51,Research Grant Expenditure
BEIS,UKRI - Research England,12/05/2020,Research Grant Expenditure,RE- Quality Research (QR),University of Westminster,98746357,401506.18,Research Grant Expenditure
BEIS,UKRI - Research England,12/05/2020,Research Grant Expenditure,RE- Quality Research (QR),University of Winchester,98746358,74121.22,Research Grant Expenditure
BEIS,UKRI - Research England,12/05/2020,Research Grant Expenditure,RE- Quality Research (QR),University of Wolverhampton,98746359,171279.25,Research Grant Expenditure
BEIS,UKRI - Research England,12/05/2020,Research Grant Expenditure,RE- Quality Research (QR),University of Worcester,98746360,84990.35,Research Grant Expenditure
BEIS,UKRI - Research England,12/05/2020,Research Grant Expenditure,RE- Quality Research (QR),Writtle College,98746361,3620.88,Research Grant Expenditure
BEIS,UKRI - Research England,12/05/2020,Research Grant Expenditure,RE- Quality Research (QR),University of York,98746362,2095512.76,Research Grant Expenditure
BEIS,UKRI - Research England,12/05/2020,Research Grant Expenditure,RE- Quality Research (QR),York St John University,98746363,48945.66,Research Grant Expenditure
BEIS,UKRI - Research England,12/05/2020,Research Grant Expenditure,RE- Quality Research (QR),AECC University College,98746364,214.00,Research Grant Expenditure
BEIS,UKRI - Research England,12/05/2020,Research Grant Expenditure,RE- Quality Research (QR),Anglia Ruskin University,98746365,147466.00,Research Grant Expenditure
BEIS,UKRI - Research England,12/05/2020,Research Grant Expenditure,RE- Quality Research (QR),Arts University Bournemouth,98746366,7444.00,Research Grant Expenditure
BEIS,UKRI - Research England,12/05/2020,Research Grant Expenditure,RE- Quality Research (QR),University of the Arts London,98746367,215904.00,Research Grant Expenditure
BEIS,UKRI - Research England,12/05/2020,Research Grant Expenditure,RE- Quality Research (QR),Aston University,98746368,385515.00,Research Grant Expenditure
BEIS,UKRI - Research England,12/05/2020,Research Grant Expenditure,RE- Quality Research (QR),University of Bath,98746369,1096092.00,Research Grant Expenditure
BEIS,UKRI - Research England,12/05/2020,Research Grant Expenditure,RE- Quality Research (QR),Bath Spa University,98746370,66516.00,Research Grant Expenditure
BEIS,UKRI - Research England,12/05/2020,Research Grant Expenditure,RE- Quality Research (QR),University of Bedfordshire,98746371,144704.00,Research Grant Expenditure
BEIS,UKRI - Research England,12/05/2020,Research Grant Expenditure,RE- Quality Research (QR),Birkbeck College,98746372,615405.00,Research Grant Expenditure
BEIS,UKRI - Research England,12/05/2020,Research Grant Expenditure,RE- Quality Research (QR),University of Birmingham,98746373,2489495.00,Research Grant Expenditure
BEIS,UKRI - Research England,12/05/2020,Research Grant Expenditure,RE- Quality Research (QR),Birmingham City University,98746374,151023.00,Research Grant Expenditure
BEIS,UKRI - Research England,12/05/2020,Research Grant Expenditure,RE- Quality Research (QR),"Bishop Grosseteste University College, Lincoln",98746375,5110.00,Research Grant Expenditure
BEIS,UKRI - Research England,12/05/2020,Research Grant Expenditure,RE- Quality Research (QR),University of Bolton,98746376,29912.00,Research Grant Expenditure
BEIS,UKRI - Research England,12/05/2020,Research Grant Expenditure,RE- Quality Research (QR),Bournemouth University,98746377,195896.00,Research Grant Expenditure
BEIS,UKRI - Research England,12/05/2020,Research Grant Expenditure,RE- Quality Research (QR),University of Bradford,98746378,231436.00,Research Grant Expenditure
BEIS,UKRI - Research England,12/05/2020,Research Grant Expenditure,RE- Quality Research (QR),University of Brighton,98746379,308758.00,Research Grant Expenditure
BEIS,UKRI - Research England,12/05/2020,Research Grant Expenditure,RE- Quality Research (QR),University of Bristol,98746380,2907726.00,Research Grant Expenditure
BEIS,UKRI - Research England,12/05/2020,Research Grant Expenditure,RE- Quality Research (QR),Brunel University London,98746381,699054.00,Research Grant Expenditure
BEIS,UKRI - Research England,12/05/2020,Research Grant Expenditure,RE- Quality Research (QR),Buckinghamshire New University (Bucks New University),98746382,14067.00,Research Grant Expenditure
BEIS,UKRI - Research England,12/05/2020,Research Grant Expenditure,RE- Quality Research (QR),University of Cambridge,98746383,7795233.00,Research Grant Expenditure
BEIS,UKRI - Research England,12/05/2020,Research Grant Expenditure,RE- Quality Research (QR),Canterbury Christ Church University,98746384,135877.00,Research Grant Expenditure
BEIS,UKRI - Research England,12/05/2020,Research Grant Expenditure,RE- Quality Research (QR),University of Central Lancashire,98746385,245689.00,Research Grant Expenditure
BEIS,UKRI - Research England,12/05/2020,Research Grant Expenditure,RE- Quality Research (QR),University of Chester,98746386,90863.00,Research Grant Expenditure
BEIS,UKRI - Research England,12/05/2020,Research Grant Expenditure,RE- Quality Research (QR),University of Chichester,98746387,52323.00,Research Grant Expenditure
BEIS,UKRI - Research England,12/05/2020,Research Grant Expenditure,RE- Quality Research (QR),"City, University of London",98746388,648841.00,Research Grant Expenditure
BEIS,UKRI - Research England,12/05/2020,Research Grant Expenditure,RE- Quality Research (QR),Courtauld Institute of Art,98746389,97654.00,Research Grant Expenditure
BEIS,UKRI - Research England,12/05/2020,Research Grant Expenditure,RE- Quality Research (QR),Coventry University,98746390,228593.00,Research Grant Expenditure
BEIS,UKRI - Research England,12/05/2020,Research Grant Expenditure,RE- Quality Research (QR),Cranfield University,98746391,624186.00,Research Grant Expenditure
BEIS,UKRI - Research England,12/05/2020,Research Grant Expenditure,RE- Quality Research (QR),University for the Creative Arts,98746392,25740.00,Research Grant Expenditure
BEIS,UKRI - Research England,12/05/2020,Research Grant Expenditure,RE- Quality Research (QR),University of Cumbria,98746393,16180.00,Research Grant Expenditure
BEIS,UKRI - Research England,12/05/2020,Research Grant Expenditure,RE- Quality Research (QR),De Montfort University,98746394,240554.00,Research Grant Expenditure
BEIS,UKRI - Research England,12/05/2020,Research Grant Expenditure,RE- Quality Research (QR),University of Derby,98746395,63633.00,Research Grant Expenditure
BEIS,UKRI - Research England,12/05/2020,Research Grant Expenditure,RE- Quality Research (QR),University of Durham,98746396,1538947.00,Research Grant Expenditure
BEIS,UKRI - Research England,12/05/2020,Research Grant Expenditure,RE- Quality Research (QR),University of East Anglia,98746397,1007131.00,Research Grant Expenditure
BEIS,UKRI - Research England,12/05/2020,Research Grant Expenditure,RE- Quality Research (QR),University of East London,98746398,167087.00,Research Grant Expenditure
BEIS,UKRI - Research England,12/05/2020,Research Grant Expenditure,RE- Quality Research (QR),Edge Hill University College,98746399,84802.00,Research Grant Expenditure
BEIS,UKRI - Research England,12/05/2020,Research Grant Expenditure,RE- Quality Research (QR),University of Essex,98746400,538957.00,Research Grant Expenditure
BEIS,UKRI - Research England,12/05/2020,Research Grant Expenditure,RE- Quality Research (QR),University of Exeter,98746401,1543417.00,Research Grant Expenditure
BEIS,UKRI - Research England,12/05/2020,Research Grant Expenditure,RE- Quality Research (QR),Falmouth University,98746402,24836.00,Research Grant Expenditure
BEIS,UKRI - Research England,12/05/2020,Research Grant Expenditure,RE- Quality Research (QR),University of Gloucestershire,98746403,46839.00,Research Grant Expenditure
BEIS,UKRI - Research England,12/05/2020,Research Grant Expenditure,RE- Quality Research (QR),Goldsmiths College University of London,98746404,369849.00,Research Grant Expenditure
BEIS,UKRI - Research England,12/05/2020,Research Grant Expenditure,RE- Quality Research (QR),University of Greenwich,98746405,217167.00,Research Grant Expenditure
BEIS,UKRI - Research England,12/05/2020,Research Grant Expenditure,RE- Quality Research (QR),Guildhall School of Music & Drama,98746406,28207.00,Research Grant Expenditure
BEIS,UKRI - Research England,12/05/2020,Research Grant Expenditure,RE- Quality Research (QR),Harper Adams University College,98746407,29555.00,Research Grant Expenditure
BEIS,UKRI - Research England,12/05/2020,Research Grant Expenditure,RE- Quality Research (QR),University of Hertfordshire,98746408,244467.00,Research Grant Expenditure
BEIS,UKRI - Research England,12/05/2020,Research Grant Expenditure,RE- Quality Research (QR),University of Huddersfield,98746409,346645.00,Research Grant Expenditure
BEIS,UKRI - Research England,12/05/2020,Research Grant Expenditure,RE- Quality Research (QR),University of Hull,98746410,470389.00,Research Grant Expenditure
BEIS,UKRI - Research England,12/05/2020,Research Grant Expenditure,RE- Quality Research (QR),Imperial College Science Tech & Med,98746411,5821960.00,Research Grant Expenditure
BEIS,UKRI - Research England,12/05/2020,Research Grant Expenditure,RE- Quality Research (QR),Institute of Cancer Research,98746412,979495.00,Research Grant Expenditure
BEIS,UKRI - Research England,12/05/2020,Research Grant Expenditure,RE- Quality Research (QR),Keele University,98746413,429861.00,Research Grant Expenditure
BEIS,UKRI - Research England,12/05/2020,Research Grant Expenditure,RE- Quality Research (QR),University of Kent,98746414,889570.00,Research Grant Expenditure
BEIS,UKRI - Research England,12/05/2020,Research Grant Expenditure,RE- Quality Research (QR),King's College London,98746415,4398390.00,Research Grant Expenditure
BEIS,UKRI - Research England,12/05/2020,Research Grant Expenditure,RE- Quality Research (QR),Kingston University,98746416,198555.00,Research Grant Expenditure
BEIS,UKRI - Research England,12/05/2020,Research Grant Expenditure,RE- Quality Research (QR),Lancaster University,98746417,1253759.00,Research Grant Expenditure
BEIS,UKRI - Research England,12/05/2020,Research Grant Expenditure,RE- Quality Research (QR),University of Leeds,98746418,2767113.00,Research Grant Expenditure
BEIS,UKRI - Research England,12/05/2020,Research Grant Expenditure,RE- Quality Research (QR),Leeds Beckett University,98746419,151076.00,Research Grant Expenditure
BEIS,UKRI - Research England,12/05/2020,Research Grant Expenditure,RE- Quality Research (QR),Leeds Trinity University,98746420,8639.00,Research Grant Expenditure
BEIS,UKRI - Research England,12/05/2020,Research Grant Expenditure,RE- Quality Research (QR),University of Leicester,98746421,1159284.00,Research Grant Expenditure
BEIS,UKRI - Research England,12/05/2020,Research Grant Expenditure,RE- Quality Research (QR),University of Lincoln,98746422,225185.00,Research Grant Expenditure
BEIS,UKRI - Research England,12/05/2020,Research Grant Expenditure,RE- Quality Research (QR),University of Liverpool,98746423,1816568.00,Research Grant Expenditure
BEIS,UKRI - Research England,12/05/2020,Research Grant Expenditure,RE- Quality Research (QR),Liverpool Hope University,98746424,67282.00,Research Grant Expenditure
BEIS,UKRI - Research England,12/05/2020,Research Grant Expenditure,RE- Quality Research (QR),Liverpool John Moores University,98746425,368864.00,Research Grant Expenditure
BEIS,UKRI - Research England,12/05/2020,Research Grant Expenditure,RE- Quality Research (QR),Liverpool School of Tropical Medicine,98746426,424449.00,Research Grant Expenditure
BEIS,UKRI - Research England,12/05/2020,Research Grant Expenditure,RE- Quality Research (QR),University College London,98746427,8873539.00,Research Grant Expenditure
BEIS,UKRI - Research England,12/05/2020,Research Grant Expenditure,RE- Quality Research (QR),London Business School,98746428,196625.00,Research Grant Expenditure
BEIS,UKRI - Research England,12/05/2020,Research Grant Expenditure,RE- Quality Research (QR),University of London,98746429,527.00,Research Grant Expenditure
BEIS,UKRI - Research England,12/05/2020,Research Grant Expenditure,RE- Quality Research (QR),London Metropolitan University,98746430,71896.00,Research Grant Expenditure
BEIS,UKRI - Research England,12/05/2020,Research Grant Expenditure,RE- Quality Research (QR),London School of Economics and Political Science,98746431,1128629.00,Research Grant Expenditure
BEIS,UKRI - Research England,12/05/2020,Research Grant Expenditure,RE- Quality Research (QR),London School of Hygiene & Tropical Medicine,98746432,1225294.00,Research Grant Expenditure
BEIS,UKRI - Research England,12/05/2020,Research Grant Expenditure,RE- Quality Research (QR),London South Bank University,98746433,120451.00,Research Grant Expenditure
BEIS,UKRI - Research England,12/05/2020,Research Grant Expenditure,RE- Quality Research (QR),Loughborough University,98746434,1113043.00,Research Grant Expenditure
BEIS,UKRI - Research England,12/05/2020,Research Grant Expenditure,RE- Quality Research (QR),The University of Manchester,98746435,4296906.00,Research Grant Expenditure
BEIS,UKRI - Research England,12/05/2020,Research Grant Expenditure,RE- Quality Research (QR),Manchester Metropolitan University,98746436,416593.00,Research Grant Expenditure
BEIS,UKRI - Research England,12/05/2020,Research Grant Expenditure,RE- Quality Research (QR),Middlesex University,98746437,279964.00,Research Grant Expenditure
BEIS,UKRI - Research England,12/05/2020,Research Grant Expenditure,RE- Quality Research (QR),Newcastle University,98746438,2122982.00,Research Grant Expenditure
BEIS,UKRI - Research England,12/05/2020,Research Grant Expenditure,RE- Quality Research (QR),Newman University,98746439,12634.00,Research Grant Expenditure
BEIS,UKRI - Research England,12/05/2020,Research Grant Expenditure,RE- Quality Research (QR),University of Northampton,98746440,41448.00,Research Grant Expenditure
BEIS,UKRI - Research England,12/05/2020,Research Grant Expenditure,RE- Quality Research (QR),Northumbria University,98746441,419202.00,Research Grant Expenditure
BEIS,UKRI - Research England,12/05/2020,Research Grant Expenditure,RE- Quality Research (QR),Norwich University of the Arts,98746442,7973.00,Research Grant Expenditure
BEIS,UKRI - Research England,12/05/2020,Research Grant Expenditure,RE- Quality Research (QR),University of Nottingham,98746443,3063219.00,Research Grant Expenditure
BEIS,UKRI - Research England,12/05/2020,Research Grant Expenditure,RE- Quality Research (QR),Nottingham Trent University,98746444,288107.00,Research Grant Expenditure
BEIS,UKRI - Research England,12/05/2020,Research Grant Expenditure,RE- Quality Research (QR),Open University,98746445,546450.00,Research Grant Expenditure
BEIS,UKRI - Research England,12/05/2020,Research Grant Expenditure,RE- Quality Research (QR),"SOAS, University of London",98746446,348194.00,Research Grant Expenditure
BEIS,UKRI - Research England,12/05/2020,Research Grant Expenditure,RE- Quality Research (QR),University of Oxford,98746447,9005633.00,Research Grant Expenditure
BEIS,UKRI - Research England,12/05/2020,Research Grant Expenditure,RE- Quality Research (QR),Oxford Brookes University,98746448,311807.00,Research Grant Expenditure
BEIS,UKRI - Research England,12/05/2020,Research Grant Expenditure,RE- Quality Research (QR),University of Plymouth,98746449,516873.00,Research Grant Expenditure
BEIS,UKRI - Research England,12/05/2020,Research Grant Expenditure,RE- Quality Research (QR),University of Portsmouth,98746450,365803.00,Research Grant Expenditure
BEIS,UKRI - Research England,12/05/2020,Capital Grants & Equipment to HEIs,RE - UK RPIF,University of Bristol,98746457,550000.00,Capital Grants & Equipment to HEIs
BEIS,UKRI - Research England,12/05/2020,Capital Grants & Equipment to HEIs,RE - UK RPIF,University of Cambridge,98746458,2000000.00,Capital Grants & Equipment to HEIs
BEIS,UKRI - Research England,12/05/2020,Capital Grants & Equipment to HEIs,RE - UK RPIF,University of Exeter,98746459,290424.00,Capital Grants & Equipment to HEIs
BEIS,UKRI - Research England,12/05/2020,Capital Grants & Equipment to HEIs,RE - UK RPIF,University of Leicester,98746460,1121424.00,Capital Grants & Equipment to HEIs
BEIS,UKRI - Research England,12/05/2020,Capital Grants & Equipment to HEIs,RE - UK RPIF,Higher Education Funding Council for Wales,98746461,140830.00,Capital Grants & Equipment to HEIs
BEIS,UKRI - Research England,12/05/2020,Capital Grants & Equipment to HEIs,RE - UK RPIF,University of York,98746462,71016.00,Capital Grants & Equipment to HEIs
BEIS,UKRI - Research England,12/05/2020,Research Grant Expenditure,RE - Connecting Capability Fund,University of Bath,98746463,160000.00,Research Grant Expenditure
BEIS,UKRI - Research England,12/05/2020,Research Grant Expenditure,RE - Connecting Capability Fund,University of Essex,98746464,71352.00,Research Grant Expenditure
BEIS,UKRI - Research England,12/05/2020,Research Grant Expenditure,RE - Connecting Capability Fund,University of Oxford,98746465,575843.66,Research Grant Expenditure
BEIS,UKRI - Research England,12/05/2020,Research Grant Expenditure,RE - Connecting Capability Fund,King's College London,98746466,189707.50,Research Grant Expenditure
BEIS,UKRI - Research England,12/05/2020,Research Grant Expenditure,RE - Connecting Capability Fund,University of Leeds,98746467,140111.00,Research Grant Expenditure
BEIS,UKRI - Research England,12/05/2020,Research Grant Expenditure,RE - Connecting Capability Fund,University of York,98746468,146198.64,Research Grant Expenditure
BEIS,UKRI - Research England,12/05/2020,Research Grant Expenditure,RE - Connecting Capability Fund,Imperial College Science Tech & Med,98746469,149830.00,Research Grant Expenditure
BEIS,UKRI - Research England,12/05/2020,Research Grant Expenditure,RE - Connecting Capability Fund,University of the West of England,98746470,333627.00,Research Grant Expenditure
BEIS,UKRI - Research England,12/05/2020,Research Grant Expenditure,RE - Connecting Capability Fund,University of Cambridge,98746471,75747.00,Research Grant Expenditure
BEIS,UKRI - Research England,12/05/2020,Research Grant Expenditure,RE - Connecting Capability Fund,De Montfort University,98746472,155000.00,Research Grant Expenditure
BEIS,UKRI - Research England,12/05/2020,Research Grant Expenditure,RE - Connecting Capability Fund,University of Durham,98746473,2531.00,Research Grant Expenditure
BEIS,UKRI - Research England,12/05/2020,Research Grant Expenditure,RE - Connecting Capability Fund,University of Sheffield,98746474,69908.00,Research Grant Expenditure
BEIS,UKRI - Research England,12/05/2020,Research Grant Expenditure,RE - Connecting Capability Fund,Royal Veterinary College,98746475,183000.00,Research Grant Expenditure
BEIS,UKRI - Research England,12/05/2020,Research Grant Expenditure,RE - RE Development fund (RED),London Business School,98746476,100000.00,Research Grant Expenditure
BEIS,UKRI - Research England,12/05/2020,Research Grant Expenditure,RE - RE Development fund (RED),University of Liverpool,98746477,31693.00,Research Grant Expenditure
BEIS,UKRI - Research England,12/05/2020,Research Grant Expenditure,RE - RE Development fund (RED),University of Oxford,98746478,147500.00,Research Grant Expenditure
BEIS,UKRI - Research England,12/05/2020,Research Grant Expenditure,RE - RE Development fund (RED),University College London,98746479,329513.00,Research Grant Expenditure
BEIS,UKRI - Research England,12/05/2020,Research Grant Expenditure,RE - Emerging priorities,The Conversation Trust (UK) Limited,98746480,15450.00,Research Grant Expenditure
BEIS,UKRI - Research England,12/05/2020,Research Grant Expenditure,RE - Emerging priorities,JISC,98746481,111421.00,Research Grant Expenditure
BEIS,UKRI - Research England,12/05/2020,Research Grant Expenditure,RE - Expanding Excellence in England (E3),Aston University,98746482,141718.23,Research Grant Expenditure
BEIS,UKRI - Research England,12/05/2020,Research Grant Expenditure,RE - Expanding Excellence in England (E3),Loughborough University,98746483,182675.52,Research Grant Expenditure
BEIS,UKRI - Research England,12/05/2020,Research Grant Expenditure,RE - Expanding Excellence in England (E3),Royal Northern College of Music,98746484,19537.83,Research Grant Expenditure
BEIS,UKRI - Research England,12/05/2020,Research Grant Expenditure,RE - Expanding Excellence in England (E3),Sheffield Hallam University,98746485,114516.77,Research Grant Expenditure
BEIS,UKRI - Research England,12/05/2020,Research Grant Expenditure,RE - Expanding Excellence in England (E3),Open University,98746486,158389.88,Research Grant Expenditure
BEIS,UKRI - Research England,12/05/2020,Research Grant Expenditure,RE - Expanding Excellence in England (E3),Lancaster University,98746487,256736.83,Research Grant Expenditure
BEIS,UKRI - Research England,12/05/2020,Research Grant Expenditure,RE - Expanding Excellence in England (E3),University of Surrey,98746488,98728.48,Research Grant Expenditure
BEIS,UKRI - Research England,12/05/2020,Research Grant Expenditure,RE - Expanding Excellence in England (E3),University of Exeter,98746489,132823.01,Research Grant Expenditure
BEIS,UKRI - Research England,12/05/2020,Research Grant Expenditure,RE - Expanding Excellence in England (E3),University of Greenwich,98746490,160869.33,Research Grant Expenditure
BEIS,UKRI - Research England,12/05/2020,Research Grant Expenditure,RE - Expanding Excellence in England (E3),University of Lincoln,98746491,188637.93,Research Grant Expenditure
BEIS,UKRI - Research England,12/05/2020,Research Grant Expenditure,RE - Expanding Excellence in England (E3),Newcastle University,98746492,109870.00,Research Grant Expenditure
BEIS,UKRI - Research England,12/05/2020,Research Grant Expenditure,RE - Expanding Excellence in England (E3),University of Portsmouth,98746493,102833.00,Research Grant Expenditure
BEIS,UKRI - Research England,12/05/2020,Research Grant Expenditure,RE - Expanding Excellence in England (E3),University of the West of England,98746494,192599.01,Research Grant Expenditure
BEIS,UKRI - Research England,12/05/2020,Capital Grants & Equipment to HEIs,RE - Expanding Excellence in England (E3),University of Exeter,98746495,70833.33,Capital Grants & Equipment to HEIs
BEIS,UKRI - Research England,12/05/2020,Capital Grants & Equipment to HEIs,RE - Expanding Excellence in England (E3),University of Lincoln,98746496,152126.86,Capital Grants & Equipment to HEIs
BEIS,UKRI - Research England,12/05/2020,Capital Grants & Equipment to HEIs,RE - Expanding Excellence in England (E3),Newcastle University,98746497,153600.00,Capital Grants & Equipment to HEIs
BEIS,UKRI - Research England,12/05/2020,Capital Grants & Equipment to HEIs,RE - Expanding Excellence in England (E3),University of the West of England,98746498,151259.28,Capital Grants & Equipment to HEIs
BEIS,UKRI - Research England,12/05/2020,Research Grant Expenditure,RE - NCUB,National Centre for Universities and Business (NCUB),98746499,82820.00,Research Grant Expenditure
BEIS,UKRI - Research England,12/05/2020,Research Grant Expenditure,RE - NCUB,National Centre for Universities and Business (NCUB),98746500,248805.00,Research Grant Expenditure
BEIS,UKRI - Research England,12/05/2020,Research Grant Expenditure,RE - Small Research Programmes (DfE),University of London,98746501,850812.75,Research Grant Expenditure
BEIS,UKRI - Research England,12/05/2020,Research Grant Expenditure,RE - Small Research Programmes (DfE),Zoological Society of London,98746502,197285.05,Research Grant Expenditure
BEIS,UKRI - EPSRC,12/05/2020,Unspecified,Balance Sheet,UKRI - Science & Technology Facilities Council,98746635,223.20,PAYE Payable Salaries
BEIS,UKRI - EPSRC,12/05/2020,Unspecified,Balance Sheet,UKRI - Science & Technology Facilities Council,98746636,106.02,NI Payable Salaries
BEIS,UKRI - EPSRC,12/05/2020,Payroll Clearing,Balance Sheet,UKRI - Science & Technology Facilities Council,98746637,848.31,Payroll Clearing
BEIS,UKRI - EPSRC,12/05/2020,Unspecified,Balance Sheet,UKRI - Science & Technology Facilities Council,98746638,365.30,Ers Pension Deductions - MyCSP
BEIS,UKRI - UKRI,12/05/2020,Unspecified,Horizon Europe Short Term Transitions Arrangement,Alexander Mann Solutions Ltd,98747154,2154.82,Agency Staff
BEIS,UKRI - UKRI,12/05/2020,Unspecified,UKRI - JRS,Alexander Mann Solutions Ltd,98747191,1332.00,Contract Staff
BEIS,UKRI - UKRI,12/05/2020,Unspecified,UKRI - Governance,Alexander Mann Solutions Ltd,98747201,2520.24,Contract Staff
BEIS,UKRI - UKRI,12/05/2020,Unspecified,UKRI - Management Reporting,Alexander Mann Solutions Ltd,98747204,1008.10,Agency Staff
BEIS,UKRI - UKRI,12/05/2020,Unspecified,UKRI - JRS,Alexander Mann Solutions Ltd,98747205,3423.12,Contract Staff
BEIS,UKRI - UKRI,12/05/2020,Unspecified,UKRI - Management Reporting,Alexander Mann Solutions Ltd,98747212,1127.94,Agency Staff
BEIS,UKRI - UKRI,12/05/2020,Unspecified,Project 2025,Alexander Mann Solutions Ltd,98747218,2205.18,Agency Staff
BEIS,UKRI - UKRI,12/05/2020,Unspecified,UKRI - Transformation,Alexander Mann Solutions Ltd,98747219,3000.00,Contract Staff
BEIS,UKRI - Research England,12/05/2020,Non-staff travel and subsistance,RE - Research Excellence Framework (REF),Research Trust of Victoria University of Wellington,98747231,3341.00,Non-staff travel and subsistance
BEIS,UKRI - UKRI,12/05/2020,Recruitment Costs,UKRI People and Organisation Development,PERRETT LAVER LTD,98747232,10608.00,Recruitment Costs
BEIS,UKRI - UKRI,12/05/2020,Recruitment Costs,UKRI People and Organisation Development,BD Search and Selection Ltd,98747239,30000.00,Recruitment Costs
BEIS,UKRI - EPSRC,12/05/2020,Nursery Deductions,Balance Sheet,EDENRED (UK GROUP) LTD,98747248,4976.00,Nursery Deductions
BEIS,UKRI - UKRI,12/05/2020,Other Staff Benefits,"UKRI People, Policies and Management",EDENRED (UK GROUP) LTD,98747252,10.75,Other Staff Benefits
BEIS,UKRI - UKRI,12/05/2020,Other Staff Benefits,"UKRI People, Policies and Management",EDENRED (UK GROUP) LTD,98747265,2.83,Other Staff Benefits
BEIS,UKRI - UKRI,12/05/2020,Other Staff Benefits,"UKRI People, Policies and Management",EDENRED (UK GROUP) LTD,98747271,2.15,Other Staff Benefits
BEIS,UKRI - UKRI,12/05/2020,Unspecified,UKRI - Secretariat,Department for Education,98747289,27419.65,Secondments
BEIS,UKRI - UKRI,12/05/2020,General Building Maintenance,UKRI - JBOS,Screenlink Sound and Vision,98747298,240.00,General Building Maintenance
BEIS,UKRI - UKRI,12/05/2020,Maintenance of Research & Scientific Equipment,UKRI - JBOS,Screenlink Sound and Vision,98747298,384.00,Maintenance of Research & Scientific Equipment
BEIS,UKRI - UKRI,12/05/2020,Maintenance of Research & Scientific Equipment,UKRI - JBOS,Screenlink Sound and Vision,98747298,218.53,Maintenance of Research & Scientific Equipment
BEIS,UKRI - UKRI,12/05/2020,Maintenance of Research & Scientific Equipment,UKRI - JBOS,Screenlink Sound and Vision,98747298,192.00,Maintenance of Research & Scientific Equipment
BEIS,UKRI - UKRI,12/05/2020,Maintenance of Research & Scientific Equipment,UKRI - JBOS,Screenlink Sound and Vision,98747298,144.00,Maintenance of Research & Scientific Equipment
BEIS,UKRI - EPSRC,12/05/2020,T&S UK - Other Charges,Programme Delivery Quantum Technology,Unspecified,98747333,203.69,T&S UK - Other Charges
BEIS,UKRI - EPSRC,12/05/2020,T&S UK - Other Charges,Programme Delivery Physical Sciences,Unspecified,98747335,308.77,T&S UK - Other Charges
BEIS,UKRI - UKRI,12/05/2020,Computer Hardware,UKRI - Digital Data and Technology BAU Costs,Cablenet Trading Ltd,98747883,139.59,Computer Hardware
BEIS,UKRI - UKRI,12/05/2020,Non-staff travel and subsistance,UKRI - GCRF Challenge Leaders,Unspecified,98747973,171.78,Non-staff travel and subsistance
BEIS,UKRI - UKRI,12/05/2020,T&S Overseas - Flights,UKRI - Global Engagement,United Nations Development Programme,98748002,11077.79,T&S Overseas - Flights
BEIS,UKRI - UKRI,12/05/2020,Other Staff Benefits,"UKRI People, Policies and Management",EDENRED (UK GROUP) LTD,98748099,41.27,Other Staff Benefits
BEIS,UKRI - UKRI,12/05/2020,Unspecified,UKRI - Financial Accounting,Alexander Mann Solutions Ltd,98748104,2771.70,Contract Staff
BEIS,UKRI - UKRI,12/05/2020,Other Staff Benefits,"UKRI People, Policies and Management",EDENRED (UK GROUP) LTD,98748133,4.37,Other Staff Benefits
BEIS,UKRI - UKRI,12/05/2020,Other Staff Benefits,"UKRI People, Policies and Management",EDENRED (UK GROUP) LTD,98748142,35.09,Other Staff Benefits
BEIS,UKRI - UKRI,12/05/2020,Postage & Courier Services,UKRI - JBOS,Fedex Express UK Transportation Ltd,98748187,373.28,Postage & Courier Services
BEIS,UKRI - UKRI,12/05/2020,Freight Charges,UKRI - Financial Accounting,Calder Conference Ltd,98748201,1710.00,Freight Charges
BEIS,UKRI - UKRI,12/05/2020,Conferences & Seminars,"UKRI - Data Policy, Governance and MI",Calder Conference Ltd,98748202,307.20,Conferences & Seminars
BEIS,UKRI - UKRI,12/05/2020,Conferences & Seminars,EDI,Calder Conference Ltd,98748204,882.00,Conferences & Seminars
BEIS,UKRI - UKRI,12/05/2020,Advertising & Promotion,UKRI - Communications Content,McDaid Public Relations Ltd,98748283,840.00,Advertising & Promotion
BEIS,UKRI - UKRI,12/05/2020,Advertising & Promotion,UKRI - Communications Projects and Services,Brad Wakefield Photography Ltd,98748292,1700.00,Advertising & Promotion
